Departmental Family,Entity,Date,Expense Type,Expense Area ,Supplier,Transaction Number,Amount,Description,Supplier Postcode,
Department for Transport,Department for Transport,01/07/2015,Agency Staff Costs,Integrated Delivery,BROOK STREET (UK) LIMITED,2000006447,758.52,#,AL1 4JB,
Department for Transport,Department for Transport,01/07/2015,Agency Staff Costs,Integrated Delivery,BROOK STREET (UK) LIMITED,2000006447,940.32,#,AL1 4JB,
Department for Transport,Department for Transport,01/07/2015,Agency Staff Costs,Integrated Delivery,CAPITA BUSINESS SERVICES LTD,2000006437,10847.89,#,DL1 9HN,
Department for Transport,Department for Transport,01/07/2015,Agency Staff Costs,Integrated Delivery,CAPITA BUSINESS SERVICES LTD,2000006437,-5917.03,#,DL1 9HN,
Department for Transport,Department for Transport,01/07/2015,Agency Staff Costs,Rail Franchising,CAPITA BUSINESS SERVICES LTD,2000006437,22191.61,#,DL1 9HN,
Department for Transport,Department for Transport,01/07/2015,Agency Staff Costs,Rail Franchising,Experis Ltd,2000006441,6632.06,#,EC2M 2RB,
Department for Transport,Department for Transport,01/07/2015,Cap Grt Pri Sec-Cos.,"Energy, Technology and International",Audi UK,2000006462,485000,AUDI OLEV PICG MAY #485k,MK14 5AN,
Department for Transport,Department for Transport,01/07/2015,Cap Grt Pri Sec-Cos.,"Energy, Technology and International",Carbon Zero Renewables Ltd,2000006465,7200,Carbon Zero Apr 15 #7200,LL17 0LG,
Department for Transport,Department for Transport,01/07/2015,Cap Grt Pri Sec-Cos.,"Energy, Technology and International",Chargemaster,2000006455,288900,Chargemaster Apr 2015 #288900,LU1 3LU,
Department for Transport,Department for Transport,01/07/2015,Cap Grt Pri Sec-Cos.,"Energy, Technology and International",Chargemaster,2000006455,30600,Chargemaster Mar 2015 #30600,LU1 3LU,
Department for Transport,Department for Transport,01/07/2015,Cap Grt Pri Sec-Cos.,"Energy, Technology and International",Chargemaster,2000006455,20700,Chargemaster Feb 2015 #20700,LU1 3LU,
Department for Transport,Department for Transport,01/07/2015,Cap Grt Pri Sec-Cos.,"Energy, Technology and International",Chargemaster,2000006455,20700,Chargemaster Jan 2015 #20700,LU1 3LU,
Department for Transport,Department for Transport,01/07/2015,Cap Grt Pri Sec-Cos.,"Energy, Technology and International",Chargemaster,2000006455,4500,Chargemaster Dec 2014 #4500,LU1 3LU,
Department for Transport,Department for Transport,01/07/2015,Cap Grt Pri Sec-Cos.,"Energy, Technology and International",Chargemaster,2000006455,5400,Chargemaster Nov 2014 #5400,LU1 3LU,
Department for Transport,Department for Transport,01/07/2015,Cap Grt Pri Sec-Cos.,"Energy, Technology and International",Chargemaster,2000006455,2700,Chargemaster Oct 2014 #2700,LU1 3LU,
Department for Transport,Department for Transport,01/07/2015,Cap Grt Pri Sec-Cos.,"Energy, Technology and International",Chargemaster,2000006455,900,Chargemaster Sep 2014 #900,LU1 3LU,
Department for Transport,Department for Transport,01/07/2015,Cap Grt Pri Sec-Cos.,"Energy, Technology and International",Earth Electrical (Southern) Ltd,2000006467,9800,Earth Electrical MAY 15 #9800,GU14 8DS,
Department for Transport,Department for Transport,01/07/2015,Cap Grt Pri Sec-Cos.,"Energy, Technology and International",Ecoelectrical Ltd,2000006466,886.5,Ecoelectrical Mar 15 #886.50,GL6 9JY,
Department for Transport,Department for Transport,01/07/2015,Cap Grt Pri Sec-Cos.,"Energy, Technology and International",EDF Energy,2000006456,840.6,EDF Feb 2015 #840.60,BN3 5SU,
Department for Transport,Department for Transport,01/07/2015,Cap Grt Pri Sec-Cos.,"Energy, Technology and International",Jorro Ltd,2000006460,4500,Jorro Feb 2015 #4500,FK8 1JR,
Department for Transport,Department for Transport,01/07/2015,Cap Grt Pri Sec-Cos.,"Energy, Technology and International",Jorro Ltd,2000006460,900,Jorro Mar 2015 #900,FK8 1JR,
Department for Transport,Department for Transport,01/07/2015,Cap Grt Pri Sec-Cos.,"Energy, Technology and International",Pod Point,2000006454,7098.75,POD POINT #7098.75 Apr 2015,E1 1EE,
Department for Transport,Department for Transport,01/07/2015,Cap Grt Pri Sec-Cos.,"Energy, Technology and International",Pod Point,2000006454,876,POD POINT #876 Feb 2015,E1 1EE,
Department for Transport,Department for Transport,01/07/2015,Cap Grt Pri Sec-Cos.,"Energy, Technology and International",Pod Point,2000006454,2652,POD POINT #2652 Jan 2015,E1 1EE,
Department for Transport,Department for Transport,01/07/2015,Cap Grt Pri Sec-Cos.,"Energy, Technology and International",Pod Point,2000006454,900,POD POINT #900 Dec 2014,E1 1EE,
Department for Transport,Department for Transport,01/07/2015,Cap Grt Pri Sec-Cos.,"Energy, Technology and International",Pod Point,2000006454,1752,POD POINT #1752 Nov 2014,E1 1EE,
Department for Transport,Department for Transport,01/07/2015,Cap Grt Pri Sec-Cos.,"Energy, Technology and International",Pod Point,2000006454,10544.25,POD POINT #10544.25 Mar 2015,E1 1EE,
Department for Transport,Department for Transport,01/07/2015,Cap Grt Pri Sec-Cos.,"Energy, Technology and International",Porsche,2000006458,35000,"""PiCG Porsche May 15  #35,000k""",RG31 7SE,
Department for Transport,Department for Transport,01/07/2015,Cap Grt Pri Sec-Cos.,"Energy, Technology and International",RENAULT,2000006451,662291.85,"""PiCG Renault May 2015 #662,291.85""",WD3 9YS,
Department for Transport,Department for Transport,01/07/2015,Cap Grt Pri Sec-Cos.,"Energy, Technology and International",Starfish Installations Ltd,2000006464,900,Starfish Apr 2015 #900,NR13 5FH,
Department for Transport,Department for Transport,01/07/2015,Cap Grt Pri Sec-Cos.,"Energy, Technology and International",Tesla Motors Limited GBP,2000006461,145000,"""PiCG TESLA MAY2015 #145,000K""",UB7 8JD,
Department for Transport,Department for Transport,01/07/2015,Cap Grt Pri Sec-Cos.,"Energy, Technology and International",VAUXHALL MOTORS,2000006452,40000,"""PiCG Vauxhall May 2015 #40,000""",LU1 3YT,
Department for Transport,Department for Transport,01/07/2015,Contract Cleaning,Rail Accident Investigation Branch,OFFICE CARE LTD,2000006450,1333.82,#,DE24 8AN,
Department for Transport,Department for Transport,01/07/2015,Legal Consultancy,Group Human Resource,Government Legal Department,2000006469,20435.77,#,WC2B 4TS,
Department for Transport,Department for Transport,01/07/2015,Legal Consultancy,Rail Franchising,ADDLESHAW GODDARD LIMITED,2000006449,3979.8,#,M2 3AB,
Department for Transport,Department for Transport,01/07/2015,Legal Consultancy,Group Finance,DFT ONE TIME VENDOR,2000006468,1990,120882,SW1P 4DR,
Department for Transport,Department for Transport,01/07/2015,NLF Interest pay,Aviation,HM TREASURY - NATIONAL LOANS FUND,2000006472,68704.79,CAA July Interest,SW1A 2HQ,
Department for Transport,Department for Transport,01/07/2015,NLF Principal Paid,Aviation,HM TREASURY - NATIONAL LOANS FUND,2000006472,549707.23,CAA July Principal,SW1A 2HQ,
Department for Transport,Department for Transport,01/07/2015,Non Stock Machine Co,Motoring Services,XMA LIMITED GOSC,2000006453,1181.16,#,NG11 7EP,
Department for Transport,Department for Transport,01/07/2015,Recruitment Fees,Group Human Resource,HM REVENUE & CUSTOMS,2000006470,8102.1,#,BN12 4XH,
Department for Transport,Department for Transport,01/07/2015,Research,Local,NATIONAL CENTRE FOR SOCIAL RESEARCH,2000006442,137704.12,#,EC1V 0AX,
Department for Transport,Department for Transport,01/07/2015,Research,Local,NATIONAL CENTRE FOR SOCIAL RESEARCH,2000006442,17204,#,EC1V 0AX,
Department for Transport,Department for Transport,01/07/2015,Research,Rail Strategy & Funding,TRANSPORT RESEARCH LABORATORY,2000006445,28582.44,#,RG40 3GA,
Department for Transport,Department for Transport,01/07/2015,Research,Analysis & Strategy,ATKINS LTD (TRANSPORT PLANNING),2000006439,10659.85,#,WR5 1TX,
Department for Transport,Department for Transport,01/07/2015,Schedule 8 Fixed Per,Rail Commercial & Programme Office,ARRIVA TRAINS WALES,2000006448,141483.63,1604 Wk4 CP2SR_P1602 - ARRIVA TRAINS WALES LIMITED,CF10 5DJ,
Department for Transport,Department for Transport,01/07/2015,Schedule 8 Fixed Per,Rail Commercial & Programme Office,ARRIVA TRAINS WALES,2000006448,-33764.56,1604 Wk4 RTMRE_P1602 - ARRIVA TRAINS WALES LIMITED,CF10 5DJ,
Department for Transport,Department for Transport,01/07/2015,Schedule 8 Fixed Per,Rail Commercial & Programme Office,ARRIVA TRAINS WALES,2000006448,57642.7,1604 Wk4 TS8A_1602 - ARRIVA TRAINS WALES LIMITED,CF10 5DJ,
Department for Transport,Department for Transport,01/07/2015,Support Services,Group Assurance,DEFRA,2000006438,1143.75,Refund to DEFRA,YO1 7PX,
Department for Transport,Department for Transport,01/07/2015,Support Services,Aviation,Civil Aviation Authority,2000006440,222171.34,#,RH6 0YR,
Department for Transport,Department for Transport,01/07/2015,Transport  Consult,Local,ATKINS LTD (TRANSPORT PLANNING),2000006439,3694.73,#,WR5 1TX,
Department for Transport,Department for Transport,01/07/2015,Transport  Consult,Aviation,xxxxxx,2000006457,1521.96,#,xxxxxx,
Department for Transport,Department for Transport,01/07/2015,Transport  Consult,Rail Franchising,PARSONS BRINCKERHOFF LTD,2000006443,42411.2,#,NE4 7YQ,
Department for Transport,Department for Transport,01/07/2015,Transport  Consult,Rail Franchising,PARSONS BRINCKERHOFF LTD,2000006443,16804.64,#,NE4 7YQ,
Department for Transport,Department for Transport,01/07/2015,Transport  Consult,Rail Commercial & Programme Office,TRANSPORT RESEARCH LABORATORY,2000006445,6200.29,#,RG40 3GA,
Department for Transport,Department for Transport,01/07/2015,Transport  Consult,Rail Commercial & Programme Office,TRANSPORT RESEARCH LABORATORY,2000006445,23858.33,#,RG40 3GA,
Department for Transport,Department for Transport,01/07/2015,Travel Expenses UK,Group Human Resource,Government Legal Department,2000006469,535.9,#,WC2B 4TS,
Department for Transport,Department for Transport,02/07/2015,Agency Staff Costs,Group Assurance,Badenoch & Clark c/o Lauren Rogers,2000006518,3753.36,#,B37 7YE,
Department for Transport,Department for Transport,02/07/2015,Agency Staff Costs,Integrated Delivery,Allen Lane,2000006515,4036.38,#,SW1Y 6RJ,
Department for Transport,Department for Transport,02/07/2015,Agency Staff Costs,Integrated Delivery,Allen Lane,2000006515,4036.38,#,SW1Y 6RJ,
Department for Transport,Department for Transport,02/07/2015,Agency Staff Costs,Integrated Delivery,MICHAEL PAGE INTERNATIONAL,2000006530,3594,#,SL1 3SA,
Department for Transport,Department for Transport,02/07/2015,Agency Staff Costs,Major Projects & Growth,Experis Ltd,2000006520,6040.02,#,EC2M 2RB,
Department for Transport,Department for Transport,02/07/2015,Agency Staff Costs,Major Projects & Growth,Experis Ltd,2000006520,4793.46,#,EC2M 2RB,
Department for Transport,Department for Transport,02/07/2015,Agency Staff Costs,Rail Commercial & Programme Office,Experis Ltd,2000006520,3423.9,#,EC2M 2RB,
Department for Transport,Department for Transport,02/07/2015,Agency Staff Costs,Group Finance,Allen Lane,2000006515,2468.82,#,SW1Y 6RJ,
Department for Transport,Department for Transport,02/07/2015,Agency Staff Costs,Rail Commercial & Programme Office,Experis Ltd,2000006520,5999.4,#,EC2M 2RB,
Department for Transport,Department for Transport,02/07/2015,Cap Grt Loc Auth,Local,WOKINGHAM DC,2000006538,21000,LSTF 2014-15 Wokingham Q4 Capital,RG40 1JW,
Department for Transport,Department for Transport,02/07/2015,Cap Grt Pri Sec-Cos.,Network Rail Sponsorship,Network Rail,2000006539,351027.51,Gospel Oak - Barking Electrification GRIP 3 works,M60 7W,
Department for Transport,Department for Transport,02/07/2015,CurrGrt Las in AEF/A,Local,Brighton & Hove City Council,2000006537,5337,LSTF Payment 2014-15 Q4 Brighton & Hove,BN1 1JE,
Department for Transport,Department for Transport,02/07/2015,CurrGrt Las in AEF/A,Local,WOKINGHAM DC,2000006538,62500,LSTF 2014-15 Wokingham Q4 Revenue,RG40 1JW,
Department for Transport,Department for Transport,02/07/2015,Eurotunnel Admin Pay,Rail Commercial & Programme Office,SNCF Caisse Generale,2000006494,5981624.21,SNCF JUNE 2015,93633,
Department for Transport,Department for Transport,02/07/2015,Eurotunnel Admin Pay,Rail Commercial & Programme Office,SNCF TRESORERIE ENC RHT VFE,2000006495,5201062.45,SNCF JUNE 2015 EURO,75014,
Department for Transport,Department for Transport,02/07/2015,IT Consultancy,Marine Accident Investigation Branch,AVENCA LTD,2000006517,720,#,SP5 3PJ,
Department for Transport,Department for Transport,02/07/2015,IT Equip Cap Cost,Motoring Services,ANS Group plc,2000006535,9142.97,#,M15 6SY,
Department for Transport,Department for Transport,02/07/2015,IT Equip Cap Cost,Motoring Services,ANS Group plc,2000006535,4361.48,#,M15 6SY,
Department for Transport,Department for Transport,02/07/2015,IT Ser Running Costs,Motoring Services,Department for Education,2000006534,1564.92,#,FY5 3TA,
Department for Transport,Department for Transport,02/07/2015,IT Ser Running Costs,Marine Accident Investigation Branch,AVENCA LTD,2000006517,360,#,SP5 3PJ,
Department for Transport,Department for Transport,02/07/2015,Legal Consultancy,Maritime,Slaughter and May,2000006526,52380.48,#,EC1Y 8YY,
Department for Transport,Department for Transport,02/07/2015,Legal Consultancy,"Policy, Legislation and Funding",xxxxxx,100008539,11400,#,xxxxxx,
Department for Transport,Department for Transport,02/07/2015,Legal Consultancy,"Policy, Legislation and Funding",xxxxxx,100008539,-11400,#,xxxxxx,
Department for Transport,Department for Transport,02/07/2015,Legal Costs - Prosec,"Energy, Technology and International",Government Legal Department,2000006511,35921.65,Settlement of Total Legal Case costs,WC2B 4TS,
Department for Transport,Department for Transport,02/07/2015,Media & Press,Group Communications,Cabinet Office,2000006512,20000,#,FY5 3TA,
Department for Transport,Department for Transport,02/07/2015,Periodicals & Subs,Motoring Services,WOLTERSKLUWER UK,2000006514,851.37,#,KT2 6SR,
Department for Transport,Department for Transport,02/07/2015,Property Consultancy,Maritime,FAITHFUL & GOULD LTD,2000006513,5689.16,#,CF24 0AD,
Department for Transport,Department for Transport,02/07/2015,Research,"Energy, Technology and International",HALCROW GROUP LTD,2000006521,22751.21,#,W6 7EF,
Department for Transport,Department for Transport,02/07/2015,Research,Aviation,Civil Aviation Authority,2000006519,8907.69,#,RH6 0YR,
Department for Transport,Department for Transport,02/07/2015,Research,Aviation,Civil Aviation Authority,2000006519,620.67,#,RH6 0YR,
Department for Transport,Department for Transport,02/07/2015,Research,Analysis & Strategy,IPSOS UK,2000006531,13487.5,#,HA1 1PT,
Department for Transport,Department for Transport,02/07/2015,Translation Services,Marine Accident Investigation Branch,K INTERNATIONAL PLC,2000006523,534.24,#,MK5 8PL,
Department for Transport,Department for Transport,02/07/2015,Transport  Consult,Major Projects & Growth,JACOBS UK LTD,2000006522,178298.32,#,G2 7HX,
Department for Transport,Department for Transport,02/07/2015,Transport  Consult,Rail Commercial & Programme Office,PARSONS BRINCKERHOFF LTD,2000006524,47513.32,#,NE4 7YQ,
Department for Transport,Department for Transport,02/07/2015,Water,Group Procurement and Property,Thames Water Utilities Ltd,2000006528,9466.47,Thames Water - SW1P 4DR 11.2.15 to 18.5.15,LS14 3WP,
Department for Transport,Department for Transport,03/07/2015,Agency Staff Costs,Air Accident Investigation Branch,BROOK STREET (UK) LIMITED,2000006577,684.52,#,AL1 4JB,
Department for Transport,Department for Transport,03/07/2015,Agency Staff Costs,Project Sponsorship,Experis Ltd,2000006568,4108.68,#,EC2M 2RB,
Department for Transport,Department for Transport,03/07/2015,Cap Grt Pri Sec-Cos.,Major Projects & Growth,LONDON UNDERGROUND,2000006581,26013.17,Kings Cross Southern Square PPA Costs,NW1 2AH,
Department for Transport,Department for Transport,03/07/2015,CurrGrtPriSec-P&NPIS,"Motoring, Freight & London",Police & Crime Commisssioner for,2000006579,15299.07,PLO - April to May 2015,GL2 2AN,
Department for Transport,Department for Transport,03/07/2015,Electricity,Rail Accident Investigation Branch,BRITISH GAS BUSINESS,2000006565,865.34,5.2. to 4.3.15 DE21 4BA- Electricity,GU95 1AW,
Department for Transport,Department for Transport,03/07/2015,Eurotunnel Admin Pay,Rail Commercial & Programme Office,Eurotunnel,2000006563,4676104.74,Opex & Usage Charges June 15 - Euro Payment,CT18 8XX,
Department for Transport,Department for Transport,03/07/2015,Eurotunnel Admin Pay,Rail Commercial & Programme Office,EUROTUNNEL,2000006562,5201936.84,Opex & Usage Charges June 15 - GBP Payment,CT18 8XY,
Department for Transport,Department for Transport,03/07/2015,Investigation Servic,Rail Accident Investigation Branch,Ricardo Rail Limited,2000006569,12000,#,DE24 8ZS,
Department for Transport,Department for Transport,03/07/2015,IT Ser Running Costs,Analysis & Strategy,NETFUNDI LTD,2000006572,810,#,LA1 1SQ,
Department for Transport,Department for Transport,03/07/2015,IT Ser Running Costs,Analysis & Strategy,NETFUNDI LTD,2000006572,810,#,LA1 1SQ,
Department for Transport,Department for Transport,03/07/2015,Purchasing Card Char,RTL DG's Office,BARCLAYS BANK PLC,2000006564,18749.69,Barclays - DFT/RT&L July 2015,NN4 7SG,
Department for Transport,Department for Transport,03/07/2015,Purchasing Card Char,RTL DG's Office,BARCLAYS BANK PLC,2000006564,1241.58,Barclays - DFT/RT&L July 2015,NN4 7SG,
Department for Transport,Department for Transport,03/07/2015,Purchasing Card Char,ISE - DG's Office,BARCLAYS BANK PLC,2000006564,20496.99,Barclays - DFT/ISE July 2015,NN4 7SG,
Department for Transport,Department for Transport,03/07/2015,Purchasing Card Char,ISE - DG's Office,BARCLAYS BANK PLC,2000006564,28315.45,Barclays - DFT/ISE July 2015,NN4 7SG,
Department for Transport,Department for Transport,03/07/2015,Purchasing Card Char,Group Finance,BARCLAYS BANK PLC,2000006564,-1717.64,Barclays - DFT/R&S July 2015,NN4 7SG,
Department for Transport,Department for Transport,03/07/2015,Purchasing Card Char,Group Finance,BARCLAYS BANK PLC,2000006564,31047.52,Barclays - DFT/R&S July 2015,NN4 7SG,
Department for Transport,Department for Transport,03/07/2015,Research,"Motoring, Freight & London",Ecorys UK Ltd,2000006588,11470,#,B1 2RA,
Department for Transport,Department for Transport,03/07/2015,Research,Transport Security Co-ordination and Response,DEFENCE SCIENCE & TECHNOLOGY,2000006567,7200,#,PO14 9HL,
Department for Transport,Department for Transport,03/07/2015,Support Services,Local,PLANNING INSPECTORATE,2000006590,1493.59,#,BS1 6PN,
Department for Transport,Department for Transport,03/07/2015,Support Services,Aviation,Civil Aviation Authority,2000006566,21128.57,#,RH6 0YR,
Department for Transport,Department for Transport,03/07/2015,Traffic Survey & Cou,"Motoring, Freight & London",PARSONS BRINCKERHOFF LTD,2000006573,524202.62,#,NE4 7YQ,
Department for Transport,Department for Transport,03/07/2015,Transport  Consult,Major Projects & Growth,FIRST CLASS PARTNERSHIPS LTD,2000006580,40338,#,YO10 3EB,
Department for Transport,Department for Transport,03/07/2015,Transport  Consult,Aviation,Systra Ltd,2000006571,3816,#,GU21 5BH,
Department for Transport,Department for Transport,03/07/2015,Waste disposal/Refus,Group Procurement and Property,Banner Business Services Ltd,2000006584,733.75,#,NR3 1QU,
Department for Transport,Department for Transport,03/07/2015,Waste disposal/Refus,Group Procurement and Property,Banner Business Services Ltd,2000006584,517.5,#,NR3 1QU,
Department for Transport,Department for Transport,03/07/2015,YR-Dental,Human Resources,National Dental Plan Limited,2000006601,592,3rd Party Payment June/2015,EC3N 1DY,
Department for Transport,Department for Transport,06/07/2015,Agency Staff Costs,Air Accident Investigation Branch,BROOK STREET (UK) LIMITED,2000006710,636.25,#,AL1 4JB,
Department for Transport,Department for Transport,06/07/2015,Agency Staff Costs,Local,BROOK STREET (UK) LIMITED,2000006710,697.94,#,AL1 4JB,
Department for Transport,Department for Transport,06/07/2015,Agency Staff Costs,Local,BROOK STREET (UK) LIMITED,2000006710,697.94,#,AL1 4JB,
Department for Transport,Department for Transport,06/07/2015,Agency Staff Costs,Local,BROOK STREET (UK) LIMITED,2000006710,609.12,#,AL1 4JB,
Department for Transport,Department for Transport,06/07/2015,Agency Staff Costs,Local,BROOK STREET (UK) LIMITED,2000006710,697.94,#,AL1 4JB,
Department for Transport,Department for Transport,06/07/2015,Agency Staff Costs,Local,BROOK STREET (UK) LIMITED,2000006710,609.12,#,AL1 4JB,
Department for Transport,Department for Transport,06/07/2015,Agency Staff Costs,Local,BROOK STREET (UK) LIMITED,2000006710,609.12,#,AL1 4JB,
Department for Transport,Department for Transport,06/07/2015,Agency Staff Costs,Local,BROOK STREET (UK) LIMITED,2000006710,617.58,#,AL1 4JB,
Department for Transport,Department for Transport,06/07/2015,Agency Staff Costs,Local,BROOK STREET (UK) LIMITED,2000006710,681.02,#,AL1 4JB,
Department for Transport,Department for Transport,06/07/2015,Agency Staff Costs,Local,BROOK STREET (UK) LIMITED,2000006710,609.12,#,AL1 4JB,
Department for Transport,Department for Transport,06/07/2015,Agency Staff Costs,Local,BROOK STREET (UK) LIMITED,2000006710,642.02,#,AL1 4JB,
Department for Transport,Department for Transport,06/07/2015,Agency Staff Costs,Integrated Delivery,NETWORKERS INTERNATIONAL (UK) PLC,2000006712,3391.26,#,BR1 1HP,
Department for Transport,Department for Transport,06/07/2015,Agency Staff Costs,Rail Commercial & Programme Office,MORGAN HUNT UK LTD,2000006708,4311.38,#,EC4M 7EG,
Department for Transport,Department for Transport,06/07/2015,Agency Staff Costs,Major Projects & Growth,CAPITA BUSINESS SERVICES LTD,2000006700,3961.14,#,DL1 9HN,
Department for Transport,Department for Transport,06/07/2015,Agency Staff Costs,Group Finance,CAPITA BUSINESS SERVICES LTD,2000006700,2248.51,#,DL1 9HN,
Department for Transport,Department for Transport,06/07/2015,Agency Staff Costs,Group Finance,Insight MSC Limited,2000006720,72884.23,#,WC1H 9LT,
Department for Transport,Department for Transport,06/07/2015,Agency Staff Costs,Rail Franchising,Badenoch & Clark c/o Lauren Rogers,2000006703,3249.6,#,B37 7YE,
Department for Transport,Department for Transport,06/07/2015,Agency Staff Costs,Rail Franchising,Badenoch & Clark c/o Lauren Rogers,2000006703,3953.9,#,B37 7YE,
Department for Transport,Department for Transport,06/07/2015,Agency Staff Costs,Rail Franchising,Badenoch & Clark c/o Lauren Rogers,2000006703,1976.95,#,B37 7YE,
Department for Transport,Department for Transport,06/07/2015,Agency Staff Costs,Rail Franchising,Badenoch & Clark c/o Lauren Rogers,2000006703,3953.9,#,B37 7YE,
Department for Transport,Department for Transport,06/07/2015,Agency Staff Costs,Rail Franchising,Badenoch & Clark c/o Lauren Rogers,2000006703,2965.43,#,B37 7YE,
Department for Transport,Department for Transport,06/07/2015,Agency Staff Costs,Rail Franchising,Badenoch & Clark c/o Lauren Rogers,2000006703,2965.43,#,B37 7YE,
Department for Transport,Department for Transport,06/07/2015,Agency Staff Costs,Rail Franchising,Badenoch & Clark c/o Lauren Rogers,2000006703,1976.95,#,B37 7YE,
Department for Transport,Department for Transport,06/07/2015,Agency Staff Costs,Integrated Delivery,BROOK STREET (UK) LIMITED,2000006710,916.81,#,AL1 4JB,
Department for Transport,Department for Transport,06/07/2015,Agency Staff Costs,Integrated Delivery,BROOK STREET (UK) LIMITED,2000006710,752.64,#,AL1 4JB,
Department for Transport,Department for Transport,06/07/2015,Agency Staff Costs,Integrated Delivery,CAPITA BUSINESS SERVICES LTD,2000006700,2160.54,#,DL1 9HN,
Department for Transport,Department for Transport,06/07/2015,Agency Staff Costs,Integrated Delivery,CAPITA BUSINESS SERVICES LTD,2000006700,4930.86,#,DL1 9HN,
Department for Transport,Department for Transport,06/07/2015,Agency Staff Costs,Rail Commercial & Programme Office,CAPITA BUSINESS SERVICES LTD,2000006700,2650.14,#,DL1 9HN,
Department for Transport,Department for Transport,06/07/2015,Agency Staff Costs,Integrated Delivery,CAPITA BUSINESS SERVICES LTD,2000006700,4459.26,#,DL1 9HN,
Department for Transport,Department for Transport,06/07/2015,Agency Staff Costs,Integrated Delivery,CAPITA BUSINESS SERVICES LTD,2000006700,2680.14,#,DL1 9HN,
Department for Transport,Department for Transport,06/07/2015,Cap Grt Loc Auth,"Energy, Technology and International",Cotswold District Council,2000006722,74322,14/15 Cotswolds #74322 Rapid Chargepoints,GL7 1PX,
Department for Transport,Department for Transport,06/07/2015,Cap Grt Loc Auth,"Energy, Technology and International",DARTFORD BC,2000006711,75000,14/15 Dartford #75000 Rapid Chargepoints,DA1 1DR,
Department for Transport,Department for Transport,06/07/2015,Cap Grt Loc Auth,"Energy, Technology and International",PLYMOUTH CITY COUNCIL,2000006723,60000,201415 Plymouth #60000 Public Sector,PL1 2AA,
Department for Transport,Department for Transport,06/07/2015,Cap Grt Loc Auth,"Energy, Technology and International",WILTSHIRE COUNCIL,2000006713,57700,1415 Wiltshire #57700 Public Sector Chargepoints,BA14 4DS,
Department for Transport,Department for Transport,06/07/2015,Cap Grt Pri Sec-Cos.,"Energy, Technology and International",Blythe Electrical (Warwickshire),2000006721,700,Blythe Elec MAY 15 #700,B46 2JA,
Department for Transport,Department for Transport,06/07/2015,Cap Grt Pri Sec-Cos.,"Energy, Technology and International",Blythe Electrical (Warwickshire),2000006721,700,Blythe Elec APR 15 #700,B46 2JA,
Department for Transport,Department for Transport,06/07/2015,Cap Grt Pri Sec-Cos.,"Policy, Legislation and Funding",Eversheds LLP,2000006697,10198.06,#,CF10 5BT,
Department for Transport,Department for Transport,06/07/2015,Cap Grt Pri Sec-Cos.,"Policy, Legislation and Funding",Eversheds LLP,2000006698,38397.48,PROPERTY PURCHASE,CF10 5BT,
Department for Transport,Department for Transport,06/07/2015,Cars Fuel,Air Accident Investigation Branch,ALLSTAR BUSINESS SOLUTIONS LIMITED,2000006702,1422.89,#,SN5 6PS,
Department for Transport,Department for Transport,06/07/2015,Infrastructure Maint,Rail Accident Investigation Branch,Network Rail,2000006724,2400,#,M60 7W,
Department for Transport,Department for Transport,06/07/2015,Investigation Servic,Motoring Services,Procordia Ltd,2000006719,1604.04,#,TN39 4SR,
Department for Transport,Department for Transport,06/07/2015,Investigation Servic,Motoring Services,Procordia Ltd,2000006719,4009.2,#,TN39 4SR,
Department for Transport,Department for Transport,06/07/2015,Investigation Servic,Motoring Services,Procordia Ltd,2000006719,2910.2,#,TN39 4SR,
Department for Transport,Department for Transport,06/07/2015,Legal Consultancy,Rail Franchising,Eversheds LLP,2000006716,22230,#,EC2V 7WS,
Department for Transport,Department for Transport,06/07/2015,Machinery Rental,Marine Accident Investigation Branch,CANON (UK) LTD,2000006705,1020.42,#,RH2 8BF,
Department for Transport,Department for Transport,06/07/2015,Maintenance Other,Motoring Services,ARVAL,2000006701,4693.18,#,SN5 6PE,
Department for Transport,Department for Transport,06/07/2015,Maintenance Other,Motoring Services,ARVAL,2000006701,1050.84,#,SN5 6PE,
Department for Transport,Department for Transport,06/07/2015,Other Advertising,Local,PENNA COMMUNICATIONS,2000006715,9690.84,#,EC4M 7RD,
Department for Transport,Department for Transport,06/07/2015,Printing,Air Accident Investigation Branch,WILLIAMS LEA LIMITED,2000006717,1297.51,#,NR3 1PD,
Department for Transport,Department for Transport,06/07/2015,Subscriptions to Pro,Group Human Resource,BUSINESS DISABILITY FORUM,2000006706,20400,#,SE1 2NY,
Department for Transport,Department for Transport,06/07/2015,Support Services,"Motoring, Freight & London",Highways England,2000006699,4941.45,#,B1 1RN,
Department for Transport,Department for Transport,06/07/2015,Support Services,Aviation,CORNWALL AIRPORT LTD,2000006714,30864,#,TR8 4RQ,
Department for Transport,Department for Transport,06/07/2015,Transport  Consult,Rail Strategy & Funding,OVE ARUP & PARTNERS,2000006709,34389.6,#,NE1 3PL,
Department for Transport,Department for Transport,07/07/2015,Agency Staff Costs,Group Assurance,Badenoch & Clark c/o Lauren Rogers,2000006786,3002.69,#,B37 7YE,
Department for Transport,Department for Transport,07/07/2015,Agency Staff Costs,Local,BROOK STREET (UK) LIMITED,2000006797,710.64,#,AL1 4JB,
Department for Transport,Department for Transport,07/07/2015,Agency Staff Costs,Local,BROOK STREET (UK) LIMITED,2000006797,636.25,#,AL1 4JB,
Department for Transport,Department for Transport,07/07/2015,Agency Staff Costs,Motoring Services,CAPITA BUSINESS SERVICES LTD,2000006782,4385.33,#,DL1 9HN,
Department for Transport,Department for Transport,07/07/2015,Agency Staff Costs,Group Finance,Insight MSC Limited,2000006826,87012.77,#,WC1H 9LT,
Department for Transport,Department for Transport,07/07/2015,Agency Staff Costs,Integrated Delivery,CAPITA BUSINESS SERVICES LTD,2000006782,71619.12,#,DL1 9HN,
Department for Transport,Department for Transport,07/07/2015,Agency Staff Costs,Integrated Delivery,CAPITA BUSINESS SERVICES LTD,2000006782,5815.07,#,DL1 9HN,
Department for Transport,Department for Transport,07/07/2015,Agency Staff Costs,Environment & International Transport Analysis,CAPITA BUSINESS SERVICES LTD,2000006782,3532.74,#,DL1 9HN,
Department for Transport,Department for Transport,07/07/2015,Agency Staff Costs,Integrated Delivery,CAPITA BUSINESS SERVICES LTD,2000006782,4459.26,#,DL1 9HN,
Department for Transport,Department for Transport,07/07/2015,Agency Staff Costs,Group Finance,CAPITA BUSINESS SERVICES LTD,2000006782,1093.5,#,DL1 9HN,
Department for Transport,Department for Transport,07/07/2015,Agency Staff Costs,Group Finance,Experis Ltd,2000006788,3850.32,#,EC2M 2RB,
Department for Transport,Department for Transport,07/07/2015,Agency Staff Costs,Rail Franchising,MICHAEL PAGE INTERNATIONAL,2000006808,648,#,SL1 3SA,
Department for Transport,Department for Transport,07/07/2015,Cap Grt Pri Sec-Cos.,"Policy, Legislation and Funding",Eversheds LLP,2000006822,27001,xxxxxxxx,CF10 5BT,
Department for Transport,Department for Transport,07/07/2015,Cap Grt Pri Sec-Cos.,Network Rail Sponsorship,Network Rail Infstrcture (Treasury),2000006775,145000000,#,NW1 2DN,
Department for Transport,Department for Transport,07/07/2015,Computer equipment,Motoring Services,SOFTWARE BOX LTD,2000006793,3249.36,#,YO61 1ET,
Department for Transport,Department for Transport,07/07/2015,CurrGrtPriSec-P&NPIS,Local,CORNWALL MOBILITY CENTRE LTD,2000006798,58160,Mobility Centres 2015-16 Q2,TR1 3LJ,
Department for Transport,Department for Transport,07/07/2015,CurrGrtPriSec-P&NPIS,Local,DERBY HOSPITALS,2000006799,55627,Mobility Centres 2015-16 Q2,DE1 2QY,
Department for Transport,Department for Transport,07/07/2015,CurrGrtPriSec-P&NPIS,Local,DISABLED LIVING CENTRE,2000006800,35680,Mobility Centres 2015-16 Q2,BS16 2QQ,
Department for Transport,Department for Transport,07/07/2015,CurrGrtPriSec-P&NPIS,Local,EAST ANGLIAN DRIVEABILITY,2000006802,89440,Mobility Centres 2015-16 Q2,IP24 3RL,
Department for Transport,Department for Transport,07/07/2015,CurrGrtPriSec-P&NPIS,Local,FORUM OF MOBILITY CENTRES,2000006812,25000,Mobility Centres 2015-16 Q2,IP24 3RL,
Department for Transport,Department for Transport,07/07/2015,CurrGrtPriSec-P&NPIS,Local,HERTFORDSHIRE ACTION ON DISABILITY,2000006810,37760,Mobility Centres 2015-16 Q2,AL7 4DD,
Department for Transport,Department for Transport,07/07/2015,CurrGrtPriSec-P&NPIS,Local,KENT COMMUNITY HEALTH NHS TRUST,2000006780,69840,Mobility Centres 2015-16 Q2,CT1 3NG,
Department for Transport,Department for Transport,07/07/2015,CurrGrtPriSec-P&NPIS,Local,N. West Driving Assessment Service,2000006778,60480,Mobility Centres 2015-16 Q2,WA11 9SJ,
Department for Transport,Department for Transport,07/07/2015,CurrGrtPriSec-P&NPIS,Local,NORTHUMBERLAND TYNE & WEAR NHS TRUS,2000006803,43040,Mobility Centres 2015-16 Q2,NE3 3XT,
Department for Transport,Department for Transport,07/07/2015,CurrGrtPriSec-P&NPIS,Local,QUEEN ELIZABETHS FOUNDATION,2000006804,84987,Mobility Centres 2015-16 Q2,SM5 4NR,
Department for Transport,Department for Transport,07/07/2015,CurrGrtPriSec-P&NPIS,Local,REGIONAL DRIVING ASSESSMENT CENTRE,2000006805,144000,Mobility Centres 2015-16 Q2,B8 1AU,
Department for Transport,Department for Transport,07/07/2015,CurrGrtPriSec-P&NPIS,Local,WESSEX DRIVEABILITY,2000006806,54720,Mobility Centres 2015-16 Q2,SO17 2LJ,
Department for Transport,Department for Transport,07/07/2015,CurrGrtPriSec-P&NPIS,Local,WILLIAM MERRITT DISABLED LIVING,2000006807,63200,Mobility Centres 2015-16 Q2,LS12 3QE,
Department for Transport,Department for Transport,07/07/2015,HR Consultancy,Group Human Resource,ATOS IT Services UK Ltd,2000006785,589.06,#,WV10 6UH,
Department for Transport,Department for Transport,07/07/2015,Investigation Servic,Rail Accident Investigation Branch,ITS Testing Services UK Ltd,2000006789,18630,#,M1 2PW,
Department for Transport,Department for Transport,07/07/2015,IT Consultancy,"Group Services, Change and Capability",Analystic Limited,2000006809,11424,#,SE1 1EN,
Department for Transport,Department for Transport,07/07/2015,IT Ser Running Costs,General Counsel's Office,Actica Consulting Limited,2000006813,1020,#,GU1 4AF,
Department for Transport,Department for Transport,07/07/2015,IT Ser Running Costs,"Energy, Technology and International",TRIAD GROUP PLC,2000006795,13162.5,#,GU7 1XE,
Department for Transport,Department for Transport,07/07/2015,IT Ser Running Costs,"Energy, Technology and International",TRIAD GROUP PLC,2000006795,6000,#,GU7 1XE,
Department for Transport,Department for Transport,07/07/2015,Legal Consultancy,Major Projects & Growth,DLA PIPER UK LLP,2000006787,23860.08,#,M2 3DL,
Department for Transport,Department for Transport,07/07/2015,Legal Consultancy,Major Projects & Growth,DLA PIPER UK LLP,2000006787,7594.56,#,M2 3DL,
Department for Transport,Department for Transport,07/07/2015,Legal Consultancy,"Policy, Legislation and Funding",xxxxxx,2000006817,11808,#,xxxxxx,
Department for Transport,Department for Transport,07/07/2015,Legal Consultancy,"Policy, Legislation and Funding",xxxxxx,2000006818,7200,#,xxxxxx,
Department for Transport,Department for Transport,07/07/2015,Legal Consultancy,"Policy, Legislation and Funding",xxxxxx,2000006796,262260.6,#,SE1 9BB,
Department for Transport,Department for Transport,07/07/2015,Prog&ProjMgmt Consul,Motoring Services,Grange Car Wash,2000006824,1620,#,SE1 3AD,
Department for Transport,Department for Transport,07/07/2015,Recruitment,"Group Services, Change and Capability",PENNA PLC,2000006792,8937.5,#,EC4M 7RD,
Department for Transport,Department for Transport,07/07/2015,Recruitment,"Group Services, Change and Capability",PENNA PLC,2000006792,-2750,#,EC4M 7RD,
Department for Transport,Department for Transport,07/07/2015,Research,"Motoring, Freight & London",Market & Opinion Research,2000006781,53205.47,#,SE1 1FY,
Department for Transport,Department for Transport,07/07/2015,Secondments,"Motoring, Freight & London",SUFFOLK COUNTY COUNCIL (INVOICES),2000006815,6388.45,#,IP1 2BX,
Department for Transport,Department for Transport,07/07/2015,Secondments,"Motoring, Freight & London",LOW CARBON VEHICLE PARTNERSHIP,2000006814,6055.62,#,SW1H 9JJ,
Department for Transport,Department for Transport,07/07/2015,Support Services,Aviation,TAG FARNBOROUGH AIRPORT LTD,2000006794,30863.99,#,GU14 6XA,
Department for Transport,Department for Transport,07/07/2015,Support Services,Transport Security Co-ordination and Response,Government Legal Department,2000006776,24.6,#,WC2B 4TS,
Department for Transport,Department for Transport,07/07/2015,Support Services,Transport Security Co-ordination and Response,Government Legal Department,2000006776,10.6,#,WC2B 4TS,
Department for Transport,Department for Transport,07/07/2015,Support Services,Aviation,FCO FOREIGN & COMMONWEALTH OFFICE,2000006779,9006.41,#,MK10 1PX,
Department for Transport,Department for Transport,07/07/2015,Support Services,"Policy, Legislation and Funding",HOUSE OF COMMONS,2000006777,5085.85,#,SW1A 0AA,
Department for Transport,Department for Transport,07/07/2015,Training,"Motoring, Freight & London",Best Western Premier Leyland Hotel,2000006783,6044.16,#,PR25 4JX,
Department for Transport,Department for Transport,07/07/2015,Transport  Consult,Major Projects & Growth,PARSONS BRINCKERHOFF LTD,2000006791,3295.08,#,NE4 7YQ,
Department for Transport,Department for Transport,07/07/2015,Transport  Consult,Major Projects & Growth,PARSONS BRINCKERHOFF LTD,2000006791,5601.64,#,NE4 7YQ,
Department for Transport,Department for Transport,07/07/2015,Transport  Consult,Major Projects & Growth,PARSONS BRINCKERHOFF LTD,2000006791,2636.06,#,NE4 7YQ,
Department for Transport,Department for Transport,07/07/2015,Transport  Consult,Rail Commercial & Programme Office,ATKINS LTD (TRANSPORT PLANNING),2000006784,15729.6,#,WR5 1TX,
Department for Transport,Department for Transport,07/07/2015,Transport  Consult,Rail Commercial & Programme Office,ATKINS LTD (TRANSPORT PLANNING),2000006784,13179.6,#,WR5 1TX,
Department for Transport,Department for Transport,07/07/2015,Transport  Consult,"Policy, Legislation and Funding",xxxxxx,2000006825,2280,#,xxxxxx,
Department for Transport,Department for Transport,07/07/2015,Transport  Consult,Rail Commercial & Programme Office,PARSONS BRINCKERHOFF LTD,2000006791,2123.32,#,NE4 7YQ,
Department for Transport,Department for Transport,07/07/2015,Transport  Consult,Rail Commercial & Programme Office,PARSONS BRINCKERHOFF LTD,2000006791,26368.68,#,NE4 7YQ,
Department for Transport,Department for Transport,07/07/2015,Transport  Consult,Rail Commercial & Programme Office,PARSONS BRINCKERHOFF LTD,2000006791,7285.02,#,NE4 7YQ,
Department for Transport,Department for Transport,07/07/2015,Transport  Consult,Rail Commercial & Programme Office,PARSONS BRINCKERHOFF LTD,2000006791,24413.18,#,NE4 7YQ,
Department for Transport,Department for Transport,07/07/2015,Transport  Consult,Rail Commercial & Programme Office,PARSONS BRINCKERHOFF LTD,2000006791,18330.98,#,NE4 7YQ,
Department for Transport,Department for Transport,07/07/2015,Transport  Consult,Rail Commercial & Programme Office,PARSONS BRINCKERHOFF LTD,2000006791,15865.44,#,NE4 7YQ,
Department for Transport,Department for Transport,07/07/2015,Transport  Consult,Rail Commercial & Programme Office,PARSONS BRINCKERHOFF LTD,2000006791,9517.33,#,NE4 7YQ,
Department for Transport,Department for Transport,07/07/2015,Transport  Consult,Rail Commercial & Programme Office,PARSONS BRINCKERHOFF LTD,2000006791,7020.01,#,NE4 7YQ,
Department for Transport,Department for Transport,07/07/2015,Transport  Consult,Rail Commercial & Programme Office,PARSONS BRINCKERHOFF LTD,2000006791,2521.53,#,NE4 7YQ,
Department for Transport,Department for Transport,07/07/2015,Transport  Consult,Rail Commercial & Programme Office,PARSONS BRINCKERHOFF LTD,2000006791,1648.22,#,NE4 7YQ,
Department for Transport,Department for Transport,07/07/2015,Transport  Consult,Aviation,xxxxxx,2000006821,2100,#,xxxxxx,
Department for Transport,Department for Transport,07/07/2015,Travel Expenses UK,Air Accident Investigation Branch,REDFERN TRAVEL LTD,2000006816,10278.32,Redfern June 2015,BD1 3AZ,
Department for Transport,Department for Transport,07/07/2015,Treasury Solicitors,Transport Security Co-ordination and Response,Government Legal Department,2000006776,4795.11,#,WC2B 4TS,
Department for Transport,Department for Transport,07/07/2015,Treasury Solicitors,Transport Security Co-ordination and Response,Government Legal Department,2000006776,4491.84,#,WC2B 4TS,
Department for Transport,Department for Transport,08/07/2015,Agency Staff Costs,Group Human Resource,CAPITA BUSINESS SERVICES LTD,2000006860,1375.97,#,DL1 9HN,
Department for Transport,Department for Transport,08/07/2015,Agency Staff Costs,Motoring Services,CAPITA BUSINESS SERVICES LTD,2000006860,4926.16,#,DL1 9HN,
Department for Transport,Department for Transport,08/07/2015,Agency Staff Costs,Group Finance,CAPITA BUSINESS SERVICES LTD,2000006860,1985.34,#,DL1 9HN,
Department for Transport,Department for Transport,08/07/2015,Agency Staff Costs,Group Finance,NETWORKERS INTERNATIONAL (UK) PLC,2000006872,861,#,BR1 1HP,
Department for Transport,Department for Transport,08/07/2015,Agency Staff Costs,Rail Franchising,Badenoch & Clark c/o Lauren Rogers,2000006862,3249.6,#,B37 7YE,
Department for Transport,Department for Transport,08/07/2015,Agency Staff Costs,Rail Franchising,Badenoch & Clark c/o Lauren Rogers,2000006862,4448.15,#,B37 7YE,
Department for Transport,Department for Transport,08/07/2015,Agency Staff Costs,HS2 Finance and Commercial,CAPITA BUSINESS SERVICES LTD,2000006860,30492.47,#,DL1 9HN,
Department for Transport,Department for Transport,08/07/2015,Cap Grt Pri Sec-Cos.,"Policy, Legislation and Funding",Eversheds LLP,2000006881,1724464.78,#,CF10 5BT,
Department for Transport,Department for Transport,08/07/2015,Cap Grt Pri Sec-Cos.,"Policy, Legislation and Funding",Eversheds LLP,2000006881,360000,xxxxxx,CF10 5BT,
Department for Transport,Department for Transport,08/07/2015,Car Tax & Insurance,Motoring Services,Jule Motors,2000006878,453.3,#,WV9 5DA,
Department for Transport,Department for Transport,08/07/2015,Cars Fuel,Motoring Services,ALLSTAR BUSINESS SOLUTIONS LIMITED,2000006861,9946.66,#,SN5 6PS,
Department for Transport,Department for Transport,08/07/2015,Investigation Servic,Motoring Services,CH&I Associates Ltd,2000006880,1642.68,#,SK11 8AA,
Department for Transport,Department for Transport,08/07/2015,Investigation Servic,Motoring Services,CH&I Associates Ltd,2000006880,2910.96,#,SK11 8AA,
Department for Transport,Department for Transport,08/07/2015,IT Ser Running Costs,Group Communications,RACKSPACE LTD,2000006869,954.69,#,UB3 4AZ,
Department for Transport,Department for Transport,08/07/2015,Prog&ProjMgmt Consul,Motoring Services,Kier Construction Ltd,2000006883,5875.72,#,ME20 6XS,
Department for Transport,Department for Transport,08/07/2015,Prog&ProjMgmt Consul,Project Sponsorship,PARSONS BRINCKERHOFF LTD,2000006868,8656.5,#,NE4 7YQ,
Department for Transport,Department for Transport,08/07/2015,Prog&ProjMgmt Consul,Project Sponsorship,PARSONS BRINCKERHOFF LTD,2000006868,1505.47,#,NE4 7YQ,
Department for Transport,Department for Transport,08/07/2015,Prog&ProjMgmt Consul,Project Sponsorship,PARSONS BRINCKERHOFF LTD,2000006868,20018.03,#,NE4 7YQ,
Department for Transport,Department for Transport,08/07/2015,Prog&ProjMgmt Consul,Project Sponsorship,PARSONS BRINCKERHOFF LTD,2000006868,158806.68,#,NE4 7YQ,
Department for Transport,Department for Transport,08/07/2015,Publications for Res,Maritime,CREATIVE CHOICE CIC,2000006874,849,#,SW1H 0DJ,
Department for Transport,Department for Transport,08/07/2015,Research,Analysis & Strategy,SAMI Consulting Ltd,2000006882,1560,#,RG14 1DY,
Department for Transport,Department for Transport,08/07/2015,Research,Local,HaskoningDHV UK Limited,2000006884,32000,#,PE3 8DW,
Department for Transport,Department for Transport,08/07/2015,Research,Local,INTEGRATED TRANSPORT PLANNING LTD,2000006864,7927.5,#,MK9 3BP,
Department for Transport,Department for Transport,08/07/2015,Support Services,Aviation,EXETER & DEVON AIRPORT LIMITED,2000006863,30864,#,EX5 2BD,
Department for Transport,Department for Transport,08/07/2015,Support Services,Aviation,MET OFFICE,2000006866,84151.06,#,EX1 3PB,
Department for Transport,Department for Transport,08/07/2015,Support Services,Aviation,NEWCASTLE INTERNATIONAL AIRPORT LTD,2000006867,30864,#,NE13 8BZ,
Department for Transport,Department for Transport,08/07/2015,Training,Motoring Services,Global Knowledge Network,100010470,-2100,#,RG41 2GY,
Department for Transport,Department for Transport,08/07/2015,Training,Motoring Services,Global Knowledge Network,100010470,2100,#,RG41 2GY,
Department for Transport,Department for Transport,08/07/2015,Transport  Consult,Aviation,JACOBS UK LTD,2000006865,35238.79,#,G2 7HX,
Department for Transport,Department for Transport,08/07/2015,Transport  Consult,Aviation,xxxxxx,2000006886,1750,#,xxxxxx,
Department for Transport,Department for Transport,08/07/2015,Treasury Solicitors,General Counsel's Office,Government Legal Department,2000006858,39278.28,#,WC2B 4TS,
Department for Transport,Department for Transport,08/07/2015,Treasury Solicitors,General Counsel's Office,Government Legal Department,2000006858,-13942.68,#,WC2B 4TS,
Department for Transport,Department for Transport,09/07/2015,Agency Staff Costs,Analysis & Strategy,CAPITA BUSINESS SERVICES LTD,2000006920,3329.64,#,DL1 9HN,
Department for Transport,Department for Transport,09/07/2015,Agency Staff Costs,Analysis & Strategy,CAPITA BUSINESS SERVICES LTD,2000006920,2517.72,#,DL1 9HN,
Department for Transport,Department for Transport,09/07/2015,Agency Staff Costs,Rail Commercial & Programme Office,CAPITA BUSINESS SERVICES LTD,2000006920,8932.31,#,DL1 9HN,
Department for Transport,Department for Transport,09/07/2015,Agency Staff Costs,Rail Commercial & Programme Office,CAPITA BUSINESS SERVICES LTD,2000006920,4913.29,#,DL1 9HN,
Department for Transport,Department for Transport,09/07/2015,Agency Staff Costs,Major Projects & Growth,CAPITA BUSINESS SERVICES LTD,2000006920,3961.14,#,DL1 9HN,
Department for Transport,Department for Transport,09/07/2015,Agency Staff Costs,Group Finance,CAPITA BUSINESS SERVICES LTD,2000006920,2040.24,#,DL1 9HN,
Department for Transport,Department for Transport,09/07/2015,Agency Staff Costs,Network Rail Sponsorship,CAPITA BUSINESS SERVICES LTD,2000006920,1371.66,#,DL1 9HN,
Department for Transport,Department for Transport,09/07/2015,Agency Staff Costs,Integrated Delivery,CAPITA BUSINESS SERVICES LTD,2000006920,4532.28,#,DL1 9HN,
Department for Transport,Department for Transport,09/07/2015,Agency Staff Costs,Network Rail Sponsorship,CAPITA BUSINESS SERVICES LTD,2000006920,1165.54,#,DL1 9HN,
Department for Transport,Department for Transport,09/07/2015,Agency Staff Costs,Integrated Delivery,CAPITA BUSINESS SERVICES LTD,2000006920,9557.52,#,DL1 9HN,
Department for Transport,Department for Transport,09/07/2015,Agents Fees,Group Finance,RAILWAYS PENSION MANAGEMENT LT,2000006928,589807.58,#,DL3 6EH,
Department for Transport,Department for Transport,09/07/2015,Agents Fees,Group Finance,RAILWAYS PENSION MANAGEMENT LT,2000006928,192288.5,#,DL3 6EH,
Department for Transport,Department for Transport,09/07/2015,Cap Grt Pri Sec-Cos.,"Policy, Legislation and Funding",Eversheds LLP,2000006935,425035.16,ADDITIONAL COSTS AND FEES,CF10 5BT,
Department for Transport,Department for Transport,09/07/2015,Cap Grt Pri Sec-Cos.,"Policy, Legislation and Funding",Eversheds LLP,2000006935,320000,xxxxxx,CF10 5BT,
Department for Transport,Department for Transport,09/07/2015,Management Consultan,Group Finance,Boss Cyber Limited,2000006936,14841.6,#,BA2 6AG,
Department for Transport,Department for Transport,09/07/2015,Net Pay,Motoring Services,DFT ONE TIME VENDOR,2000006937,1920.96,Death in Service,SW1P 4DR,
Department for Transport,Department for Transport,09/07/2015,Other Professional F,Group Finance,Arvato Ltd,2000006932,224955,#,HU10 6FE,
Department for Transport,Department for Transport,09/07/2015,Printing,Air Accident Investigation Branch,WILLIAMS LEA LIMITED,2000006930,2028.24,#,NR3 1PD,
Department for Transport,Department for Transport,09/07/2015,Research,"Energy, Technology and International",OVE ARUP & PARTNERS,2000006924,38633.01,#,NE1 3PL,
Department for Transport,Department for Transport,09/07/2015,Research,Transport Security Co-ordination and Response,DEFENCE SCIENCE & TECHNOLOGY,2000006922,15000,#,PO14 9HL,
Department for Transport,Department for Transport,09/07/2015,Research,"Motoring, Freight & London",TWI Ltd,2000006933,26500,#,CB21 6AL,
Department for Transport,Department for Transport,09/07/2015,Small Software,Group Communications,THE PRESS ASSOCIATION LTD,2000006929,916.55,#,SW1V 1A,
Department for Transport,Department for Transport,09/07/2015,Storage & Distributi,Group Communications,WILLIAMS LEA LIMITED,2000006930,14942.19,#,NR3 1PD,
Department for Transport,Department for Transport,09/07/2015,Support Services,Group Finance,DD ACCRAILWAY PENS TRUSTEE,2000006926,1166.39,#,DL3 6XR,
Department for Transport,Department for Transport,09/07/2015,Support Services,Group Finance,EXEL UK LIMITED (STAFF TRAVEL),2000006927,540.06,#,RG12 1AN,
Department for Transport,Department for Transport,09/07/2015,Support Services,Group Finance,EXEL UK LIMITED (STAFF TRAVEL),2000006927,236887.41,#,RG12 1AN,
Department for Transport,Department for Transport,09/07/2015,Support Services,Group Procurement and Property,Thompsons Solicitors,2000006934,126118.6,#,HA1 3AP,
Department for Transport,Department for Transport,09/07/2015,Support Services,Group Procurement and Property,Thompsons Solicitors,2000006934,66672.5,INDUSTRIAL INJURY CLAIM HANDLING,HA1 3AP,
Department for Transport,Department for Transport,09/07/2015,Training,Local,THE FARADAY PARTNERSHIP,2000006923,1650,#,NW1 2SD,
Department for Transport,Department for Transport,10/07/2015,Agency Staff Costs,Group Human Resource,CAPITA BUSINESS SERVICES LTD,2000006969,1965.66,#,DL1 9HN,
Department for Transport,Department for Transport,10/07/2015,Agency Staff Costs,Group Finance,CAPITA BUSINESS SERVICES LTD,2000006969,2745.06,#,DL1 9HN,
Department for Transport,Department for Transport,10/07/2015,Agency Staff Costs,Motoring Services,CAPITA BUSINESS SERVICES LTD,2000006969,4926.16,#,DL1 9HN,
Department for Transport,Department for Transport,10/07/2015,Agency Staff Costs,Group Finance,CAPITA BUSINESS SERVICES LTD,2000006969,4801.56,#,DL1 9HN,
Department for Transport,Department for Transport,10/07/2015,Agency Staff Costs,Group Finance,CAPITA BUSINESS SERVICES LTD,2000006969,2810.64,#,DL1 9HN,
Department for Transport,Department for Transport,10/07/2015,Agency Staff Costs,Group Finance,CAPITA BUSINESS SERVICES LTD,2000006969,6379.06,#,DL1 9HN,
Department for Transport,Department for Transport,10/07/2015,Agency Staff Costs,Network Rail Sponsorship,CAPITA BUSINESS SERVICES LTD,2000006969,832,#,DL1 9HN,
Department for Transport,Department for Transport,10/07/2015,Agency Staff Costs,Integrated Delivery,CAPITA BUSINESS SERVICES LTD,2000006969,4930.86,#,DL1 9HN,
Department for Transport,Department for Transport,10/07/2015,Agency Staff Costs,Integrated Delivery,CAPITA BUSINESS SERVICES LTD,2000006969,26855.12,#,DL1 9HN,
Department for Transport,Department for Transport,10/07/2015,Agency Staff Costs,Integrated Delivery,CAPITA BUSINESS SERVICES LTD,2000006969,4459.26,#,DL1 9HN,
Department for Transport,Department for Transport,10/07/2015,Agency Staff Costs,HS2 Finance and Commercial,CAPITA BUSINESS SERVICES LTD,2000006969,4918.14,#,DL1 9HN,
Department for Transport,Department for Transport,10/07/2015,Agency Staff Costs,Integrated Delivery,CAPITA BUSINESS SERVICES LTD,2000006969,4459.26,#,DL1 9HN,
Department for Transport,Department for Transport,10/07/2015,Agency Staff Costs,Integrated Delivery,CAPITA BUSINESS SERVICES LTD,2000006969,9749.28,#,DL1 9HN,
Department for Transport,Department for Transport,10/07/2015,Agency Staff Costs,Integrated Delivery,CAPITA BUSINESS SERVICES LTD,2000006969,2160.54,#,DL1 9HN,
Department for Transport,Department for Transport,10/07/2015,Agency Staff Costs,Group Finance,CAPITA BUSINESS SERVICES LTD,2000006969,1093.5,#,DL1 9HN,
Department for Transport,Department for Transport,10/07/2015,Agency Staff Costs,Rail Commercial & Programme Office,CAPITA BUSINESS SERVICES LTD,2000006969,2650.14,#,DL1 9HN,
Department for Transport,Department for Transport,10/07/2015,Agency Staff Costs,Integrated Delivery,CAPITA BUSINESS SERVICES LTD,2000006969,2680.14,#,DL1 9HN,
Department for Transport,Department for Transport,10/07/2015,Agency Staff Costs,Rail Franchising,MICHAEL PAGE INTERNATIONAL,2000006983,720,#,SL1 3SA,
Department for Transport,Department for Transport,10/07/2015,Cap Grt Pri Sec-Cos.,"Energy, Technology and International",London Fire Brigade,2000007001,581755,London FB #581755,SE1 0LL,
Department for Transport,Department for Transport,10/07/2015,Car Hire and Leasing,Air Accident Investigation Branch,Victoria Gosden Travel Ltd,2000006996,518.4,#,GU14 8NP,
Department for Transport,Department for Transport,10/07/2015,Financial Consultanc,Group Procurement and Property,Crawford & Co Adjusters (UK) Ltd,2000006997,17401.2,#,B2 2PF,
Department for Transport,Department for Transport,10/07/2015,IT Equip Cap Cost,Air Accident Investigation Branch,BASSOM COMPUTER CONSULTANCY,2000006971,10427.08,#,GU9 8LS,
Department for Transport,Department for Transport,10/07/2015,IT Ser Running Costs,Group Communications,RACKSPACE LTD,2000006980,940.26,#,UB3 4AZ,
Department for Transport,Department for Transport,10/07/2015,IT Ser Running Costs,Group Finance,NTT Data UK Limited,2000006998,5022,#,EC3V 3DG,
Department for Transport,Department for Transport,10/07/2015,Other Advertising,Local,PENNA COMMUNICATIONS,2000006987,8800.1,#,EC4M 7RD,
Department for Transport,Department for Transport,10/07/2015,Printing,Group Communications,WILLIAMS LEA LIMITED,2000006991,6944.4,#,NR3 1PD,
Department for Transport,Department for Transport,10/07/2015,Prog&ProjMgmt Consul,Project Sponsorship,PARSONS BRINCKERHOFF LTD,2000006979,40323.12,#,NE4 7YQ,
Department for Transport,Department for Transport,10/07/2015,Property Maintenance,Rail Accident Investigation Branch,Interserve,2000006989,898.26,#,B70 1DA,
Department for Transport,Department for Transport,10/07/2015,Publications for Res,Group Human Resource,CREATIVE CHOICE CIC,2000006990,2025,#,SW1H 0DJ,
Department for Transport,Department for Transport,10/07/2015,Publications for Res,Rail Franchising,CREATIVE CHOICE CIC,2000006990,1320,#,SW1H 0DJ,
Department for Transport,Department for Transport,10/07/2015,Publications for Res,Rail Franchising,CREATIVE CHOICE CIC,2000006990,870,#,SW1H 0DJ,
Department for Transport,Department for Transport,10/07/2015,Research,Rail Strategy & Funding,PARSONS BRINCKERHOFF LTD,2000006979,2872.02,#,NE4 7YQ,
Department for Transport,Department for Transport,10/07/2015,Secondments,"Motoring, Freight & London",LOW CARBON VEHICLE PARTNERSHIP,2000006986,19140.71,#,SW1H 9JJ,
Department for Transport,Department for Transport,10/07/2015,Security,Rail Accident Investigation Branch,Defence Security Systems Ltd,2000006970,810,#,B69 2DG,
Department for Transport,Department for Transport,10/07/2015,Security,Aviation,Triforce Security Solutions Ltd,2000006999,1640,#,GU52 0RD,
Department for Transport,Department for Transport,10/07/2015,Storage & Distributi,Group Procurement and Property,Iron Mountain (UK) Ltd,2000006976,2159.43,#,EH54 7DF,
Department for Transport,Department for Transport,10/07/2015,Training,Air Accident Investigation Branch,BOND SOLON TRAINING LTD,2000006972,2196.59,#,B72 1SX,
Department for Transport,Department for Transport,10/07/2015,Training,Motoring Services,CAPITA GROUP PLC,2000006974,2316,#,EC2M 5NS,
Department for Transport,Department for Transport,10/07/2015,Transport  Consult,Rail Commercial & Programme Office,OVE ARUP & PARTNERS,2000006978,30257.66,#,NE1 3PL,
Department for Transport,Department for Transport,10/07/2015,Travel Expenses UK,Integrated Delivery,RAIL STAFF TRAVEL LTD,2000006984,3007.78,#,WC1N 1BY,
Department for Transport,Department for Transport,10/07/2015,Travel Expenses UK,Rail Accident Investigation Branch,A1 RUSHMOOR RADIO TAXIS LTD,2000006993,603.5,#,GU11 1SJ,
Department for Transport,Department for Transport,13/07/2015,Agency Staff Costs,Group Assurance,Badenoch & Clark c/o Lauren Rogers,2000007079,3753.36,#,B37 7YE,
Department for Transport,Department for Transport,13/07/2015,Agency Staff Costs,Integrated Delivery,NETWORKERS INTERNATIONAL (UK) PLC,2000007098,3391.26,#,BR1 1HP,
Department for Transport,Department for Transport,13/07/2015,Agency Staff Costs,Group Finance,CAPITA BUSINESS SERVICES LTD,2000007072,2040.24,#,DL1 9HN,
Department for Transport,Department for Transport,13/07/2015,Agency Staff Costs,HS2 Finance and Commercial,BROOK STREET (UK) LIMITED,2000007093,1027.55,#,AL1 4JB,
Department for Transport,Department for Transport,13/07/2015,Agency Staff Costs,HS2 Finance and Commercial,BROOK STREET (UK) LIMITED,2000007093,520.81,#,AL1 4JB,
Department for Transport,Department for Transport,13/07/2015,Agency Staff Costs,Rail Infrastructure Safety & Security,NETWORKERS INTERNATIONAL (UK) PLC,2000007098,4159.58,#,BR1 1HP,
Department for Transport,Department for Transport,13/07/2015,Agency Staff Costs,HS2 Finance and Commercial,Veredus (trading name for,2000007108,29382.13,#,DL1 9HN,
Department for Transport,Department for Transport,13/07/2015,Agents Fees,Strategic Roads & Smart Ticketing,NORTHGATE PUBLIC SERVICES (UK) LTD,2000007114,179100,#,HP2 4NW,
Department for Transport,Department for Transport,13/07/2015,Building Service Cha,Group Procurement and Property,Amey Community Ltd,2000007110,33179.19,#,OX4 4DQ,
Department for Transport,Department for Transport,13/07/2015,Car Hire and Leasing,Group Finance,Enterprise Rent-A-Car,2000007104,7995.62,Enterprise - Car Hire - June 2015,TW20 9FB,
Department for Transport,Department for Transport,13/07/2015,Cars Maintenance,Motoring Services,ATS Euromaster Ltd,2000007073,984.46,#,EN11 1HH,
Department for Transport,Department for Transport,13/07/2015,Curr Grt Other CG Bo,Major Projects & Growth,TECHNOLOGY STRATEGY BOARD,2000007099,205000,INVCN001172,SN2 1JF,
Department for Transport,Department for Transport,13/07/2015,CurrGrt Las in AEF/A,Local,LONDON BOROUGH OF BRENT,2000007116,43584,London Borough of Brent,HA9 7NB,
Department for Transport,Department for Transport,13/07/2015,Eurocontrol Contr,Aviation,EUROCONTROL,2000007039,9026873.8,Euro Payment to Eurocontrol,1130,
Department for Transport,Department for Transport,13/07/2015,Grt Aid to NDPBs,Network Rail Sponsorship,NETWORK RAIL INFRASTRUCTURE LTD,2000007100,285418.51,WP3&5 - Apr#15,M60 7WY,
Department for Transport,Department for Transport,13/07/2015,Home Phone Charges,Rail Accident Investigation Branch,MAIN-TEL,2000007086,628.88,#,TS17 0AQ,
Department for Transport,Department for Transport,13/07/2015,IT Ser Running Costs,Group Communications,Intelogy Limited,2000007107,1554,#,TW16 7DY,
Department for Transport,Department for Transport,13/07/2015,Legal Consultancy,Rail Franchising,Eversheds LLP,2000007103,3661.2,#,EC2V 7WS,
Department for Transport,Department for Transport,13/07/2015,Legal Consultancy,Aviation,LANDMARK CHAMBERS,2000007085,7368,#,EC4A 2HG,
Department for Transport,Department for Transport,13/07/2015,Legal Consultancy,Aviation,LANDMARK CHAMBERS,2000007085,6630,#,EC4A 2HG,
Department for Transport,Department for Transport,13/07/2015,Legal Consultancy,Aviation,LANDMARK CHAMBERS,2000007085,1740,#,EC4A 2HG,
Department for Transport,Department for Transport,13/07/2015,Machinery Rental,Air Accident Investigation Branch,CANON (UK) LTD,2000007081,453.48,#,RH2 8BF,
Department for Transport,Department for Transport,13/07/2015,Maintenance Other,Motoring Services,ARVAL,2000007074,857.4,#,SN5 6PE,
Department for Transport,Department for Transport,13/07/2015,Media & Press,Group Communications,"GORKANA GROUP LTD (""GCL"")",2000007105,5002.01,#,EC1Y 8QE,
Department for Transport,Department for Transport,13/07/2015,Minor Purchases,Air Accident Investigation Branch,TK WATER SYSTEMS,2000007090,720,#,SL5 7NT,
Department for Transport,Department for Transport,13/07/2015,Other Professional F,Motoring Services,GOVERNMENT ACTUARY'S DEPARTMENT,2000007112,1842,#,EC4A 1AB,
Department for Transport,Department for Transport,13/07/2015,Publicity,Group Communications,ABBOTT MEAD VICKERS BBDO LTD,2000007077,5009,#,NW1 5QE,
Department for Transport,Department for Transport,13/07/2015,Purchasing Card Char,Group Finance,BARCLAYS BANK PLC,2000007080,5094.6,Barclays - DFT/Rail Group July 2015,NN4 7SG,
Department for Transport,Department for Transport,13/07/2015,Purchasing Card Char,Group Finance,BARCLAYS BANK PLC,2000007080,1129.79,Barclays - DFT/Rail Group July 2015,NN4 7SG,
Department for Transport,Department for Transport,13/07/2015,Rates,Air Accident Investigation Branch,VODAFONE LTD,2000007094,1576.84,#,RG14 5FF,
Department for Transport,Department for Transport,13/07/2015,Research,"Motoring, Freight & London",ATKINS LTD (TRANSPORT PLANNING),2000007078,13401.5,#,WR5 1TX,
Department for Transport,Department for Transport,13/07/2015,Research Grant-PS,Major Projects & Growth,Rail Safety & Standard Board,2000007097,2325000,InvOP/I005204 Q1,EC2M 2RB,
Department for Transport,Department for Transport,13/07/2015,Security,General Counsel's Office,FCO SERVICES,2000007111,-10418.4,#,MK19 7BH,
Department for Transport,Department for Transport,13/07/2015,Security,General Counsel's Office,FCO SERVICES,2000007111,8600.4,#,MK19 7BH,
Department for Transport,Department for Transport,13/07/2015,Security,General Counsel's Office,FCO SERVICES,2000007111,6220.8,#,MK19 7BH,
Department for Transport,Department for Transport,13/07/2015,Subsidies Private Se,"Motoring, Freight & London",Payment as MSRS Freight Grant,2000007095,39379.41,xxxxxx,xxxxxx,
Department for Transport,Department for Transport,13/07/2015,Subsidies Private Se,"Motoring, Freight & London",Payment as MSRS Freight Grant,2000007095,48168.45,xxxxxx,xxxxxx,
Department for Transport,Department for Transport,13/07/2015,Subsidies Private Se,"Motoring, Freight & London",Payment as MSRS Freight Grant,2000007095,22338.61,xxxxxx,xxxxxx,
Department for Transport,Department for Transport,13/07/2015,Subsidies Private Se,"Motoring, Freight & London",Payment as MSRS Freight Grant,2000007095,23211.57,xxxxxx,xxxxxx,
Department for Transport,Department for Transport,13/07/2015,Subsidies Private Se,"Motoring, Freight & London",Payment as MSRS Freight Grant,2000007095,81787.71,xxxxxx,xxxxxx,
Department for Transport,Department for Transport,13/07/2015,Subsidies Private Se,"Motoring, Freight & London",Payment as MSRS Freight Grant,2000007095,114848.36,xxxxxx,xxxxxx,
Department for Transport,Department for Transport,13/07/2015,Subsidies Private Se,"Motoring, Freight & London",Payment as MSRS Freight Grant,2000007095,36401.24,xxxxxx,xxxxxx,
Department for Transport,Department for Transport,13/07/2015,Subsidies Private Se,"Motoring, Freight & London",Payment as MSRS Freight Grant,2000007096,1035917.58,xxxxxx,xxxxxx,
Department for Transport,Department for Transport,13/07/2015,Training,Group Human Resource,OPP Ltd,100010624,-2890,#,OX2 8EP,
Department for Transport,Department for Transport,13/07/2015,Training,Group Human Resource,OPP Ltd,100010624,2890,#,OX2 8EP,
Department for Transport,Department for Transport,13/07/2015,Transport  Consult,Major Projects & Growth,JACOBS UK LTD,2000007083,151492.5,#,G2 7HX,
Department for Transport,Department for Transport,13/07/2015,Transport  Consult,Major Projects & Growth,JACOBS UK LTD,2000007083,151492.5,#,G2 7HX,
Department for Transport,Department for Transport,13/07/2015,Transport  Consult,Rail Strategy & Funding,PARSONS BRINCKERHOFF LTD,2000007087,11907.98,#,NE4 7YQ,
Department for Transport,Department for Transport,13/07/2015,Transport  Consult,Project Sponsorship,KPMG,2000007084,265429.2,#,WD17 1DE,
Department for Transport,Department for Transport,13/07/2015,Travel Expenses UK,Group Finance,REDFERN TRAVEL LTD,2000007102,159961.16,Redfern June 15,BD1 3AZ,
Department for Transport,Department for Transport,14/07/2015,Agency Staff Costs,Strategic Roads & Smart Ticketing,BROOK STREET (UK) LIMITED,2000007167,917.46,#,AL1 4JB,
Department for Transport,Department for Transport,14/07/2015,Agency Staff Costs,Motoring Services,BROOK STREET (UK) LIMITED,2000007167,601.44,#,AL1 4JB,
Department for Transport,Department for Transport,14/07/2015,Agency Staff Costs,Rail Commercial & Programme Office,CAPITA BUSINESS SERVICES LTD,2000007152,3341.04,#,DL1 9HN,
Department for Transport,Department for Transport,14/07/2015,Agency Staff Costs,Rail Commercial & Programme Office,CAPITA BUSINESS SERVICES LTD,2000007152,12445.74,#,DL1 9HN,
Department for Transport,Department for Transport,14/07/2015,Agency Staff Costs,Network Rail Sponsorship,CAPITA BUSINESS SERVICES LTD,2000007152,1468.26,#,DL1 9HN,
Department for Transport,Department for Transport,14/07/2015,Cap Grt Loc Auth,Local,Greater Manchester Combined,2000007199,3853000,CCAG Gtr Manchester Combined Authority 2015-16,M60 2LA,
Department for Transport,Department for Transport,14/07/2015,Cap Grt Loc Auth,"Energy, Technology and International",Aylesbury Vale DC,2000007157,112021,14/15 Aylesbury #112021 Rapid Chargepoints,HP20 2TW,
Department for Transport,Department for Transport,14/07/2015,Cap Grt Loc Auth,"Energy, Technology and International",DARTFORD BC,2000007168,37500,14/15 Dartford #37500 Rapid Chargepoints,DA1 1DR,
Department for Transport,Department for Transport,14/07/2015,Cap Grt Loc Auth,"Energy, Technology and International",LONDON BOROUGH OF CROYDON,2000007175,37495,201415 Croydon #37495 Public Sector Chargepoints,CR9 1JT,
Department for Transport,Department for Transport,14/07/2015,Cap Grt Loc Auth,"Energy, Technology and International",SUNDERLAND CITY COUNCIL,2000007189,4216.3,1415 Sunderland #4216.30 Pub Sec CPs,SR2 7DN,
Department for Transport,Department for Transport,14/07/2015,Cap Grt Loc Auth,Local,SURREY COUNTY COUNCIL,2000007190,740557,LSTF Capital Grant KC & LP Q4 - Surrey CC,KT1 2DN,
Department for Transport,Department for Transport,14/07/2015,Cap Grt Loc Auth,"Energy, Technology and International",WEST LANCASHIRE DC,2000007166,8090,201415 West Lanc #8090 Public Sector Chargepoints,L39 2DF,
Department for Transport,Department for Transport,14/07/2015,Cap Grt Pri Sec-Cos.,"Energy, Technology and International",Airco Refrigeration,2000007198,5400,Airco Apr 15 #5400,HU3 4DL,
Department for Transport,Department for Transport,14/07/2015,Cap Grt Pri Sec-Cos.,"Energy, Technology and International",Baird Electrical,2000007194,899.97,Baird Electrical Ltd  Feb 2015 #899.97,BT42 1EL,
Department for Transport,Department for Transport,14/07/2015,Cap Grt Pri Sec-Cos.,"Energy, Technology and International",British Gas Ltd,2000007192,41742.51,British Gas Sept 2014 #41742.51,S60 1BY,
Department for Transport,Department for Transport,14/07/2015,Cap Grt Pri Sec-Cos.,"Energy, Technology and International",British Gas Ltd,2000007192,32485.2,British Gas Jan 2015 #32485.20,S60 1BY,
Department for Transport,Department for Transport,14/07/2015,Cap Grt Pri Sec-Cos.,"Energy, Technology and International",British Gas Ltd,2000007192,10607.31,British Gas Feb 2015 #10607.31,S60 1BY,
Department for Transport,Department for Transport,14/07/2015,Cap Grt Pri Sec-Cos.,"Energy, Technology and International",British Gas Ltd,2000007192,20431.03,British Gas Mar 2015 #20431.03,S60 1BY,
Department for Transport,Department for Transport,14/07/2015,Cap Grt Pri Sec-Cos.,"Energy, Technology and International",British Gas Ltd,2000007192,828.89,British Gas Apr 2015 #828.89,S60 1BY,
Department for Transport,Department for Transport,14/07/2015,Cap Grt Pri Sec-Cos.,"Energy, Technology and International",Energy Jump Ltd,2000007195,1772.64,Energy Jump Mar 15 #1772.64,S3 8AP,
Department for Transport,Department for Transport,14/07/2015,Cap Grt Pri Sec-Cos.,"Energy, Technology and International",Pod Point,2000007186,876,POD POINT #876 Dec 2014,E1 1EE,
Department for Transport,Department for Transport,14/07/2015,Cap Grt Pri Sec-Cos.,"Energy, Technology and International",Schneider Electric,2000007188,3600,SCHNEIDER ELEC #3600 Sep 2014,W1W 6XX,
Department for Transport,Department for Transport,14/07/2015,Cap Grt Pri Sec-Cos.,"Energy, Technology and International",SOL Electrical Ltd,2000007191,5310,SOL ELECTRICAL Apr 2015 #5310,EX15 3EE,
Department for Transport,Department for Transport,14/07/2015,Car Tax & Insurance,Motoring Services,Goodyear Dunlop Tyres UK Ltd,2000007185,2296.64,#,B24 9HY,
Department for Transport,Department for Transport,14/07/2015,Cars Maintenance,Motoring Services,Goodyear Dunlop Tyres UK Ltd,2000007185,0.03,#,B24 9HY,
Department for Transport,Department for Transport,14/07/2015,Computer equipment,Motoring Services,Konica Minolta Bus. Solutions (UK),2000007150,1573.34,#,SS14 3AR,
Department for Transport,Department for Transport,14/07/2015,CurrGrt Las in AEF/A,Rail Strategy & Funding,MERSEY TRAVEL,2000007170,6616146.02,Mersey Grant P4 Payment,L3   2AN,
Department for Transport,Department for Transport,14/07/2015,CurrGrt Las in AEF/A,Local,SURREY COUNTY COUNCIL,2000007190,687918,LSTF Revenue Grant KC & LP Q4 - Surrey CC,KT1 2DN,
Department for Transport,Department for Transport,14/07/2015,Financial Consultanc,Rail Franchising,GRANT THORNTON UK LLP,2000007169,40623.89,#,NN4 7YE,
Department for Transport,Department for Transport,14/07/2015,Financial Consultanc,Rail Commercial & Programme Office,GRANT THORNTON UK LLP,2000007169,57600,#,NN4 7YE,
Department for Transport,Department for Transport,14/07/2015,Further Educ Cost,Rail Accident Investigation Branch,FLARE EDINBURGH LTD,2000007180,4800,#,EH30 9PJ,
Department for Transport,Department for Transport,14/07/2015,HR Consultancy,Group Human Resource,BENEFEX LIMITED,2000007172,15701.83,#,SO15 2JU,
Department for Transport,Department for Transport,14/07/2015,Legal Consultancy,Rail Franchising,DLA PIPER UK LLP,2000007160,59238.24,#,M2 3DL,
Department for Transport,Department for Transport,14/07/2015,Legal Consultancy,"Policy, Legislation and Funding",xxxxxx,2000007197,6600,#,xxxxxx,
Department for Transport,Department for Transport,14/07/2015,Legal Consultancy,"Policy, Legislation and Funding",xxxxxx,2000007182,5400,#,xxxxxx,
Department for Transport,Department for Transport,14/07/2015,LGV/PCV Maintenance,Rail Accident Investigation Branch,Derby Transit Centre (AW) Ltd,2000007193,873.6,#,DE22 3HW,
Department for Transport,Department for Transport,14/07/2015,Non Stock Machine Co,Motoring Services,XMA LIMITED GOSC,2000007184,1653.62,A2XNOTD Konica Minolta Bizhub C224e/C284,NG11 7EP,
Department for Transport,Department for Transport,14/07/2015,Office Fur & Equip,Maritime,CAPITA PROPERTY & INFRASTRUCTURE,2000007158,2040,#,DL1 9HN,
Department for Transport,Department for Transport,14/07/2015,Prog&ProjMgmt Consul,Project Sponsorship,PARSONS BRINCKERHOFF LTD,2000007163,2168.02,#,NE4 7YQ,
Department for Transport,Department for Transport,14/07/2015,Publications for Res,Aviation,CREATIVE CHOICE CIC,2000007179,13485,#,SW1H 0DJ,
Department for Transport,Department for Transport,14/07/2015,Publications for Res,Aviation,CREATIVE CHOICE CIC,2000007179,3015,#,SW1H 0DJ,
Department for Transport,Department for Transport,14/07/2015,Publicity,Group Communications,ABBOTT MEAD VICKERS BBDO LTD,2000007155,19300,#,NW1 5QE,
Department for Transport,Department for Transport,14/07/2015,Recruitment Fees,Group Human Resource,Cadence Partners Ltd,2000007196,5400,#,EC2N 2AT,
Department for Transport,Department for Transport,14/07/2015,Research,Transport Security Co-ordination and Response,DEFENCE SCIENCE & TECHNOLOGY,2000007161,15000,#,PO14 9HL,
Department for Transport,Department for Transport,14/07/2015,Research,Analysis & Strategy,DEPARTMENT OF ENERGY&CLIMATE CHANGE,2000007174,9000,#,SW1A 2HD,
Department for Transport,Department for Transport,14/07/2015,Small Software,Group Procurement and Property,PROCSERVE SHARED SERVICES LTD,2000007178,19329.86,#,SW1W 9SR,
Department for Transport,Department for Transport,14/07/2015,Support Services,Aviation,MINISTRY OF DEFENCE,2000007171,241442,#,L2 3YL,
Department for Transport,Department for Transport,14/07/2015,Support Services,"Policy, Legislation and Funding",High Speed Two (HS2) Ltd,2000007181,32200.9,#,E14 5AB,
Department for Transport,Department for Transport,14/07/2015,Telecom Equipment,Motoring Services,Azzuri Communications Ltd,2000007177,10164,Azzurri - User Licence 10.6 to 9.6.2016,BB11 5FH,
Department for Transport,Department for Transport,14/07/2015,Transport  Consult,Rail Commercial & Programme Office,TRANSPORT RESEARCH LABORATORY,2000007165,5466.91,#,RG40 3GA,
Department for Transport,Department for Transport,14/07/2015,Travel Expenses UK,Marine Accident Investigation Branch,Clyde Travel Management,2000007159,1009.82,Clyde 13.7.15,G52 4JQ,
Department for Transport,Department for Transport,14/07/2015,Travel Expenses UK,Marine Accident Investigation Branch,Clyde Travel Management,2000007159,516.88,Clyde -  8.7.15,G52 4JQ,
Department for Transport,Department for Transport,14/07/2015,Travel Expenses UK,Marine Accident Investigation Branch,REDFERN TRAVEL LTD,2000007176,1245.38,Redfern June 15,BD1 3AZ,
Department for Transport,Department for Transport,15/07/2015,Agency Staff Costs,Integrated Delivery,Allen Lane,2000007353,4843.66,#,SW1Y 6RJ,
Department for Transport,Department for Transport,15/07/2015,Agency Staff Costs,Motoring Services,BROOK STREET (UK) LIMITED,2000007362,611.23,#,AL1 4JB,
Department for Transport,Department for Transport,15/07/2015,Agency Staff Costs,Rail Commercial & Programme Office,CAPITA BUSINESS SERVICES LTD,2000007351,3341.04,#,DL1 9HN,
Department for Transport,Department for Transport,15/07/2015,Agency Staff Costs,Rail Commercial & Programme Office,CAPITA BUSINESS SERVICES LTD,2000007351,3260.04,#,DL1 9HN,
Department for Transport,Department for Transport,15/07/2015,Agency Staff Costs,Rail Commercial & Programme Office,CAPITA BUSINESS SERVICES LTD,2000007351,8732.28,#,DL1 9HN,
Department for Transport,Department for Transport,15/07/2015,Agency Staff Costs,Rail Commercial & Programme Office,MORGAN HUNT UK LTD,2000007357,4703.33,#,EC4M 7EG,
Department for Transport,Department for Transport,15/07/2015,Agency Staff Costs,Group Finance,Allen Lane,2000007353,2468.82,#,SW1Y 6RJ,
Department for Transport,Department for Transport,15/07/2015,Agency Staff Costs,Rail Franchising,BROOK STREET (UK) LIMITED,2000007362,823.2,#,AL1 4JB,
Department for Transport,Department for Transport,15/07/2015,Agency Staff Costs,Rail Franchising,BROOK STREET (UK) LIMITED,2000007362,823.2,#,AL1 4JB,
Department for Transport,Department for Transport,15/07/2015,Agency Staff Costs,Rail Commercial & Programme Office,BROOK STREET (UK) LIMITED,2000007362,658.56,#,AL1 4JB,
Department for Transport,Department for Transport,15/07/2015,Agency Staff Costs,Rail Franchising,BROOK STREET (UK) LIMITED,2000007362,658.56,#,AL1 4JB,
Department for Transport,Department for Transport,15/07/2015,Agency Staff Costs,Rail Franchising,BROOK STREET (UK) LIMITED,2000007362,823.2,#,AL1 4JB,
Department for Transport,Department for Transport,15/07/2015,Agency Staff Costs,Rail Franchising,BROOK STREET (UK) LIMITED,2000007362,658.56,#,AL1 4JB,
Department for Transport,Department for Transport,15/07/2015,Agency Staff Costs, Rail Franchising ,BROOK STREET (UK) LIMITED,2000007362, 658.56 , # ,AL1 4JB,
Department for Transport,Department for Transport,15/07/2015,Agency Staff Costs,Rail Franchising,BROOK STREET (UK) LIMITED,2000007362,823.2,#,AL1 4JB,
Department for Transport,Department for Transport,15/07/2015,Agency Staff Costs,Rail Franchising,CAPITA BUSINESS SERVICES LTD,2000007351,16524.3,#,DL1 9HN,
Department for Transport,Department for Transport,15/07/2015,Agency Staff Costs,Rail Franchising,CAPITA BUSINESS SERVICES LTD,2000007351,18958.16,#,DL1 9HN,
Department for Transport,Department for Transport,15/07/2015,Agency Staff Costs,Rail Franchising,CAPITA BUSINESS SERVICES LTD,2000007351,2355.36,#,DL1 9HN,
Department for Transport,Department for Transport,15/07/2015,Agency Staff Costs,Rail Franchising,CAPITA BUSINESS SERVICES LTD,2000007351,3826.14,#,DL1 9HN,
Department for Transport,Department for Transport,15/07/2015,Agency Staff Costs,Rail Franchising,CAPITA BUSINESS SERVICES LTD,2000007351,707.1,#,DL1 9HN,
Department for Transport,Department for Transport,15/07/2015,Agency Staff Costs,Rail Franchising,CAPITA BUSINESS SERVICES LTD,2000007351,4139.76,#,DL1 9HN,
Department for Transport,Department for Transport,15/07/2015,Agency Staff Costs,Rail Commercial & Programme Office,CAPITA BUSINESS SERVICES LTD,2000007351,2452.8,#,DL1 9HN,
Department for Transport,Department for Transport,15/07/2015,Agency Staff Costs,Rail Franchising,CAPITA BUSINESS SERVICES LTD,2000007351,2777.52,#,DL1 9HN,
Department for Transport,Department for Transport,15/07/2015,Agency Staff Costs,Integrated Delivery,CAPITA BUSINESS SERVICES LTD,2000007351,9929.52,#,DL1 9HN,
Department for Transport,Department for Transport,15/07/2015,Agency Staff Costs,Rail Franchising,CAPITA BUSINESS SERVICES LTD,2000007351,35720.1,#,DL1 9HN,
Department for Transport,Department for Transport,15/07/2015,Agency Staff Costs,Rail Franchising,CAPITA BUSINESS SERVICES LTD,2000007351,9861.72,#,DL1 9HN,
Department for Transport,Department for Transport,15/07/2015,Agency Staff Costs,Rail Franchising,PARSONS BRINCKERHOFF LTD,2000007359,6328.74,#,NE4 7YQ,
Department for Transport,Department for Transport,15/07/2015,Agency Staff Costs,Rail Franchising,PARSONS BRINCKERHOFF LTD,2000007359,30844.51,#,NE4 7YQ,
Department for Transport,Department for Transport,15/07/2015,Cap Grt Pri Sec-Cos.,"Policy, Legislation and Funding",Eversheds LLP,2000007375,372484.2,xxxxxx,CF10 5BT,
Department for Transport,Department for Transport,15/07/2015,Cap Grt Pri Sec-Cos.,"Policy, Legislation and Funding",Eversheds LLP,2000007375,335082.19,xxxxxx,CF10 5BT,
Department for Transport,Department for Transport,15/07/2015,Cap Grt Pri Sec-Cos.,"Policy, Legislation and Funding",Eversheds LLP,2000007375,1200000,xxxxxx,CF10 5BT,
Department for Transport,Department for Transport,15/07/2015,Cap Grt Pri Sec-Cos.,Network Rail Sponsorship,Network Rail Infstrcture (Treasury),2000007383,140000000,#,NW1 2DN,
Department for Transport,Department for Transport,15/07/2015,Cap Grt Pri Sec-Cos.,"Energy, Technology and International",NISSAN MOTOR GB LTD,2000007366,2057201.94,"""PiCG Nissan June 2015 #2,057,201.94""",WD3 9YS,
Department for Transport,Department for Transport,15/07/2015,Cap Grt Pri Sec-Cos.,"Energy, Technology and International",PEUGEOT MOTOR COMPANY,2000007367,5133.6,"""PiCG Peugeot June 2015 #5,133.60""",CV3 1ND,
Department for Transport,Department for Transport,15/07/2015,Cap Grt Pri Sec-Cos.,"Energy, Technology and International",Porsche,2000007376,35000,"""PiCG Porsche June 2015 #35,000""",RG31 7SE,
Department for Transport,Department for Transport,15/07/2015,Cap Grt Pri Sec-Cos.,"Energy, Technology and International",RENAULT,2000007368,709552.35,"""PiCG Renault June 2015 #709,552.35""",WD3 9YS,
Department for Transport,Department for Transport,15/07/2015,Cap Grt Pri Sec-Cos.,"Energy, Technology and International",TOYOTA (GB) PLC,2000007370,105000,"""PiCG Toyota June 2015 #105,000""",KT18 5XS,
Department for Transport,Department for Transport,15/07/2015,Cap Grt Pri Sec-Cos.,"Energy, Technology and International",Volvo Car UK Limited,2000007374,35000,"""PiCG Volvo June 2015 #35,000k""",SL6 4FJ,
Department for Transport,Department for Transport,15/07/2015,Electricity,Group Procurement and Property,EDF ENERGY,2000007356,48428.51,EDF -AOS-GMH June 2015,DA6 8ET,
Department for Transport,Department for Transport,15/07/2015,Legal Consultancy,Transport Security Co-ordination and Response,PHELPS DUNBAR LLP,2000007348,2037.07,#,70130,
Department for Transport,Department for Transport,15/07/2015,Legal Consultancy,Rail Franchising,Eversheds LLP,2000007365,10278.84,#,EC2V 7WS,
Department for Transport,Department for Transport,15/07/2015,Legal Consultancy,Rail Franchising,Eversheds LLP,2000007365,53979.3,#,EC2V 7WS,
Department for Transport,Department for Transport,15/07/2015,Legal Consultancy,Rail Franchising,Eversheds LLP,2000007365,11780.4,#,EC2V 7WS,
Department for Transport,Department for Transport,15/07/2015,Legal Consultancy,"Policy, Legislation and Funding",xxxxxx,2000007371,16152,#,xxxxxx,
Department for Transport,Department for Transport,15/07/2015,Legal Consultancy,"Policy, Legislation and Funding",xxxxxx,2000007360,45360,#,xxxxxx,
Department for Transport,Department for Transport,15/07/2015,Live Running Non IBM,Motoring Services,Vodafone Ltd,2000007350,59865.98,VDFE- C&W - Call Charges -Apr to June 15,M22 5RR,
Department for Transport,Department for Transport,15/07/2015,Non Stock Machine Co,Motoring Services,XMA LIMITED GOSC,2000007373,1889.86,A2XNOTD Konica Minolta Bizhub C224e/C284,NG11 7EP,
Department for Transport,Department for Transport,15/07/2015,Research,Analysis & Strategy,NATIONAL CENTRE FOR SOCIAL RESEARCH,2000007358,9213,#,EC1V 0AX,
Department for Transport,Department for Transport,15/07/2015,Research Grant-PS,Analysis & Strategy,Intergrate Systems Engineering Ltd,2000007379,24250,Final Payments for T-TRIG Grant,BA1 7RL,
Department for Transport,Department for Transport,15/07/2015,Research Grant-PS,Analysis & Strategy,Intergrated Transport Planning Ltd,2000007378,28175,Final Payments for T-TRIG Grant,MK9 3BP,
Department for Transport,Department for Transport,15/07/2015,Research Grant-PS,Analysis & Strategy,Rotovane Ltd,2000007382,16000,Final Payments for T-TRIG Grant,OX4 1JU,
Department for Transport,Department for Transport,15/07/2015,Research Grant-PS,Analysis & Strategy,Tevva Motors Ltd,2000007380,44330,Final Payments for T-TRIG Grant,CM13 1TF,
Department for Transport,Department for Transport,15/07/2015,Research Grant-PS,Analysis & Strategy,The Floow Ltd,2000007381,25829.17,Final Payments for T-TRIG Grant,S3 8GW,
Department for Transport,Department for Transport,15/07/2015,Small Software,Aviation,CONNECT INTERNET SOLUTIONS LTD,2000007355,900,#,L2 6SG,
Department for Transport,Department for Transport,15/07/2015,Subsidies Private Se,Local,1ST BUS STOP MINIBUS,2000007302,2396.18,1st BUS STOP MINIBUS,DA13 9EW,
Department for Transport,Department for Transport,15/07/2015,Subsidies Private Se,Local,ABELLIO WEST LONDON LTD,2000007285,57879.15,ABELLIO SURREY LTD (FORMERLY ABELLIO WEST LONDON),SE5 0TF,
Department for Transport,Department for Transport,15/07/2015,Subsidies Private Se,Local,AINTREE COACHES (INTERNATIONAL) LTD,2000007311,4758.17,AINTREE COACHES (INTERNATIONAL) LTD,CH66 1NH,
Department for Transport,Department for Transport,15/07/2015,Subsidies Private Se,Local,ALANSWAY COACHES LTD,2000007218,14548.85,ALANSWAY COACHES LTD T/A COUNTRY BUS,TQ12 6UT,
Department for Transport,Department for Transport,15/07/2015,Subsidies Private Se,Local,AXE VALLEY MINI TRAVEL,2000007219,6908.18,AXE VALLEY MINI TRAVEL,EX12 2NA,
Department for Transport,Department for Transport,15/07/2015,Subsidies Private Se,Local,BENNETTS COACHES LTD,2000007221,12184.1,BENNETTS COACHES LTD,GL4 4LP,
Department for Transport,Department for Transport,15/07/2015,Subsidies Private Se,Local,BLACKPOOL TRANSPORT SERVICES LTD,2000007222,261585.11,BLACKPOOL TRANSPORT SERVICES LTD,FY1 5DD,
Department for Transport,Department for Transport,15/07/2015,Subsidies Private Se,Local,BLUEWORKS PRIVATE HIRE,2000007223,4561.51,BLUEWORKS PRIVATE HIRE,LA12 8PX,
Department for Transport,Department for Transport,15/07/2015,Subsidies Private Se,Local,BOURNEMOUTH TRANSPORT LTD,2000007224,249337.55,BOURNEMOUTH TRANSPORT LTD,BH8 0BQ,
Department for Transport,Department for Transport,15/07/2015,Subsidies Private Se,Local,Britannia Bus Ltd t/a Meridian,2000007321,5692.03,Britannia Bus Ltd t/a Meridian,NN5 7UW,
Department for Transport,Department for Transport,15/07/2015,Subsidies Private Se,Local,Carmel Coaches Bristol,2000007320,515.53,Carmel Coaches Bristol,BS48 1JN,
Department for Transport,Department for Transport,15/07/2015,Subsidies Private Se,Local,Carousel Buses Ltd,2000007225,58779.44,Carousel Buses Ltd,OX4 6GA,
Department for Transport,Department for Transport,15/07/2015,Subsidies Private Se,Local,CHAPEL END COACHES,2000007226,670.29,CHAPEL END COACHES,CV11 6JX,
Department for Transport,Department for Transport,15/07/2015,Subsidies Private Se,Local,CLEARWAY OF CATSHILL,2000007227,1330.12,CLEARWAY OF CATSHILL,B61 0JL,
Department for Transport,Department for Transport,15/07/2015,Subsidies Private Se,Local,Coastal Coaches Of Warton,2000007298,7393.61,COASTAL COACHES OF WARTON,PR4 1AH,
Department for Transport,Department for Transport,15/07/2015,Subsidies Private Se,Local,CROSSVILLE MOTOR SERVICES LIMITED,2000007307,17577.71,Crosville Motor Services Ltd,BS24 9AD,
Department for Transport,Department for Transport,15/07/2015,Subsidies Private Se,Local,Darren Mayes T/A M Travel,2000007248,32057.31,DARREN MAYES T/A M TRAVEL,WF10 4SB,
Department for Transport,Department for Transport,15/07/2015,Subsidies Private Se,Local,DARTLINE COACHES,2000007229,5137.85,DARTLINE COACHES,EX5 1AF,
Department for Transport,Department for Transport,15/07/2015,Subsidies Private Se,Local,DUDLEY'S COACHES LTD,2000007230,4955.4,DUDLEY'S COACHES LTD,WR7 4LS,
Department for Transport,Department for Transport,15/07/2015,Subsidies Private Se,Local,E STOTT & SONS LTD,2000007231,10630.93,E.STOTT & SONS LTD,HD3 4PG,
Department for Transport,Department for Transport,15/07/2015,Subsidies Private Se,Local,Epsom Coaches,2000007243,6367.69,Epsom Coaches,KT19 9AF,
Department for Transport,Department for Transport,15/07/2015,Subsidies Private Se,Local,ERIC W BOWERS COACHES LTD,2000007232,67307.74,BOWERS COACHES LTD,LE4 9HU,
Department for Transport,Department for Transport,15/07/2015,Subsidies Private Se,Local,EXPRESS LINES LTD,2000007234,1684.63,Expresslines Ltd,MK42 0HB,
Department for Transport,Department for Transport,15/07/2015,Subsidies Private Se,Local,FELIX TAXIS,2000007235,1374.62,Felix Taxis,CO10 9AD,
Department for Transport,Department for Transport,15/07/2015,Subsidies Private Se,Local,FILERS TRAVEL LTD,2000007236,5553.36,FILER'S TRAVEL LTD,EX34 8LB,
Department for Transport,Department for Transport,15/07/2015,Subsidies Private Se,Local,First Leeds,2000007237,1961979.96,FIRST LEEDS,LS10 1PL,
Department for Transport,Department for Transport,15/07/2015,Subsidies Private Se,Local,FOURWAYS COACHES,2000007297,1771.39,Fourways Coaches,CM1 3QL,
Department for Transport,Department for Transport,15/07/2015,Subsidies Private Se,Local,G E SCRAGG AND SONS LIMITED,2000007238,4130.22,G E Scragg & Son's Ltd,ST3 5AT,
Department for Transport,Department for Transport,15/07/2015,Subsidies Private Se,Local,GELDARDS COACHES LTD,2000007239,10416.35,GELDARDS COACHES LTD,LS12 5JB,
Department for Transport,Department for Transport,15/07/2015,Subsidies Private Se,Local,GO-COACHHIRE LTD,2000007300,7430.93,GO-COACH HIRE LIMITED,TN14 5EL,
Department for Transport,Department for Transport,15/07/2015,Subsidies Private Se,Local,GRANT PALMER LIMITED,2000007240,24189.35,Grant Palmer Limited,MK45 5BP,
Department for Transport,Department for Transport,15/07/2015,Subsidies Private Se,Local,HANSONS (WORDSLEY) LTD,2000007241,33064.42,HANSONS (WORDSLEY) LTD,DY9 8RD,
Department for Transport,Department for Transport,15/07/2015,Subsidies Private Se,Local,Holmeswood Coaches Limited,2000007242,4689.18,HOLMESWOOD COACHES LTD,L40 1UB,
Department for Transport,Department for Transport,15/07/2015,Subsidies Private Se,Local,Hunter Coaches Ltd,2000007314,1204.98,Hunter Coaches Ltd,LS17 5ED,
Department for Transport,Department for Transport,15/07/2015,Subsidies Private Se,Local,J & B,2000007315,1905.63,J & B Travel Ltd,LS28 6JP,
Department for Transport,Department for Transport,15/07/2015,Subsidies Private Se,Local,xxxxxx,2000007313,2587.77,xxxxxx,xxxxxx,
Department for Transport,Department for Transport,15/07/2015,Subsidies Private Se,Local,JOHN FISHWICK & SONS,2000007244,33984.15,JOHN FISHWICK & SONS,PR25 3LE,
Department for Transport,Department for Transport,15/07/2015,Subsidies Private Se,Local,KIRKBY LONSDALE COACH HIRE LTD,2000007246,8455.31,KIRKBY LONSDALE COACH HIRE LTD,LA5 9EU,
Department for Transport,Department for Transport,15/07/2015,Subsidies Private Se,Local,LUGG VALLEY TRAVEL LTD,2000007247,4409.7,LUGG VALLEY TRAVEL,HR6 8PX,
Department for Transport,Department for Transport,15/07/2015,Subsidies Private Se,Local,M J CURLEY T/A,2000007312,1667.07,Coach of Langtoft / Langtoft Private Hire,PE6 9LS,
Department for Transport,Department for Transport,15/07/2015,Subsidies Private Se,Local,MARETTS,2000007249,1512.56,Maretts Chariots,NR11 8RA,
Department for Transport,Department for Transport,15/07/2015,Subsidies Private Se,Local,MEREDITHS COACHES LIMITED,2000007251,1456.12,Merediths Coaches Ltd,SY14 8DE,
Department for Transport,Department for Transport,15/07/2015,Subsidies Private Se,Local,METROLINE TRAVEL LTD,2000007252,44264.72,METROLINE TRAVEL LTD,NW2 6JP,
Department for Transport,Department for Transport,15/07/2015,Subsidies Private Se,Local,Mike de Courcey Travel Ltd,2000007253,41532.12,MIKE DE COURCEY TRAVEL LTD,CV3 4FG,
Department for Transport,Department for Transport,15/07/2015,Subsidies Private Se,Local,MOVING PEOPLE LTD,2000007295,1185.66,MOVING PEOPLE,BB2 7JA,
Department for Transport,Department for Transport,15/07/2015,Subsidies Private Se,Local,MULLEYS MOTORWAYS LTD,2000007299,16545.32,Mulleys Motorways Ltd,IP31 2JB,
Department for Transport,Department for Transport,15/07/2015,Subsidies Private Se,Local,NIP ON TRANSPORT SERVICE,2000007256,10983.22,Nip-On Transport Service,WA9 4AF,
Department for Transport,Department for Transport,15/07/2015,Subsidies Private Se,Local,NIPPY BUS LTD,2000007257,9953.6,NIPPY BUS LTD,TA12 6HB,
Department for Transport,Department for Transport,15/07/2015,Subsidies Private Se,Local,NN Cresswell Coach Hire Ltd,2000007254,2597.14,N N Cresswell Coach Hire Ltd,WR11 4RA,
Department for Transport,Department for Transport,15/07/2015,Subsidies Private Se,Local,Nottingham Coaches Ltd,2000007322,2030.68,Nottingham Coaches Ltd,NG9 8GX,
Department for Transport,Department for Transport,15/07/2015,Subsidies Private Se,Local,Oakwood Travel Services Ltd,2000007310,25266.89,CATCH22BUS LTD,FY4 4QU,
Department for Transport,Department for Transport,15/07/2015,Subsidies Private Se,Local,PAUL S WINSON (COACHES) LTD,2000007259,2848.2,PAUL S WINSON COACHES LTD,LE11 5XR,
Department for Transport,Department for Transport,15/07/2015,Subsidies Private Se,Local,PRESTON BUS LIMITED,2000007260,99063.11,Preston Bus Limited,PR1 6NY,
Department for Transport,Department for Transport,15/07/2015,Subsidies Private Se,Local,PROCTERS COACHES,2000007261,10700.95,PROCTERS OF BEDALE,DL7 9UJ,
Department for Transport,Department for Transport,15/07/2015,Subsidies Private Se,Local,Pulham & Sons Ltd,2000007262,9801.75,PULHAM & SONS LTD,GL542EN,
Department for Transport,Department for Transport,15/07/2015,Subsidies Private Se,Local,R&S Waterson,2000007318,4185.48,R&S Waterson Coaches,WF9 1AZ,
Department for Transport,Department for Transport,15/07/2015,Subsidies Private Se,Local,Red Kite Commercial Services,2000007263,4378.68,RED KITE COMMERICAL SERVICES,LU7 9PU,
Department for Transport,Department for Transport,15/07/2015,Subsidies Private Se,Local,REGS COACHES LTD,2000007264,2493.58,Reg's Coaches Ltd,AL6 9TY,
Department for Transport,Department for Transport,15/07/2015,Subsidies Private Se,Local,ROJAY SERVICES T/A WIGAN COACHWAYS,2000007306,3624.46,Rojay Services T/A Wigan Coachways,WN6 7TP,
Department for Transport,Department for Transport,15/07/2015,Subsidies Private Se,Local,ROLLING SOLUTIONS LTD,2000007301,33422.54,ROLLING SOLUTIONS T/A D&G BUS,ST14 7JD,
Department for Transport,Department for Transport,15/07/2015,Subsidies Private Se,Local,ROSSENDALE TRANSPORT LIMITED,2000007268,115942.86,Rossendale Transport Ltd,BB4 4RS,
Department for Transport,Department for Transport,15/07/2015,Subsidies Private Se,Local,Routemaster Buses Ltd,2000007304,2914.74,Routemaster Buses Ltd,CW5 6AL,
Department for Transport,Department for Transport,15/07/2015,Subsidies Private Se,Local,SAFEGUARD COACHES LTD,2000007269,11476.04,Safeguard Coaches Ltd,GU2 7TH,
Department for Transport,Department for Transport,15/07/2015,Subsidies Private Se,Local,SARGEANT BROS,2000007270,552.88,SARGEANT BROS,HR5 3AL,
Department for Transport,Department for Transport,15/07/2015,Subsidies Private Se,Local,SLEAFORDIAN COACHES,2000007272,9577.39,Sleafordian Coaches,NG34 7EH,
Department for Transport,Department for Transport,15/07/2015,Subsidies Private Se,Local,SMITH MOTORS LEDBURY LTD,2000007273,515.54,Smiths Motors (Ledbury) Ltd,HR8 1BA,
Department for Transport,Department for Transport,15/07/2015,Subsidies Private Se,Local,SOUTHDOWN PSV LTD,2000007274,26781.71,Southdown PSV Ltd,RH10 3EN,
Department for Transport,Department for Transport,15/07/2015,Subsidies Private Se,Local,Spirit Buses Ltd,2000007319,2552.58,Spirit Buses Ltd,NE65 7RZ,
Department for Transport,Department for Transport,15/07/2015,Subsidies Private Se,Local,STAGECOACH OXFORD,2000007275,427882.87,STAGECOACH IN OXFORD,SK3 0DU,
Department for Transport,Department for Transport,15/07/2015,Subsidies Private Se,Local,SULLIVAN BUSES,2000007276,20275.24,Sullivan Bus & Coach T/A Sullivan Buses,EN6 3NE,
Department for Transport,Department for Transport,15/07/2015,Subsidies Private Se,Local,SUMMERCOURT TRAVEL LTD,2000007277,8839.48,SUMMERCOURT TRAVEL,TR8 5DR,
Department for Transport,Department for Transport,15/07/2015,Subsidies Private Se,Local,SW COACHES LTD,2000007278,24928.94,SOUTH WEST COACHES LTD,BA9 9EB,
Department for Transport,Department for Transport,15/07/2015,Subsidies Private Se,Local,Swallow Coach Company Ltd,2000007317,27559.51,Swallow Coach Company Limited,RM13 8BT,
Department for Transport,Department for Transport,15/07/2015,Subsidies Private Se,Local,SWANBROOK TRANSPORT LTD,2000007279,4616.48,Swanbrook Transport Ltd,GL51 0TE,
Department for Transport,Department for Transport,15/07/2015,Subsidies Private Se,Local,SWEYNE COACHES & CO,2000007280,1334.04,Sweyne Coaches,DN14 8EL,
Department for Transport,Department for Transport,15/07/2015,Subsidies Private Se,Local,Thames Travel (Wallingford),2000007283,81862.84,THAMES TRAVEL (WALLINGFORD) LTD,OX4 6GA,
Department for Transport,Department for Transport,15/07/2015,Subsidies Private Se,Local,THAMESDOWN TRANSPORT LTD,2000007284,147981.36,THAMESDOWN TRANSPORT LTD,SN2 2DJ,
Department for Transport,Department for Transport,15/07/2015,Subsidies Private Se,Local,THE KINGS FERRY TRAVEL GROUP,2000007245,67220.38,THE KING'S FERRY LTD,ME8 6HW,
Department for Transport,Department for Transport,15/07/2015,Subsidies Private Se,Local,WARRINGTON BOROUGH TRANS LTD,2000007288,130593.18,Warrington Borough Transport Ltd,WA4 6PT,
Department for Transport,Department for Transport,15/07/2015,Subsidies Private Se,Local,WEBBERBUS LTD,2000007289,76923.61,WEBBERBUS LTD,TA6 5LT,
Department for Transport,Department for Transport,15/07/2015,Subsidies Private Se,Local,WESTWARD TRAVEL,2000007290,4089.25,Westward Travel,GL12 8RT,
Department for Transport,Department for Transport,15/07/2015,Subsidies Private Se,Local,WIGHT COMMUNITY ACCESS LTD,2000007309,664.67,Wight Community Access Ltd,PO39 0AX,
Department for Transport,Department for Transport,15/07/2015,Subsidies Private Se,Local,WRIGHT BROS (COACHES) LTD,2000007292,2027.92,WRIGHT BROS COACHES LTD,CA9 3NP,
Department for Transport,Department for Transport,15/07/2015,Subsidies Private Se,Local,Yarranton Bros Ltd,2000007293,4679.86,YARRANTON BROS LTD,WR15 8JL,
Department for Transport,Department for Transport,15/07/2015,Subsidies Private Se,Local,YEOMANS CANYON TRAVEL,2000007294,7822.14,YEOMANS CANYON TRAVEL,HR4 9PU,
Department for Transport,Department for Transport,15/07/2015,Support Services,Air Accident Investigation Branch,BASSOM COMPUTER CONSULTANCY,2000007354,1890.95,BCC COMPONENTS JUNE 2015,GU9 8LS,
Department for Transport,Department for Transport,15/07/2015,Telephone charges,Motoring Services,VERIZON BUSINESS,100010727,-7385.63,#,RG2 6DA,
Department for Transport,Department for Transport,15/07/2015,Telephone charges,Motoring Services,Vodafone Ltd,2000007350,16956.26,Vodafone July 2015,M22 5RR,
Department for Transport,Department for Transport,15/07/2015,Telephone charges,Motoring Services,Vodafone Ltd,2000007350,30651.1,VDFE- C&W - Call Charges - [21.4.15,M22 5RR,
Department for Transport,Department for Transport,15/07/2015,Transport  Consult,Major Projects & Growth,PARSONS BRINCKERHOFF LTD,2000007359,4884.13,#,NE4 7YQ,
Department for Transport,Department for Transport,15/07/2015,Transport  Consult,Major Projects & Growth,PARSONS BRINCKERHOFF LTD,2000007359,55879.08,#,NE4 7YQ,
Department for Transport,Department for Transport,15/07/2015,Transport  Consult,Major Projects & Growth,PARSONS BRINCKERHOFF LTD,2000007359,10728.11,#,NE4 7YQ,
Department for Transport,Department for Transport,15/07/2015,Transport  Consult,Major Projects & Growth,PARSONS BRINCKERHOFF LTD,2000007359,62727.88,#,NE4 7YQ,
Department for Transport,Department for Transport,15/07/2015,Transport  Consult,Rail Strategy & Funding,PARSONS BRINCKERHOFF LTD,2000007359,12260.5,#,NE4 7YQ,
Department for Transport,Department for Transport,15/07/2015,Transport  Consult,Rail Franchising,TRANSPORT RESEARCH LABORATORY,2000007361,83078.41,#,RG40 3GA,
Department for Transport,Department for Transport,16/07/2015,Agency Staff Costs,Air Accident Investigation Branch,BROOK STREET (UK) LIMITED,2000007449,849.74,#,AL1 4JB,
Department for Transport,Department for Transport,16/07/2015,Agency Staff Costs,Air Accident Investigation Branch,BROOK STREET (UK) LIMITED,2000007449,636.25,#,AL1 4JB,
Department for Transport,Department for Transport,16/07/2015,Agency Staff Costs,Strategic Roads & Smart Ticketing,BROOK STREET (UK) LIMITED,2000007449,917.46,#,AL1 4JB,
Department for Transport,Department for Transport,16/07/2015,Agency Staff Costs,Local,BROOK STREET (UK) LIMITED,2000007449,702.18,#,AL1 4JB,
Department for Transport,Department for Transport,16/07/2015,Agency Staff Costs,Local,BROOK STREET (UK) LIMITED,2000007449,600.66,#,AL1 4JB,
Department for Transport,Department for Transport,16/07/2015,Agency Staff Costs,General Counsel's Office,CAPITA BUSINESS SERVICES LTD,2000007430,5401.21,#,DL1 9HN,
Department for Transport,Department for Transport,16/07/2015,Agency Staff Costs,Integrated Delivery,MICHAEL PAGE INTERNATIONAL,2000007451,3210,#,SL1 3SA,
Department for Transport,Department for Transport,16/07/2015,Agency Staff Costs,Integrated Delivery,MICHAEL PAGE INTERNATIONAL,2000007451,4494,#,SL1 3SA,
Department for Transport,Department for Transport,16/07/2015,Agency Staff Costs,Integrated Delivery,MICHAEL PAGE INTERNATIONAL,2000007451,3594,#,SL1 3SA,
Department for Transport,Department for Transport,16/07/2015,Agency Staff Costs,Motoring Services,BROOK STREET (UK) LIMITED,2000007449,606.9,#,AL1 4JB,
Department for Transport,Department for Transport,16/07/2015,Agency Staff Costs,Rail Commercial & Programme Office,Badenoch & Clark c/o Lauren Rogers,2000007435,3816,#,B37 7YE,
Department for Transport,Department for Transport,16/07/2015,Agency Staff Costs,Rail Commercial & Programme Office,Badenoch & Clark c/o Lauren Rogers,2000007435,3180,#,B37 7YE,
Department for Transport,Department for Transport,16/07/2015,Agency Staff Costs,Rail Commercial & Programme Office,Badenoch & Clark c/o Lauren Rogers,2000007435,2544,#,B37 7YE,
Department for Transport,Department for Transport,16/07/2015,Agency Staff Costs,Rail Commercial & Programme Office,Badenoch & Clark c/o Lauren Rogers,2000007435,1908,#,B37 7YE,
Department for Transport,Department for Transport,16/07/2015,Agency Staff Costs,Rail Commercial & Programme Office,Experis Ltd,2000007437,3423.9,#,EC2M 2RB,
Department for Transport,Department for Transport,16/07/2015,Agency Staff Costs,Group Finance,Allen Lane,2000007433,2719.38,#,SW1Y 6RJ,
Department for Transport,Department for Transport,16/07/2015,Agency Staff Costs,Group Finance,Allen Lane,2000007433,2719.38,#,SW1Y 6RJ,
Department for Transport,Department for Transport,16/07/2015,Agency Staff Costs,Group Finance,Allen Lane,2000007433,2175.5,#,SW1Y 6RJ,
Department for Transport,Department for Transport,16/07/2015,Agency Staff Costs,Group Finance,Allen Lane,2000007433,2175.5,#,SW1Y 6RJ,
Department for Transport,Department for Transport,16/07/2015,Agency Staff Costs,Group Finance,Allen Lane,2000007433,2719.38,#,SW1Y 6RJ,
Department for Transport,Department for Transport,16/07/2015,Agency Staff Costs,Motoring Services,Badenoch & Clark c/o Lauren Rogers,2000007435,3876,#,B37 7YE,
Department for Transport,Department for Transport,16/07/2015,Agency Staff Costs,Motoring Services,Badenoch & Clark c/o Lauren Rogers,2000007435,3100.8,#,B37 7YE,
Department for Transport,Department for Transport,16/07/2015,Agency Staff Costs,Motoring Services,Badenoch & Clark c/o Lauren Rogers,2000007435,3876,#,B37 7YE,
Department for Transport,Department for Transport,16/07/2015,Agency Staff Costs,Motoring Services,Badenoch & Clark c/o Lauren Rogers,2000007435,3876,#,B37 7YE,
Department for Transport,Department for Transport,16/07/2015,Agency Staff Costs,Rail Franchising,Badenoch & Clark c/o Lauren Rogers,2000007435,1336.8,#,B37 7YE,
Department for Transport,Department for Transport,16/07/2015,Agency Staff Costs,Motoring Services,Badenoch & Clark c/o Lauren Rogers,2000007435,3876,#,B37 7YE,
Department for Transport,Department for Transport,16/07/2015,Agency Staff Costs,Motoring Services,Badenoch & Clark c/o Lauren Rogers,2000007435,3876,#,B37 7YE,
Department for Transport,Department for Transport,16/07/2015,Agency Staff Costs,"Group Services, Change and Capability",BROOK STREET (UK) LIMITED,2000007449,870.24,#,AL1 4JB,
Department for Transport,Department for Transport,16/07/2015,Agency Staff Costs,Rail Franchising,BROOK STREET (UK) LIMITED,2000007449,823.2,#,AL1 4JB,
Department for Transport,Department for Transport,16/07/2015,Agency Staff Costs,Network Rail Sponsorship,CAPITA BUSINESS SERVICES LTD,2000007430,1165.54,#,DL1 9HN,
Department for Transport,Department for Transport,16/07/2015,Agency Staff Costs,Rail Franchising,CAPITA BUSINESS SERVICES LTD,2000007430,8462.84,#,DL1 9HN,
Department for Transport,Department for Transport,16/07/2015,Agency Staff Costs,Rail Franchising,CAPITA BUSINESS SERVICES LTD,2000007430,4139.76,#,DL1 9HN,
Department for Transport,Department for Transport,16/07/2015,Agency Staff Costs,Rail Commercial & Programme Office,CAPITA BUSINESS SERVICES LTD,2000007430,2452.8,#,DL1 9HN,
Department for Transport,Department for Transport,16/07/2015,Agency Staff Costs,Rail Franchising,CAPITA BUSINESS SERVICES LTD,2000007430,9956.28,#,DL1 9HN,
Department for Transport,Department for Transport,16/07/2015,Agency Staff Costs,Rail Commercial & Programme Office,CAPITA BUSINESS SERVICES LTD,2000007430,2312.11,#,DL1 9HN,
Department for Transport,Department for Transport,16/07/2015,Agency Staff Costs,Rail Franchising,CAPITA BUSINESS SERVICES LTD,2000007430,4450.14,#,DL1 9HN,
Department for Transport,Department for Transport,16/07/2015,Agency Staff Costs,Rail Franchising,CAPITA BUSINESS SERVICES LTD,2000007430,2355.36,#,DL1 9HN,
Department for Transport,Department for Transport,16/07/2015,Agency Staff Costs,Rail Franchising,Experis Ltd,2000007437,12462.91,#,EC2M 2RB,
Department for Transport,Department for Transport,16/07/2015,Agents Fees,Group Finance,RAILWAYS PENSION MANAGEMENT LT,2000007454,1041244.43,#,DL3 6EH,
Department for Transport,Department for Transport,16/07/2015,Cap Grt Pri Sec-Cos.,"Energy, Technology and International",Blythe Electrical (Warwickshire),2000007481,2100,Blythe Elec MAY 15 #2100,B46 2JA,
Department for Transport,Department for Transport,16/07/2015,Cap Grt Pri Sec-Cos.,"Energy, Technology and International",Bravo Building Services Ltd,2000007479,3500,Bravo MAY 2015 #3500,IG9 5BS,
Department for Transport,Department for Transport,16/07/2015,Cap Grt Pri Sec-Cos.,"Energy, Technology and International",Earth Electrical (Southern) Ltd,2000007482,4200,Earth Electrical APR 15 #4200,GU14 8DS,
Department for Transport,Department for Transport,16/07/2015,Cap Grt Pri Sec-Cos.,"Policy, Legislation and Funding",Eversheds LLP,1700000033,-210000,HS2 Exceptional Hardship Scheme P2-156,CF10 5BT,
Department for Transport,Department for Transport,16/07/2015,Cap Grt Pri Sec-Cos.,"Policy, Legislation and Funding",Eversheds LLP,1700000033,210000,HS2 Exceptional Hardship Scheme P2-156,CF10 5BT,
Department for Transport,Department for Transport,16/07/2015,Cap Grt Pri Sec-Cos.,"Policy, Legislation and Funding",Eversheds LLP,2000007476,650000,#,CF10 5BT,
Department for Transport,Department for Transport,16/07/2015,Cap Grt Pri Sec-Cos.,"Energy, Technology and International",Medoria Limited,2000007483,2000,DRS Aug14 Medoria 2000.00,WF3 3DJ,
Department for Transport,Department for Transport,16/07/2015,Cap Grt Pri Sec-Cos.,"Energy, Technology and International",R S Merriman Ltd,2000007478,700,RS MERRIMAN APR 2015 #700,KW16 3JS,
Department for Transport,Department for Transport,16/07/2015,Cap Grt Pri Sec-Cos.,"Energy, Technology and International",Schneider Electric,2000007471,58185,DRS Aug14 Schneider 58185.00,W1W 6XX,
Department for Transport,Department for Transport,16/07/2015,Cap Grt Pri Sec-Cos.,"Energy, Technology and International",THE COLT CAR COMPANY LTD,2000007458,5005904.21,"""PiCG Mitsubishi JUNE2015 #5,005,904.21""",GL7 1LF,
Department for Transport,Department for Transport,16/07/2015,Cap Grt Pri Sec-Cos.,"Energy, Technology and International",Wing Electrical Ltd,2000007477,1750,DRS Aug14 Wing Electrical 1750.00,NG14 6EQ,
Department for Transport,Department for Transport,16/07/2015,Cars Maintenance,Motoring Services,THE PCC FOR AVON & SOMERSET,2000007469,716.3,#,BS20 8QJ,
Department for Transport,Department for Transport,16/07/2015,Courier Charges,Group Procurement and Property,DX NETWORK SERVICES LTD,2000007429,1768.21,#,NN3 6YG,
Department for Transport,Department for Transport,16/07/2015,Investigation Servic,Motoring Services,CH&I Associates Ltd,2000007470,600.6,#,SK11 8AA,
Department for Transport,Department for Transport,16/07/2015,Investigation Servic,Motoring Services,CH&I Associates Ltd,2000007470,3223.08,#,SK11 8AA,
Department for Transport,Department for Transport,16/07/2015,Investigation Servic,Motoring Services,Procordia Ltd,2000007473,1310.4,#,TN39 4SR,
Department for Transport,Department for Transport,16/07/2015,Legal Consultancy,Group Human Resource,Government Legal Department,2000007426,2311.32,#,WC2B 4TS,
Department for Transport,Department for Transport,16/07/2015,Legal Consultancy,"Motoring, Freight & London",Government Legal Department,2000007426,680.4,#,WC2B 4TS,
Department for Transport,Department for Transport,16/07/2015,Legal Consultancy,Rail Franchising,Eversheds LLP,2000007457,53979.3,#,EC2V 7WS,
Department for Transport,Department for Transport,16/07/2015,Legal Consultancy,"Policy, Legislation and Funding",xxxxxx,2000007446,26784,#,xxxxxx,
Department for Transport,Department for Transport,16/07/2015,Media & Press,Maritime,Take Note Ltd,2000007480,1949.9,#,SE1 1NL,
Department for Transport,Department for Transport,16/07/2015,Minor Purchases,Rail Accident Investigation Branch,Tetra Scene of Crime Ltd,2000007455,523.2,#,CM11 2SU,
Department for Transport,Department for Transport,16/07/2015,Occup Health Scheme,Strategic Roads & Smart Ticketing,London & Continental Railways Ltd,2000007452,2357.64,#,WC2B 4AN,
Department for Transport,Department for Transport,16/07/2015,Other Professional F,Maritime,Cofely Workplace Ltd,2000007484,3431.15,#,NE12 2EH,
Department for Transport,Department for Transport,16/07/2015,Printing,Group Communications,WILLIAMS LEA LIMITED,2000007461,452.52,#,NR3 1PD,
Department for Transport,Department for Transport,16/07/2015,Prog&ProjMgmt Consul,Local,ATKINS LTD (TRANSPORT PLANNING),2000007434,7989.41,#,WR5 1TX,
Department for Transport,Department for Transport,16/07/2015,Recruitment,"Group Services, Change and Capability",PENNA PLC,2000007445,9000,#,EC4M 7RD,
Department for Transport,Department for Transport,16/07/2015,Recruitment Fees,Group Human Resource,HM REVENUE & CUSTOMS,2000007427,12477.12,#,BN12 4XH,
Department for Transport,Department for Transport,16/07/2015,Recruitment Fees,Group Human Resource,HM REVENUE & CUSTOMS,2000007427,8615.44,#,BN12 4XH,
Department for Transport,Department for Transport,16/07/2015,Research,"Motoring, Freight & London",WSP UK Limited,2000007448,31741.28,#,RG21 4HU,
Department for Transport,Department for Transport,16/07/2015,Research,"Energy, Technology and International",HALCROW GROUP LTD,2000007438,53086.15,#,W6 7EF,
Department for Transport,Department for Transport,16/07/2015,Research,"Energy, Technology and International",HALCROW GROUP LTD,2000007438,49316.89,#,W6 7EF,
Department for Transport,Department for Transport,16/07/2015,Research,"Motoring, Freight & London",HALCROW GROUP LTD,2000007438,8663.46,#,W6 7EF,
Department for Transport,Department for Transport,16/07/2015,Research,Rail Strategy & Funding,PARSONS BRINCKERHOFF LTD,100010810,-7541.76,#,NE4 7YQ,
Department for Transport,Department for Transport,16/07/2015,Research,Rail Strategy & Funding,PARSONS BRINCKERHOFF LTD,100010810,6618.52,#,NE4 7YQ,
Department for Transport,Department for Transport,16/07/2015,Research,Strategic Roads & Smart Ticketing,HALCROW GROUP LTD,2000007438,65125,#,W6 7EF,
Department for Transport,Department for Transport,16/07/2015,Research,Analysis & Strategy,NATIONAL CENTRE FOR SOCIAL RESEARCH,2000007441,4550,#,EC1V 0AX,
Department for Transport,Department for Transport,16/07/2015,Research,Local,OVE ARUP & PARTNERS,2000007444,1311.59,#,NE1 3PL,
Department for Transport,Department for Transport,16/07/2015,Research,Local,TRANSPORT RESEARCH LABORATORY,2000007447,4459.1,#,RG40 3GA,
Department for Transport,Department for Transport,16/07/2015,Small Software,Group Procurement and Property,PROCSERVE SHARED SERVICES LTD,2000007460,6000,#,SW1W 9SR,
Department for Transport,Department for Transport,16/07/2015,Support Services,Aviation,BRISTOL INTERNATIONAL AIRPORT,2000007436,30378,#,BS48 3DY,
Department for Transport,Department for Transport,16/07/2015,Support Services,Aviation,NATIONAL AIR TRAFFIC SERV (ENROUTE),2000007450,143730,#,EH4 1PU,
Department for Transport,Department for Transport,16/07/2015,Support Services,Aviation,NATIONAL AIR TRAFFIC SERV (ENROUTE),2000007450,143730,#,EH4 1PU,
Department for Transport,Department for Transport,16/07/2015,Support Services,Aviation,NORWICH AIRPORT LTD,2000007443,30864,#,NR6 6JA,
Department for Transport,Department for Transport,16/07/2015,Support Services,Marine Accident Investigation Branch,TTI TESTING LTD,2000007456,13500,#,BN20 9DZ,
Department for Transport,Department for Transport,16/07/2015,Support Services,Group Procurement and Property,Irwin Mitchell,2000007474,108705,#,S3 8DT,
Department for Transport,Department for Transport,16/07/2015,Training,Aviation,xxxxxx,2000007459,1064.5,#,xxxxxx,
Department for Transport,Department for Transport,16/07/2015,Training,Local,Lumia Development,2000007475,3828,Intermediate SQL training for DfT stats,BS1 5HX,
Department for Transport,Department for Transport,16/07/2015,Training,Group Human Resource,Capita Business Services Ltd,2000007428,1889,#,B1 3RB,
Department for Transport,Department for Transport,16/07/2015,Training,Group Human Resource,Capita Business Services Ltd,2000007428,547,#,B1 3RB,
Department for Transport,Department for Transport,16/07/2015,Training,Group Human Resource,Capita Business Services Ltd,2000007428,662,#,B1 3RB,
Department for Transport,Department for Transport,16/07/2015,Transport  Consult,Rail Strategy & Funding,PARSONS BRINCKERHOFF LTD,100010810,923.24,#,NE4 7YQ,
Department for Transport,Department for Transport,16/07/2015,Transport  Consult,Local,OVE ARUP & PARTNERS,2000007444,18169.47,#,NE1 3PL,
Department for Transport,Department for Transport,16/07/2015,Travel Expenses UK,Marine Accident Investigation Branch,Rainbow Executive Cars Limited,2000007472,625.8,#,SP10 2HP,
Department for Transport,Department for Transport,17/07/2015,Agency Staff Costs,Local,BROOK STREET (UK) LIMITED,2000007539,642.02,#,AL1 4JB,
Department for Transport,Department for Transport,17/07/2015,Agency Staff Costs,Analysis & Strategy,CAPITA BUSINESS SERVICES LTD,2000007526,7553.16,#,DL1 9HN,
Department for Transport,Department for Transport,17/07/2015,Agency Staff Costs,Rail Franchising,Badenoch & Clark c/o Lauren Rogers,2000007528,4062,#,B37 7YE,
Department for Transport,Department for Transport,17/07/2015,Agency Staff Costs,Rail Franchising,Badenoch & Clark c/o Lauren Rogers,2000007528,3249.6,#,B37 7YE,
Department for Transport,Department for Transport,17/07/2015,Agency Staff Costs,Rail Franchising,Badenoch & Clark c/o Lauren Rogers,2000007528,3249.6,#,B37 7YE,
Department for Transport,Department for Transport,17/07/2015,Agency Staff Costs,Rail Franchising,Badenoch & Clark c/o Lauren Rogers,2000007528,3249.6,#,B37 7YE,
Department for Transport,Department for Transport,17/07/2015,Agency Staff Costs,HS2 Finance and Commercial,BROOK STREET (UK) LIMITED,2000007539,950.12,#,AL1 4JB,
Department for Transport,Department for Transport,17/07/2015,Agency Staff Costs,HS2 Finance and Commercial,BROOK STREET (UK) LIMITED,2000007539,872.71,#,AL1 4JB,
Department for Transport,Department for Transport,17/07/2015,Agency Staff Costs,Integrated Delivery,BROOK STREET (UK) LIMITED,2000007539,876.12,#,AL1 4JB,
Department for Transport,Department for Transport,17/07/2015,Agency Staff Costs,Integrated Delivery,BROOK STREET (UK) LIMITED,2000007539,955.5,#,AL1 4JB,
Department for Transport,Department for Transport,17/07/2015,Agency Staff Costs,Integrated Delivery,CAPITA BUSINESS SERVICES LTD,2000007526,4930.86,#,DL1 9HN,
Department for Transport,Department for Transport,17/07/2015,Agency Staff Costs,Network Rail Sponsorship,CAPITA BUSINESS SERVICES LTD,2000007526,823,#,DL1 9HN,
Department for Transport,Department for Transport,17/07/2015,Agency Staff Costs,Network Rail Sponsorship,CAPITA BUSINESS SERVICES LTD,2000007526,548.66,#,DL1 9HN,
Department for Transport,Department for Transport,17/07/2015,Agency Staff Costs,Network Rail Sponsorship,CAPITA BUSINESS SERVICES LTD,2000007526,1371.66,#,DL1 9HN,
Department for Transport,Department for Transport,17/07/2015,Cap Grt Pri Sec-Cos.,"Policy, Legislation and Funding",Eversheds LLP,2000007558,10092,xxxxxx,CF10 5BT,
Department for Transport,Department for Transport,17/07/2015,Cap Grt Pri Sec-Cos.,"Policy, Legislation and Funding",Eversheds LLP,2000007558,594.99,xxxxxx,CF10 5BT,
Department for Transport,Department for Transport,17/07/2015,Cap Grt Pri Sec-Cos.,"Policy, Legislation and Funding",Eversheds LLP,2000007558,275000,xxxxxx,CF10 5BT,
Department for Transport,Department for Transport,17/07/2015,Cap Grt Pri Sec-Cos.,"Policy, Legislation and Funding",Eversheds LLP,2000007558,5564.65,xxxxxx,CF10 5BT,
Department for Transport,Department for Transport,17/07/2015,Cap Grt Pri Sec-Cos.,"Energy, Technology and International",Volkswagen UK,2000007559,90310,"""PiCg VW April 2015  #90,310""",MK14 5AN,
Department for Transport,Department for Transport,17/07/2015,Cars Maintenance,Motoring Services,Professional Auto Centre Ltd,2000007556,740,#,SW8 1RY,
Department for Transport,Department for Transport,17/07/2015,Grant Payments,Rail Commercial & Programme Office,Transport for Greater Manchester,2000007543,3659029.14,1604 Wk3 Northern IFA 2015-16 Franchise Subsidy +,M1 3BG,
Department for Transport,Department for Transport,17/07/2015,Grant Payments,Rail Commercial & Programme Office,MERSEYTRAVEL,2000007540,727223.44,1604 Wk3 Northern IFA 2015-16 Franchise Subsidy +,L3 2AN,
Department for Transport,Department for Transport,17/07/2015,Grant Payments,Rail Commercial & Programme Office,NEXUS (TYNE & WEAR),2000007541,216297.29,1604 Wk3 Northern IFA 2015-16 Franchise Subsidy +,NE1 4AX,
Department for Transport,Department for Transport,17/07/2015,Grant Payments,Rail Commercial & Programme Office,SOUTH YORKSHIRE PTE,2000007542,1387907.6,1604 Wk3 Northern IFA 2015-16 Franchise Subsidy +,S2 5YT,
Department for Transport,Department for Transport,17/07/2015,Grant Payments,Rail Commercial & Programme Office,WEST YORKSHIRE PTA,2000007544,69279.79,1604 Wk3 Admin Grant 15-16_P1604 - West Yorkshire,LS1 2DE,
Department for Transport,Department for Transport,17/07/2015,Grant Payments,Rail Commercial & Programme Office,WEST YORKSHIRE PTA,2000007544,3334583.2,1604 Wk3 Northern IFA 2015-16 Franchise Subsidy +,LS1 2DE,
Department for Transport,Department for Transport,17/07/2015,Grt Aid to NDPBs,DG's Office,High Speed Two (HS2) Ltd,2000007546,10000000,HS2 July 2015 2rd Tranche,E14 5AB,
Department for Transport,Department for Transport,17/07/2015,Legal Consultancy,Group Human Resource,Government Legal Department,2000007564,727.08,#,WC2B 4TS,
Department for Transport,Department for Transport,17/07/2015,Legal Consultancy,Aviation,xxxxxx,2000007562,3266.67,#,xxxxxx,
Department for Transport,Department for Transport,17/07/2015,Legal Consultancy,Rail Franchising,NORTON ROSE LLP,2000007545,3362.82,#,SE1 2AQ,
Department for Transport,Department for Transport,17/07/2015,Management Consultan,Rail Commercial & Programme Office,RAIL MANCHE FINANCE EEIG,2000007523,15000,#,N1 9AW,
Department for Transport,Department for Transport,17/07/2015,Non Stock Machine Co,Motoring Services,XMA LIMITED GOSC,2000007554,6636.96,#,NG11 7EP,
Department for Transport,Department for Transport,17/07/2015,Pte Cost Of Servs Ch,Rail Commercial & Programme Office,Transport for Greater Manchester,2000007543,115638.39,1604 Wk3 Admin Grant 15-16_P1604 - Transport for G,M1 3BG,
Department for Transport,Department for Transport,17/07/2015,Pte Cost Of Servs Ch,Rail Commercial & Programme Office,NEXUS (TYNE & WEAR),2000007541,19720.48,1604 Wk3 Admin Grant 15-16_P1604 - Nexus,NE1 4AX,
Department for Transport,Department for Transport,17/07/2015,Pte Cost Of Servs Ch,Rail Commercial & Programme Office,SOUTH YORKSHIRE PTE,2000007542,95091.93,1604 Wk3 Admin Grant 15-16_P1604 - South Yorkshire,S2 5YT,
Department for Transport,Department for Transport,17/07/2015,Publications for Res,Rail Franchising,CREATIVE CHOICE CIC,2000007552,1262,#,SW1H 0DJ,
Department for Transport,Department for Transport,17/07/2015,Publications for Res,Aviation,CREATIVE CHOICE CIC,2000007552,23185,#,SW1H 0DJ,
Department for Transport,Department for Transport,17/07/2015,Recruitment,Group Human Resource,HM REVENUE & CUSTOMS,2000007566,20714.9,#,BN12 4XH,
Department for Transport,Department for Transport,17/07/2015,Research,"Motoring, Freight & London",OVE ARUP & PARTNERS,2000007535,2486.55,#,NE1 3PL,
Department for Transport,Department for Transport,17/07/2015,Research,Major Projects & Growth,OVE ARUP & PARTNERS,2000007535,9977,#,NE1 3PL,
Department for Transport,Department for Transport,17/07/2015,Research,Major Projects & Growth,OVE ARUP & PARTNERS,2000007535,9977,#,NE1 3PL,
Department for Transport,Department for Transport,17/07/2015,Research,Major Projects & Growth,OVE ARUP & PARTNERS,2000007535,9977,#,NE1 3PL,
Department for Transport,Department for Transport,17/07/2015,Research Grant-PS,Analysis & Strategy,Alsitek Limited,2000007569,30612.88,Final Payments for T-TRIG Grants,PE2 7JP,
Department for Transport,Department for Transport,17/07/2015,Research Grant-PS,Analysis & Strategy,London Underground Ltd,2000007567,25000,Final Payments for T-TRIG Grants,SE10 0ES,
Department for Transport,Department for Transport,17/07/2015,Research Grant-PS,Analysis & Strategy,Siemens PLC,2000007565,28926.17,Final Payments for T-TRIG Grants,BH17 7ER,
Department for Transport,Department for Transport,17/07/2015,Research Grant-PS,Analysis & Strategy,University College London,2000007574,24974,Final Payments for T-TRIG Grants,WC1H 0NN,
Department for Transport,Department for Transport,17/07/2015,Small Software,Rail Franchising,SOFTWARE AG (UK) LTD,2000007525,1200,#,DE24 8HS,
Department for Transport,Department for Transport,17/07/2015,Support Services,Environment & International Transport Analysis,REED BUSINESS INFORMATION LTD,2000007576,1332,#,RH16 3DH,
Department for Transport,Department for Transport,17/07/2015,Support Services,Group Procurement and Property,Crawford & Co Adjusters (UK) Ltd,2000007557,569443.57,July 2015 Top Up,B2 2PF,
Department for Transport,Department for Transport,17/07/2015,Telecom Equipment,Motoring Services,Azzuri Communications Ltd,2000007550,65921.39,Azzurri Quartely Maintenaence Agg 07.09.15-6.12.15,BB11 5FH,
Department for Transport,Department for Transport,17/07/2015,Telephone charges,Air Accident Investigation Branch,ALTERNATIVE NETWORKS PLC,2000007549,1463.36,#,SW11 3UL,
Department for Transport,Department for Transport,17/07/2015,Telephone charges,Motoring Services,VERIZON BUSINESS,2000007538,26712.4,Verizon Internet charges 01.07.2015,RG2 6DA,
Department for Transport,Department for Transport,17/07/2015,Telephone charges,Motoring Services,VERIZON BUSINESS,2000007538,13984.44,Verizon Internet Charges 04.07.2015,RG2 6DA,
Department for Transport,Department for Transport,17/07/2015,Transport  Consult,Rail Commercial & Programme Office,Arcadis LLP,2000007532,13735.15,#,N1 9AB,
Department for Transport,Department for Transport,17/07/2015,Transport  Consult,Rail Franchising,ATKINS LTD (TRANSPORT PLANNING),2000007527,2476.06,#,WR5 1TX,
Department for Transport,Department for Transport,17/07/2015,Transport  Consult,Rail Franchising,PARSONS BRINCKERHOFF LTD,2000007536,3227.75,#,NE4 7YQ,
Department for Transport,Department for Transport,17/07/2015,Transport  Consult,Aviation,Systra Ltd,2000007534,7707.36,#,GU21 5BH,
Department for Transport,Department for Transport,20/07/2015,Agency Staff Costs,Air Accident Investigation Branch,BROOK STREET (UK) LIMITED,2000007648,684.52,#,AL1 4JB,
Department for Transport,Department for Transport,20/07/2015,Agency Staff Costs,Strategic Roads & Smart Ticketing,BROOK STREET (UK) LIMITED,2000007648,917.46,#,AL1 4JB,
Department for Transport,Department for Transport,20/07/2015,Agency Staff Costs,General Counsel's Office,CAPITA BUSINESS SERVICES LTD,2000007633,2842.74,#,DL1 9HN,
Department for Transport,Department for Transport,20/07/2015,Agency Staff Costs,Analysis & Strategy,CAPITA BUSINESS SERVICES LTD,2000007633,7049.62,#,DL1 9HN,
Department for Transport,Department for Transport,20/07/2015,Agency Staff Costs,Motoring Services,BROOK STREET (UK) LIMITED,2000007648,606.9,#,AL1 4JB,
Department for Transport,Department for Transport,20/07/2015,Agency Staff Costs,Major Projects & Growth,Experis Ltd,2000007637,12080.04,#,EC2M 2RB,
Department for Transport,Department for Transport,20/07/2015,Agency Staff Costs,Major Projects & Growth,Experis Ltd,2000007637,4793.46,#,EC2M 2RB,
Department for Transport,Department for Transport,20/07/2015,Agency Staff Costs,Major Projects & Growth,CAPITA BUSINESS SERVICES LTD,2000007633,4074.9,#,DL1 9HN,
Department for Transport,Department for Transport,20/07/2015,Agency Staff Costs,Motoring Services,CAPITA BUSINESS SERVICES LTD,2000007633,4378.8,#,DL1 9HN,
Department for Transport,Department for Transport,20/07/2015,Agency Staff Costs,Motoring Services,CAPITA BUSINESS SERVICES LTD,2000007633,6577.99,#,DL1 9HN,
Department for Transport,Department for Transport,20/07/2015,Agency Staff Costs,Group Finance,CAPITA BUSINESS SERVICES LTD,2000007633,1529.47,#,DL1 9HN,
Department for Transport,Department for Transport,20/07/2015,Agency Staff Costs,Group Finance,CAPITA BUSINESS SERVICES LTD,2000007633,1911.84,#,DL1 9HN,
Department for Transport,Department for Transport,20/07/2015,Agency Staff Costs,Group Finance,CAPITA BUSINESS SERVICES LTD,2000007633,3823.68,#,DL1 9HN,
Department for Transport,Department for Transport,20/07/2015,Agency Staff Costs,Group Finance,CAPITA BUSINESS SERVICES LTD,2000007633,5267.42,#,DL1 9HN,
Department for Transport,Department for Transport,20/07/2015,Agency Staff Costs,Integrated Delivery,BROOK STREET (UK) LIMITED,2000007648,876.12,#,AL1 4JB,
Department for Transport,Department for Transport,20/07/2015,Agency Staff Costs,Rail Franchising,CAPITA BUSINESS SERVICES LTD,2000007633,27521.66,#,DL1 9HN,
Department for Transport,Department for Transport,20/07/2015,Agency Staff Costs,Integrated Delivery,CAPITA BUSINESS SERVICES LTD,2000007633,5080.7,#,DL1 9HN,
Department for Transport,Department for Transport,20/07/2015,Agency Staff Costs,Integrated Delivery,CAPITA BUSINESS SERVICES LTD,2000007633,4459.26,#,DL1 9HN,
Department for Transport,Department for Transport,20/07/2015,Agency Staff Costs,Integrated Delivery,CAPITA BUSINESS SERVICES LTD,2000007633,4778.76,#,DL1 9HN,
Department for Transport,Department for Transport,20/07/2015,Agency Staff Costs,Network Rail Sponsorship,CAPITA BUSINESS SERVICES LTD,2000007633,1456.92,#,DL1 9HN,
Department for Transport,Department for Transport,20/07/2015,Agency Staff Costs,Integrated Delivery,CAPITA BUSINESS SERVICES LTD,2000007633,4459.26,#,DL1 9HN,
Department for Transport,Department for Transport,20/07/2015,Agency Staff Costs,Network Rail Sponsorship,CAPITA BUSINESS SERVICES LTD,2000007633,1371.66,#,DL1 9HN,
Department for Transport,Department for Transport,20/07/2015,Agency Staff Costs,Project Sponsorship,Experis Ltd,2000007637,3286.94,#,EC2M 2RB,
Department for Transport,Department for Transport,20/07/2015,Agency Staff Costs,Project Sponsorship,Experis Ltd,2000007637,4108.68,#,EC2M 2RB,
Department for Transport,Department for Transport,20/07/2015,Agency Staff Costs,Group Finance,Experis Ltd,2000007637,7700.64,#,EC2M 2RB,
Department for Transport,Department for Transport,20/07/2015,Agency Staff Costs,Rail Commercial & Programme Office,Experis Ltd,2000007637,2999.7,#,EC2M 2RB,
Department for Transport,Department for Transport,20/07/2015,Agency Staff Costs,Rail Franchising,MICHAEL PAGE INTERNATIONAL,2000007654,720,#,SL1 3SA,
Department for Transport,Department for Transport,20/07/2015,Cap Grt Loc Auth,Local,WILTSHIRE COUNCIL,2000007657,350000,Chippenham Station Hub Development Costs,BA14 4DS,
Department for Transport,Department for Transport,20/07/2015,Cap Grt Pri Sec-Cos.,"Energy, Technology and International",A Shade Greener,2000007674,180940.63,DRS Jul14 A Shade Greener 180940.63,S75 3DP,
Department for Transport,Department for Transport,20/07/2015,Cap Grt Pri Sec-Cos.,"Energy, Technology and International",Audi UK,2000007677,425000,"""PiCG Audi June 2015 #425,000""",MK14 5AN,
Department for Transport,Department for Transport,20/07/2015,Cap Grt Pri Sec-Cos.,"Energy, Technology and International",BMM Contracts Ltd,2000007680,700,BMM Energy Solutions APR 2015 #700,ML6 8NY,
Department for Transport,Department for Transport,20/07/2015,Cap Grt Pri Sec-Cos.,"Energy, Technology and International",BMW UK Ltd,2000007669,915000,"""PiCG BMW JUNE 2015 #915,000""",RG12 8TA,
Department for Transport,Department for Transport,20/07/2015,Cap Grt Pri Sec-Cos.,"Energy, Technology and International",CITROEN AUTOMOBILES UK LTD,2000007660,3718,"""PiCG Citroen June 2015 #3,718""",CV3 1ND,
Department for Transport,Department for Transport,20/07/2015,Cap Grt Pri Sec-Cos.,"Energy, Technology and International",EV Charging Solutions Ltd,2000007671,846,EV Charging Solutions Ltd Apr 15 #846,NG14 7ES,
Department for Transport,Department for Transport,20/07/2015,Cap Grt Pri Sec-Cos.,"Policy, Legislation and Funding",Eversheds LLP,2000007670,637500,xxxxxx,CF10 5BT,
Department for Transport,Department for Transport,20/07/2015,Cap Grt Pri Sec-Cos.,"Energy, Technology and International",Horizon Systems Ltd,2000007675,594,HORIZON SYS APR 2015 #594,RM15 6RU,
Department for Transport,Department for Transport,20/07/2015,Cap Grt Pri Sec-Cos.,"Energy, Technology and International",Horizon Systems Ltd T/A Easy EV C,2000007679,900,Horizon Sys Apr 2015 #900,RM15 6RU,
Department for Transport,Department for Transport,20/07/2015,Cap Grt Pri Sec-Cos.,"Energy, Technology and International",Malones Group,2000007673,2100,Malones Group APR 15 #2100,NE11 0BQ,
Department for Transport,Department for Transport,20/07/2015,Cap Grt Pri Sec-Cos.,"Energy, Technology and International",Malones Group,2000007673,700,Malones Group Apr 2015 #700,NE11 0BQ,
Department for Transport,Department for Transport,20/07/2015,Cap Grt Pri Sec-Cos.,Network Rail Sponsorship,Network Rail Infstrcture (Treasury),2000007630,115000000,NETWORK RAIL LOAN PAYMENT,NW1 2DN,
Department for Transport,Department for Transport,20/07/2015,Cap Grt Pri Sec-Cos.,"Energy, Technology and International",Schneider Electric,2000007668,8100,SCHNEIDER ELEC #8100 Oct 2014,W1W 6XX,
Department for Transport,Department for Transport,20/07/2015,Cap Grt Pri Sec-Cos.,"Energy, Technology and International",Tesla Motors Limited GBP,2000007676,210000,"""PiCG TESLA June 2015 #210,000""",UB7 8JD,
Department for Transport,Department for Transport,20/07/2015,Cap Grt Pri Sec-Cos.,"Energy, Technology and International",VAUXHALL MOTORS,2000007662,110000,"""PiCG Vauxhall June 2015 #110,000""",LU1 3YT,
Department for Transport,Department for Transport,20/07/2015,Computer Consumables,Rail Franchising,INSIGHT DIRECT (UK) LTD,2000007632,1402.01,Hard Disks for MSA,UB8 1PH,
Department for Transport,Department for Transport,20/07/2015,CurrGrtPriSec-P&NPIS,"Motoring, Freight & London",ROSPA ENTERPRISES LTD,2000007653,121388.25,Q1 15/16 ACPO Road Safety Grant,B15 1RP,
Department for Transport,Department for Transport,20/07/2015,CurrGrtPriSec-P&NPIS,"Energy, Technology and International",ENERGY SAVING TRUST,2000007651,13000,"""ULEV Readiness Project June2015 #13,000""",SW1H 9BP,
Department for Transport,Department for Transport,20/07/2015,Grt Aid to NDPBs,Major Projects & Growth,Network Rail Istre (Capital Grants),2000007655,295019785.5,NR Network Grant Payment,NW1 2DN,
Department for Transport,Department for Transport,20/07/2015,IT Consultancy,Rail Strategy & Funding,Lockheed Martin Business,2000007672,2250,#,PA4 9LH,
Department for Transport,Department for Transport,20/07/2015,IT Consultancy,Major Projects & Growth,TRANSPORT RESEARCH LABORATORY,2000007646,14850,#,RG40 3GA,
Department for Transport,Department for Transport,20/07/2015,Other Advertising,Local,PENNA COMMUNICATIONS,2000007658,8565.07,#,EC4M 7RD,
Department for Transport,Department for Transport,20/07/2015,Research,Local,WSP UK Limited,100010924,-14691,#,RG21 4HU,
Department for Transport,Department for Transport,20/07/2015,Research,Local,WSP UK Limited,100010924,14691,#,RG21 4HU,
Department for Transport,Department for Transport,20/07/2015,Research,"Energy, Technology and International",LOUGHBOROUGH UNIVERSITY,2000007642,224833.16,#,LE11 3TU,
Department for Transport,Department for Transport,20/07/2015,Research,Rail Strategy & Funding,PARSONS BRINCKERHOFF LTD,2000007644,7541.76,#,NE4 7YQ,
Department for Transport,Department for Transport,20/07/2015,Secondments,Transport Security Co-ordination and Response,DEFENCE SCIENCE & TECHNOLOGY,2000007636,5426.59,#,PO14 9HL,
Department for Transport,Department for Transport,20/07/2015,Secondments,Transport Security Co-ordination and Response,DEFENCE SCIENCE & TECHNOLOGY,2000007636,5377.93,#,PO14 9HL,
Department for Transport,Department for Transport,20/07/2015,Security,Transport Security Co-ordination and Response,Micromeritics Limited,2000007678,12486.18,#,SG5 3JH,
Department for Transport,Department for Transport,20/07/2015,Small Software,Local,LANDMARK INFORMATION GROUP LTD,2000007641,3001.2,#,EX2 7HY,
Department for Transport,Department for Transport,20/07/2015,Subscriptions to Pro,Group Human Resource,DFT ONE TIME VENDOR,2000007682,500,#,SW1P 4DR,
Department for Transport,Department for Transport,20/07/2015,Subscriptions to Pro,Group Human Resource,DFT ONE TIME VENDOR,2000007681,5040,#,SW1P 4DR,
Department for Transport,Department for Transport,20/07/2015,Support Services,Aviation,HUMBERSIDE INT AIRPORT LTD,2000007656,30864,#,DN39 6YH,
Department for Transport,Department for Transport,20/07/2015,Support Services,Aviation,HUMBERSIDE INT AIRPORT LTD,2000007656,30864,#,DN39 6YH,
Department for Transport,Department for Transport,20/07/2015,Transport  Consult,Major Projects & Growth,MOTT MACDONALD,2000007643,49687.38,#,CR9 2UL,
Department for Transport,Department for Transport,20/07/2015,Transport  Consult,Rail Franchising,ERNST & YOUNG LLP,2000007638,178878.24,#,SE1 2AF,
Department for Transport,Department for Transport,20/07/2015,Travel Expenses UK,Marine Accident Investigation Branch,Clyde Travel Management,2000007635,1387.53,Clyde 09.07-12.07.2015,G52 4JQ,
Department for Transport,Department for Transport,21/07/2015,Agency Staff Costs,General Counsel's Office,CAPITA BUSINESS SERVICES LTD,2000007726,2842.74,#,DL1 9HN,
Department for Transport,Department for Transport,21/07/2015,Agency Staff Costs,Group Finance,CAPITA BUSINESS SERVICES LTD,2000007726,2745.06,#,DL1 9HN,
Department for Transport,Department for Transport,21/07/2015,Agency Staff Costs,Integrated Delivery,Badenoch & Clark c/o Lauren Rogers,2000007728,4231.02,#,B37 7YE,
Department for Transport,Department for Transport,21/07/2015,Agency Staff Costs,Integrated Delivery,Badenoch & Clark c/o Lauren Rogers,2000007728,4231.02,#,B37 7YE,
Department for Transport,Department for Transport,21/07/2015,Agency Staff Costs,Integrated Delivery,Badenoch & Clark c/o Lauren Rogers,2000007728,1692.41,#,B37 7YE,
Department for Transport,Department for Transport,21/07/2015,Agency Staff Costs,Integrated Delivery,Badenoch & Clark c/o Lauren Rogers,2000007728,4231.02,#,B37 7YE,
Department for Transport,Department for Transport,21/07/2015,Agency Staff Costs,Integrated Delivery,Badenoch & Clark c/o Lauren Rogers,2000007728,4231.02,#,B37 7YE,
Department for Transport,Department for Transport,21/07/2015,Agency Staff Costs,Integrated Delivery,BROOK STREET (UK) LIMITED,2000007736,963.83,#,AL1 4JB,
Department for Transport,Department for Transport,21/07/2015,Agency Staff Costs,Integrated Delivery,CAPITA BUSINESS SERVICES LTD,2000007726,5748.67,#,DL1 9HN,
Department for Transport,Department for Transport,21/07/2015,Agency Staff Costs,Rail Franchising,CAPITA BUSINESS SERVICES LTD,2000007726,16191.28,#,DL1 9HN,
Department for Transport,Department for Transport,21/07/2015,Agency Staff Costs,Rail Franchising,CAPITA BUSINESS SERVICES LTD,2000007726,4139.76,#,DL1 9HN,
Department for Transport,Department for Transport,21/07/2015,Agency Staff Costs,Rail Franchising,CAPITA BUSINESS SERVICES LTD,2000007726,3596.64,#,DL1 9HN,
Department for Transport,Department for Transport,21/07/2015,Agency Staff Costs,HS2 Finance and Commercial,CAPITA BUSINESS SERVICES LTD,2000007726,4918.14,#,DL1 9HN,
Department for Transport,Department for Transport,21/07/2015,Agency Staff Costs,Rail Franchising,Experis Ltd,2000007731,7737.41,#,EC2M 2RB,
Department for Transport,Department for Transport,21/07/2015,Agency Staff Costs,Rail Franchising,Experis Ltd,2000007731,1335.31,#,EC2M 2RB,
Department for Transport,Department for Transport,21/07/2015,Agency Staff Costs,Rail Franchising,Experis Ltd,2000007731,5526.72,#,EC2M 2RB,
Department for Transport,Department for Transport,21/07/2015,Financial Consultanc,Rail Franchising,ERNST & YOUNG LLP,2000007732,57455.2,#,SE1 2AF,
Department for Transport,Department for Transport,21/07/2015,Investigation Servic,Analysis & Strategy,ATKINS LTD (TRANSPORT PLANNING),2000007727,10516.8,#,WR5 1TX,
Department for Transport,Department for Transport,21/07/2015,L&B Excl Dwellings,Maritime,Guideline Lift Services Ltd,2000007746,24172.79,#,BR8 7AG,
Department for Transport,Department for Transport,21/07/2015,Legal Consultancy,Major Projects & Growth,DLA PIPER UK LLP,2000007730,5177.1,#,M2 3DL,
Department for Transport,Department for Transport,21/07/2015,Other Professional F,General Counsel's Office,Government Legal Department,2000007724,2281250,#,WC2B 4TS,
Department for Transport,Department for Transport,21/07/2015,Prog&ProjMgmt Consul,Project Sponsorship,PARSONS BRINCKERHOFF LTD,2000007734,4336.78,#,NE4 7YQ,
Department for Transport,Department for Transport,21/07/2015,Property Consultancy,Group Procurement and Property,Carter Jonas LLP,2000007742,8060,#,W1G 0BG,
Department for Transport,Department for Transport,21/07/2015,Research,Project Sponsorship,OVE ARUP & PARTNERS,2000007733,21972.4,#,NE1 3PL,
Department for Transport,Department for Transport,21/07/2015,Research Grant-PS,Analysis & Strategy,Milne Research Ltd,2000007744,24550,Final Payments for T-TRIG Grant,HD1 3BD,
Department for Transport,Department for Transport,21/07/2015,Secondments,Aviation,Innoaviate Limited,2000007741,7587.2,#,KT12 5HD,
Department for Transport,Department for Transport,21/07/2015,Small Software,Motoring Services,Software Box Ltd,2000007725,2280,#,YO61 1ET,
Department for Transport,Department for Transport,21/07/2015,Training,Motoring Services,Software Box Ltd,2000007725,1878,#,YO61 1ET,
Department for Transport,Department for Transport,21/07/2015,Training,Strategy and Engagement,CIPFA,2000007729,2874,#,WC1A 9GS,
Department for Transport,Department for Transport,21/07/2015,Training,Rail Franchising,CTORI Construction Consultants Ltd,2000007743,1300,#,NW1 0AG,
Department for Transport,Department for Transport,21/07/2015,Transport  Consult,Rail Commercial & Programme Office,Directly Operated Railways Ltd,2000007737,2854.8,#,EC4A 1BL,
Department for Transport,Department for Transport,21/07/2015,Transport  Consult,Aviation,Brunel Planning Ltd,2000007740,2520,#,TN4 9LZ,
Department for Transport,Department for Transport,21/07/2015,Waste disposal/Refus,Group Procurement and Property,Banner Business Services Ltd,2000007739,617.5,#,NR3 1QU,
Department for Transport,Department for Transport,22/07/2015,Agency Staff Costs,Local,BROOK STREET (UK) LIMITED,2000007869,642.02,#,AL1 4JB,
Department for Transport,Department for Transport,22/07/2015,Agency Staff Costs,General Counsel's Office,CAPITA BUSINESS SERVICES LTD,2000007859,2558.47,#,DL1 9HN,
Department for Transport,Department for Transport,22/07/2015,Agency Staff Costs,Integrated Delivery,Allen Lane,2000007861,4036.38,#,SW1Y 6RJ,
Department for Transport,Department for Transport,22/07/2015,Agency Staff Costs,Integrated Delivery,NETWORKERS INTERNATIONAL (UK) PLC,2000007891,3391.26,#,BR1 1HP,
Department for Transport,Department for Transport,22/07/2015,Agency Staff Costs,Major Projects & Growth,LEND LEASE CONSULTING (EMEA) LTD,2000007885,4793.46,#,NW1 3BF,
Department for Transport,Department for Transport,22/07/2015,Agency Staff Costs,Rail Commercial & Programme Office,Badenoch & Clark c/o Lauren Rogers,2000007862,3180,#,B37 7YE,
Department for Transport,Department for Transport,22/07/2015,Agency Staff Costs,Rail Commercial & Programme Office,CAPITA BUSINESS SERVICES LTD,2000007859,9744.34,#,DL1 9HN,
Department for Transport,Department for Transport,22/07/2015,Agency Staff Costs,Rail Commercial & Programme Office,CAPITA BUSINESS SERVICES LTD,2000007859,8732.28,#,DL1 9HN,
Department for Transport,Department for Transport,22/07/2015,Agency Staff Costs,Rail Franchising,CAPITA BUSINESS SERVICES LTD,2000007859,4930.86,#,DL1 9HN,
Department for Transport,Department for Transport,22/07/2015,Agency Staff Costs,Integrated Delivery,CAPITA BUSINESS SERVICES LTD,2000007859,2680.14,#,DL1 9HN,
Department for Transport,Department for Transport,22/07/2015,Agency Staff Costs,Rail Franchising,CAPITA BUSINESS SERVICES LTD,2000007859,4591.37,#,DL1 9HN,
Department for Transport,Department for Transport,22/07/2015,Agency Staff Costs,Rail Franchising,CAPITA BUSINESS SERVICES LTD,2000007859,8242.68,#,DL1 9HN,
Department for Transport,Department for Transport,22/07/2015,Agency Staff Costs,Rail Franchising,CAPITA BUSINESS SERVICES LTD,2000007859,1413.22,#,DL1 9HN,
Department for Transport,Department for Transport,22/07/2015,Agency Staff Costs,Rail Franchising,CAPITA BUSINESS SERVICES LTD,2000007859,4450.14,#,DL1 9HN,
Department for Transport,Department for Transport,22/07/2015,Agency Staff Costs,Integrated Delivery,CAPITA BUSINESS SERVICES LTD,2000007859,3899.71,#,DL1 9HN,
Department for Transport,Department for Transport,22/07/2015,Agency Staff Costs,Environment & International Transport Analysis,CAPITA BUSINESS SERVICES LTD,2000007859,7065.48,#,DL1 9HN,
Department for Transport,Department for Transport,22/07/2015,Agency Staff Costs,Group Finance,CAPITA BUSINESS SERVICES LTD,2000007859,1093.5,#,DL1 9HN,
Department for Transport,Department for Transport,22/07/2015,Agency Staff Costs,Integrated Delivery,CAPITA BUSINESS SERVICES LTD,2000007859,2266.14,#,DL1 9HN,
Department for Transport,Department for Transport,22/07/2015,Agency Staff Costs,Rail Franchising,CAPITA BUSINESS SERVICES LTD,2000007859,4472.11,#,DL1 9HN,
Department for Transport,Department for Transport,22/07/2015,Agency Staff Costs,Integrated Delivery,CAPITA BUSINESS SERVICES LTD,2000007859,2160.54,#,DL1 9HN,
Department for Transport,Department for Transport,22/07/2015,Agency Staff Costs,Network Rail Sponsorship,CAPITA BUSINESS SERVICES LTD,2000007859,1371.66,#,DL1 9HN,
Department for Transport,Department for Transport,22/07/2015,Basic Franchise Pay,Rail Commercial & Programme Office,LONDON MIDLAND RAILWAY,2000007888,3593516.95,1604 Wk3 Franchise Subsidy 2015-16_P1604 - LONDON,B2 4JB,
Department for Transport,Department for Transport,22/07/2015,Basic Franchise Pay,Rail Commercial & Programme Office,LONDON MIDLAND RAILWAY,2000007888,66480.87,1604 Wk3 RPI+0 adjustment 15-16_P1604 - LONDON MID,B2 4JB,
Department for Transport,Department for Transport,22/07/2015,Basic Franchise Pay,Rail Commercial & Programme Office,FIRST KEOLIS TRANSPENNINE,2000007886,2058715.91,1604 Wk3 TPE DA_Franchise Subsidy 2015-16_P1604 -,M1 6LT,
Department for Transport,Department for Transport,22/07/2015,Basic Franchise Pay,Rail Commercial & Programme Office,NORTHERN RAIL LTD,2000007887,8981733.19,1604 Wk3 Northern IFA 2015-16 Subsidy_P1604 - NORT,YO1 6HT,
Department for Transport,Department for Transport,22/07/2015,Basic Franchise Rec,Rail Commercial & Programme Office,Govia Thameslink Railway Limited,2000007915,70337195.74,1604 Wk3 Basic Franchise Payment P1604 - GOVIA THA,EC1V 9QS,
Department for Transport,Department for Transport,22/07/2015,Basic Franchise Rec,Rail Commercial & Programme Office,Govia Thameslink Railway Limited,2000007915,-51414478.09,1604 Wk3 PAR Period 1604 - GOVIA THAMESLINK RAILWA,EC1V 9QS,
Department for Transport,Department for Transport,22/07/2015,Basic Franchise Rec,Rail Commercial & Programme Office,Govia Thameslink Railway Limited,2000007915,-2097464,1604 Wk3 PAR Reconcilliation Amount Period 1603 -,EC1V 9QS,
Department for Transport,Department for Transport,22/07/2015,Building Service Cha,Group Procurement and Property,Amey Community Ltd,2000007918,12712.85,#,OX4 4DQ,
Department for Transport,Department for Transport,22/07/2015,Building Service Cha,Group Procurement and Property,Amey Community Ltd,2000007918,211880.88,#,OX4 4DQ,
Department for Transport,Department for Transport,22/07/2015,Cap Grt Loc Auth,Local,BATH & NE SOMERSET DC,2000007792,942750,Highway Maintenance Block - 2015/16 Quarter 2,BA1 5AW,
Department for Transport,Department for Transport,22/07/2015,Cap Grt Loc Auth,Local,BEDFORD BC,2000007870,746500,Highway Maintenance Block - 2015/16 Quarter 2,MK40 1SJ,
Department for Transport,Department for Transport,22/07/2015,Cap Grt Loc Auth,Local,BLACKBURN WITH DARWEN BC,2000007843,482250,Highway Maintenance Block - 2015/16 Quarter 2,BB1 7DY,
Department for Transport,Department for Transport,22/07/2015,Cap Grt Loc Auth,Local,BLACKPOOL COUNCIL,2000007902,300250,Highway Maintenance Block - 2015/16 Quarter 2,FY3 7HW,
Department for Transport,Department for Transport,22/07/2015,Cap Grt Loc Auth,Local,BOURNEMOUTH BOROUGH COUNCIL,2000007893,363250,Highway Maintenance Block - 2015/16 Quarter 2,BH2 5SL,
Department for Transport,Department for Transport,22/07/2015,Cap Grt Loc Auth,Local,BRACKNELL FOREST BC,2000007863,425250,Highway Maintenance Block - 2015/16 Quarter 2,RG12 1AQ,
Department for Transport,Department for Transport,22/07/2015,Cap Grt Loc Auth,Local,Brighton & Hove City Council,2000007793,655750,Highway Maintenance Block - 2015/16 Quarter 2,BN1 1JE,
Department for Transport,Department for Transport,22/07/2015,Cap Grt Loc Auth,Local,BRISTOL CITY COUNCIL,2000007794,973000,Highway Maintenance Block - 2015/16 Quarter 2,BS99 7BL,
Department for Transport,Department for Transport,22/07/2015,Cap Grt Loc Auth,Local,BUCKINGHAMSHIRE CC (REVENUE),2000007795,2625000,Highway Maintenance Block - 2015/16 Quarter 2,HP20 1UD,
Department for Transport,Department for Transport,22/07/2015,Cap Grt Loc Auth,Local,CAMBRIDGESHIRE COUNTY COUNCIL,2000007796,3752000,Highway Maintenance Block - 2015/16 Quarter 2,CB3 0AP,
Department for Transport,Department for Transport,22/07/2015,Cap Grt Loc Auth,Local,Central Bedfordshire Council,2000007897,1114250,Highway Maintenance Block - 2015/16 Quarter 2,SG17 5TQ,
Department for Transport,Department for Transport,22/07/2015,Cap Grt Loc Auth,Local,Centro,2000007892,4073750,Highway Maintenance Block - 2015/16 Quarter 2,B19 3SD,
Department for Transport,Department for Transport,22/07/2015,Cap Grt Loc Auth,Local,CHESHIRE EAST BOROUGH COUNCIL,2000007894,2612500,Highway Maintenance Block - 2015/16 Quarter 2,CW11 1HZ,
Department for Transport,Department for Transport,22/07/2015,Cap Grt Loc Auth,Local,Cheshire West & Chester Council,2000007895,1987750,Highway Maintenance Block - 2015/16 Quarter 2,CH1 1SE,
Department for Transport,Department for Transport,22/07/2015,Cap Grt Loc Auth,Local,CITY OF YORK COUNCIL,2000007797,567500,Highway Maintenance Block - 2015/16 Quarter 2,Y01 7WH,
Department for Transport,Department for Transport,22/07/2015,Cap Grt Loc Auth,Local,CORNWALL COUNTY COUNCIL,2000007853,5671250,Highway Maintenance Block - 2015/16 Quarter 2,TR1 38D,
Department for Transport,Department for Transport,22/07/2015,Cap Grt Loc Auth,Local,CUMBRIA COUNTY COUNCIL,2000007798,6770000,Highway Maintenance Block - 2015/16 Quarter 2,CA3 8NA,
Department for Transport,Department for Transport,22/07/2015,Cap Grt Loc Auth,Local,DARLINGTON BC,2000007799,434500,Highway Maintenance Block - 2015/16 Quarter 2,TS19 1JA,
Department for Transport,Department for Transport,22/07/2015,Cap Grt Loc Auth,Local,Derby City Council,2000007800,553500,Highway Maintenance Block - 2015/16 Quarter 2,DE1 2FS,
Department for Transport,Department for Transport,22/07/2015,Cap Grt Loc Auth,Local,Derby County Council,2000007804,2971500,Highway Maintenance Block - 2015/16 Quarter 2,DE1 2FS,
Department for Transport,Department for Transport,22/07/2015,Cap Grt Loc Auth,Local,DERBYSHIRE COUNTY COUNCIL,2000007801,4745250,Highway Maintenance Block - 2015/16 Quarter 2,DE4 3AH,
Department for Transport,Department for Transport,22/07/2015,Cap Grt Loc Auth,Local,DEVON COUNTY COUNCIL,2000007802,10576500,Highway Maintenance Block - 2015/16 Quarter 2,EX2 4QJ,
Department for Transport,Department for Transport,22/07/2015,Cap Grt Loc Auth,Local,DORSET COUNTY COUNCIL,2000007803,3477000,Highway Maintenance Block - 2015/16 Quarter 2,DT1 1XJ,
Department for Transport,Department for Transport,22/07/2015,Cap Grt Loc Auth,Local,EAST RIDING OF YORKSHIRE COUNCIL,2000007871,2761750,Highway Maintenance Block - 2015/16 Quarter 2,HU17 9BA,
Department for Transport,Department for Transport,22/07/2015,Cap Grt Loc Auth,Local,EAST SUSSEX COUNTY COUNCIL,2000007856,2657750,Highway Maintenance Block - 2015/16 Quarter 2,BN7 1UE,
Department for Transport,Department for Transport,22/07/2015,Cap Grt Loc Auth,Local,ESSEX COUNTY COUNCIL,2000007805,6143750,Highway Maintenance Block - 2015/16 Quarter 2,CM1 1LX,
Department for Transport,Department for Transport,22/07/2015,Cap Grt Loc Auth,Local,GATESHEAD MBC,2000007844,684750,Highway Maintenance Block - 2015/16 Quarter 2,NE8 1HH,
Department for Transport,Department for Transport,22/07/2015,Cap Grt Loc Auth,Local,GLOUCESTERSHIRE COUNTY COUNCIL,2000007791,4458250,Highway Maintenance Block - 2015/16 Quarter 2,GL1 2TJ,
Department for Transport,Department for Transport,22/07/2015,Cap Grt Loc Auth,Local,HALTON BC,2000007806,557000,Highway Maintenance Block - 2015/16 Quarter 2,WA8 6NB,
Department for Transport,Department for Transport,22/07/2015,Cap Grt Loc Auth,Local,HAMPSHIRE COUNTY COUNCIL,2000007807,6706000,Highway Maintenance Block - 2015/16 Quarter 2,SO23 8UB,
Department for Transport,Department for Transport,22/07/2015,Cap Grt Loc Auth,Local,HARTLEPOOL BOROUGH COUNCIL,2000007808,296250,Highway Maintenance Block - 2015/16 Quarter 2,TS24 7BT,
Department for Transport,Department for Transport,22/07/2015,Cap Grt Loc Auth,Local,HEREFORDSHIRE COUNCIL,2000007872,2880750,Highway Maintenance Block - 2015/16 Quarter 2,HR4 0XH,
Department for Transport,Department for Transport,22/07/2015,Cap Grt Loc Auth,Local,Hertfordshire County Council,2000007809,4451250,Highway Maintenance Block - 2015/16 Quarter 2,SG13 8DN,
Department for Transport,Department for Transport,22/07/2015,Cap Grt Loc Auth,Local,KENT COUNTY COUNCIL,2000007811,6819250,Highway Maintenance Block - 2015/16 Quarter 2,ME14 1XQ,
Department for Transport,Department for Transport,22/07/2015,Cap Grt Loc Auth,Local,KINGSTON UPON HULL CITY COUNCIL,2000007873,562750,Highway Maintenance Block - 2015/16 Quarter 2,HU1 2AB,
Department for Transport,Department for Transport,22/07/2015,Cap Grt Loc Auth,Local,KNOWSLEY MBC,2000007812,463000,Highway Maintenance Block - 2015/16 Quarter 2,L32 1TX,
Department for Transport,Department for Transport,22/07/2015,Cap Grt Loc Auth,Local,LANCASHIRE COUNTY COUNCIL,2000007813,5768750,Highway Maintenance Block - 2015/16 Quarter 2,PR1 0LD,
Department for Transport,Department for Transport,22/07/2015,Cap Grt Loc Auth,Local,Leicester City Council,2000007814,653250,Highway Maintenance Block - 2015/16 Quarter 2,LE1 1FZ,
Department for Transport,Department for Transport,22/07/2015,Cap Grt Loc Auth,Local,LEICESTERSHIRE COUNTY COUNCIL,2000007845,3555000,Highway Maintenance Block - 2015/16 Quarter 2,LE3 8RB,
Department for Transport,Department for Transport,22/07/2015,Cap Grt Loc Auth,Local,Lincolnshire County Council,2000007912,7753250,Highway Maintenance Block - 2015/16 Quarter 2,LN1 1YL,
Department for Transport,Department for Transport,22/07/2015,Cap Grt Loc Auth,Local,LIVERPOOL CITY COUNCIL,2000007874,1053750,Highway Maintenance Block - 2015/16 Quarter 2,L2 2DH,
Department for Transport,Department for Transport,22/07/2015,Cap Grt Loc Auth,Local,LUTON BOROUGH COUNCIL,2000007815,342000,Highway Maintenance Block - 2015/16 Quarter 2,LU1 2BQ,
Department for Transport,Department for Transport,22/07/2015,Cap Grt Loc Auth,Local,MEDWAY COUNCIL,2000007854,636250,Highway Maintenance Block - 2015/16 Quarter 2,ME4 4TR,
Department for Transport,Department for Transport,22/07/2015,Cap Grt Loc Auth,Local,MIDDLESBROUGH BC,2000007790,457750,Highway Maintenance Block - 2015/16 Quarter 2,TS1 2QQ,
Department for Transport,Department for Transport,22/07/2015,Cap Grt Loc Auth,Local,MILTON KEYNES BC,2000007816,1280500,Highway Maintenance Block - 2015/16 Quarter 2,MK9 3EE,
Department for Transport,Department for Transport,22/07/2015,Cap Grt Loc Auth,Local,Newcastle City Council,2000007875,678500,Highway Maintenance Block - 2015/16 Quarter 2,NE1 8QH,
Department for Transport,Department for Transport,22/07/2015,Cap Grt Loc Auth,Local,NORFOLK COUNTY COUNCIL,2000007825,7159250,Highway Maintenance Block - 2015/16 Quarter 2,NR1 2UG,
Department for Transport,Department for Transport,22/07/2015,Cap Grt Loc Auth,Local,North East Lincolnshire Council,2000007876,499000,Highway Maintenance Block - 2015/16 Quarter 2,DN35 8LN,
Department for Transport,Department for Transport,22/07/2015,Cap Grt Loc Auth,Local,North Lincolnshire Council,2000007846,1150250,Highway Maintenance Block - 2015/16 Quarter 2,DN16 1AB,
Department for Transport,Department for Transport,22/07/2015,Cap Grt Loc Auth,Local,North Somerset Council,2000007817,1003000,Highway Maintenance Block - 2015/16 Quarter 2,BS23 1UJ,
Department for Transport,Department for Transport,22/07/2015,Cap Grt Loc Auth,Local,North Tyneside Council,2000007818,564500,Highway Maintenance Block - 2015/16 Quarter 2,NE27 0BY,
Department for Transport,Department for Transport,22/07/2015,Cap Grt Loc Auth,Local,NORTH YORKSHIRE CC,2000007877,7412500,Highway Maintenance Block - 2015/16 Quarter 2,DL7 8AL,
Department for Transport,Department for Transport,22/07/2015,Cap Grt Loc Auth,Local,NORTHAMPTONSHIRE CC,2000007819,3819000,Highway Maintenance Block - 2015/16 Quarter 2,NN4 7DB,
Department for Transport,Department for Transport,22/07/2015,Cap Grt Loc Auth,Local,Northumberland County Council,2000007878,4360750,Highway Maintenance Block - 2015/16 Quarter 2,NE61 2EF,
Department for Transport,Department for Transport,22/07/2015,Cap Grt Loc Auth,Local,NOTTINGHAM CITY COUNCIL,2000007890,553750,Highway Maintenance Block - 2015/16 Quarter 2,NG1 5NT,
Department for Transport,Department for Transport,22/07/2015,Cap Grt Loc Auth,Local,NOTTINGHAMSHIRE CC,2000007879,3730250,Highway Maintenance Block - 2015/16 Quarter 2,NG2 7LA,
Department for Transport,Department for Transport,22/07/2015,Cap Grt Loc Auth,Local,OXFORDSHIRE CC,2000007820,4173750,Highway Maintenance Block - 2015/16 Quarter 2,OX1 1TH,
Department for Transport,Department for Transport,22/07/2015,Cap Grt Loc Auth,Local,PETERBOROUGH CITY COUNCIL,2000007821,865500,Highway Maintenance Block - 2015/16 Quarter 2,PE1 1FF,
Department for Transport,Department for Transport,22/07/2015,Cap Grt Loc Auth,Local,PLYMOUTH CITY COUNCIL,2000007822,581250,Highway Maintenance Block - 2015/16 Quarter 2,PL1 2AA,
Department for Transport,Department for Transport,22/07/2015,Cap Grt Loc Auth,Local,POOLE BC,2000007823,400250,Highway Maintenance Block - 2015/16 Quarter 2,BH15 2RZ,
Department for Transport,Department for Transport,22/07/2015,Cap Grt Loc Auth,Local,PORTSMOUTH CITY COUNCIL,2000007847,357500,Highway Maintenance Block - 2015/16 Quarter 2,PO1 2BG,
Department for Transport,Department for Transport,22/07/2015,Cap Grt Loc Auth,Local,Reading Borough Council,2000007824,368000,Highway Maintenance Block - 2015/16 Quarter 2,RG1 2LU,
Department for Transport,Department for Transport,22/07/2015,Cap Grt Loc Auth,Local,REDCAR & CLEVELAND BC,2000007848,528250,Highway Maintenance Block - 2015/16 Quarter 2,TS6 9AR,
Department for Transport,Department for Transport,22/07/2015,Cap Grt Loc Auth,Local,RUTLAND COUNTY COUNCIL,2000007826,476750,Highway Maintenance Block - 2015/16 Quarter 2,LE15 6HP,
Department for Transport,Department for Transport,22/07/2015,Cap Grt Loc Auth,Local,SEFTON MBC,2000007827,723750,Highway Maintenance Block - 2015/16 Quarter 2,PR8 1DA,
Department for Transport,Department for Transport,22/07/2015,Cap Grt Loc Auth,Local,Sheffield City Region,2000007882,3142000,Highway Maintenance Block - 2015/16 Quarter 2,S1 4PL,
Department for Transport,Department for Transport,22/07/2015,Cap Grt Loc Auth,Local,SHROPSHIRE COUNTY COUNCIL,2000007881,4124500,Highway Maintenance Block - 2015/16 Quarter 2,SY2 6ND,
Department for Transport,Department for Transport,22/07/2015,Cap Grt Loc Auth,Local,Slough Borough Council,2000007828,226000,Highway Maintenance Block - 2015/16 Quarter 2,SL1 3UF,
Department for Transport,Department for Transport,22/07/2015,Cap Grt Loc Auth,Local,SOMERSET COUNTY COUNCIL,2000007829,5628500,Highway Maintenance Block - 2015/16 Quarter 2,TA1 4DY,
Department for Transport,Department for Transport,22/07/2015,Cap Grt Loc Auth,Local,SOUTH GLOUCESTERSHIRE COUNCIL,2000007830,1270000,Highway Maintenance Block - 2015/16 Quarter 2,BS15 9DW,
Department for Transport,Department for Transport,22/07/2015,Cap Grt Loc Auth,Local,SOUTH TYNESIDE MBC,2000007849,387000,Highway Maintenance Block - 2015/16 Quarter 2,NE33 4JP,
Department for Transport,Department for Transport,22/07/2015,Cap Grt Loc Auth,Local,Southampton City Council,2000007855,426000,Highway Maintenance Block - 2015/16 Quarter 2,SO14 7LY,
Department for Transport,Department for Transport,22/07/2015,Cap Grt Loc Auth,Local,SOUTHEND-ON-SEA BC,2000007883,348250,Highway Maintenance Block - 2015/16 Quarter 2,SS2 6AN,
Department for Transport,Department for Transport,22/07/2015,Cap Grt Loc Auth,Local,ST HELENS MBC,2000007831,604750,Highway Maintenance Block - 2015/16 Quarter 2,WA10 1UQ,
Department for Transport,Department for Transport,22/07/2015,Cap Grt Loc Auth,Local,Staffordshire County Council,2000007880,5019000,Highway Maintenance Block - 2015/16 Quarter 2,ST16 2DH,
Department for Transport,Department for Transport,22/07/2015,Cap Grt Loc Auth,Local,STOCKTON ON TEES BC,2000007832,645000,Highway Maintenance Block - 2015/16 Quarter 2,TS23 2YS,
Department for Transport,Department for Transport,22/07/2015,Cap Grt Loc Auth,Local,Stoke-On-Trent City Council,2000007884,595000,Highway Maintenance Block - 2015/16 Quarter 2,ST4 4TS,
Department for Transport,Department for Transport,22/07/2015,Cap Grt Loc Auth,Local,SUFFOLK COUNTY COUNCIL (GRANTS),2000007857,5453500,Highway Maintenance Block - 2015/16 Quarter 2,IP1 2DH,
Department for Transport,Department for Transport,22/07/2015,Cap Grt Loc Auth,Local,SUNDERLAND CITY COUNCIL,2000007833,826500,Highway Maintenance Block - 2015/16 Quarter 2,SR2 7DN,
Department for Transport,Department for Transport,22/07/2015,Cap Grt Loc Auth,Local,SURREY COUNTY COUNCIL,2000007834,4178500,Highway Maintenance Block - 2015/16 Quarter 2,KT1 2DN,
Department for Transport,Department for Transport,22/07/2015,Cap Grt Loc Auth,Local,SWINDON BC,2000007835,699750,Highway Maintenance Block - 2015/16 Quarter 2,SN1 2JH,
Department for Transport,Department for Transport,22/07/2015,Cap Grt Loc Auth,Local,TELFORD & WREKIN DC,2000007850,863250,Highway Maintenance Block - 2015/16 Quarter 2,TF3 4LF,
Department for Transport,Department for Transport,22/07/2015,Cap Grt Loc Auth,Local,THURROCK BC,2000007836,498250,Highway Maintenance Block - 2015/16 Quarter 2,RM17 6LT,
Department for Transport,Department for Transport,22/07/2015,Cap Grt Loc Auth,Local,TORBAY BC,2000007837,364500,Highway Maintenance Block - 2015/16 Quarter 2,TQ1 3DS,
Department for Transport,Department for Transport,22/07/2015,Cap Grt Loc Auth,Local,WARRINGTON BC,2000007838,798750,Highway Maintenance Block - 2015/16 Quarter 2,WA1 1BN,
Department for Transport,Department for Transport,22/07/2015,Cap Grt Loc Auth,Local,Warwickshire County Council,2000007851,3237750,Highway Maintenance Block - 2015/16 Quarter 2,CV34 4RH,
Department for Transport,Department for Transport,22/07/2015,Cap Grt Loc Auth,Local,WEST BERKSHIRE DC,2000007839,1078500,Highway Maintenance Block - 2015/16 Quarter 2,RG14 2AF,
Department for Transport,Department for Transport,22/07/2015,Cap Grt Loc Auth,Local,West Sussex County Council,2000007840,3430750,Highway Maintenance Block - 2015/16 Quarter 2,PO19 1RG,
Department for Transport,Department for Transport,22/07/2015,Cap Grt Loc Auth,Local,West Yorkshire Combined Authority,2000007913,7303250,Highway Maintenance Block - 2015/16 Quarter 2,LS1 2DE,
Department for Transport,Department for Transport,22/07/2015,Cap Grt Loc Auth,Local,WILTSHIRE COUNCIL,2000007896,4149750,Highway Maintenance Block - 2015/16 Quarter 2,BA14 4DS,
Department for Transport,Department for Transport,22/07/2015,Cap Grt Loc Auth,Local,WINDSOR & MAIDENHEAD,2000007841,544500,Highway Maintenance Block - 2015/16 Quarter 2,SL6 1RF,
Department for Transport,Department for Transport,22/07/2015,Cap Grt Loc Auth,Local,Wirral Council,2000007900,826250,Highway Maintenance Block - 2015/16 Quarter 2,CH41 6BU,
Department for Transport,Department for Transport,22/07/2015,Cap Grt Loc Auth,Local,WOKINGHAM DC,2000007842,663750,Highway Maintenance Block - 2015/16 Quarter 2,RG40 1JW,
Department for Transport,Department for Transport,22/07/2015,Cap Grt Loc Auth,Local,WORCESTERSHIRE COUNTY COUNCIL,2000007852,3751750,Highway Maintenance Block - 2015/16 Quarter 2,WR5 2NP,
Department for Transport,Department for Transport,22/07/2015,Cap Grt Loc Auth,Local,BATH & NE SOMERSET DC,2000007792,290750,IT Block - second quarterly payment - 2015/16,BA1 5AW,
Department for Transport,Department for Transport,22/07/2015,Cap Grt Loc Auth,Local,BEDFORD BC,2000007870,288250,IT Block - second quarterly payment - 2015/16,MK40 1SJ,
Department for Transport,Department for Transport,22/07/2015,Cap Grt Loc Auth,Local,BLACKBURN WITH DARWEN BC,2000007843,356000,IT Block - second quarterly payment - 2015/16,BB1 7DY,
Department for Transport,Department for Transport,22/07/2015,Cap Grt Loc Auth,Local,BLACKPOOL COUNCIL,2000007902,430000,IT Block - second quarterly payment - 2015/16,FY3 7HW,
Department for Transport,Department for Transport,22/07/2015,Cap Grt Loc Auth,Local,BOURNEMOUTH BOROUGH COUNCIL,2000007893,432750,IT Block - second quarterly payment - 2015/16,BH2 5SL,
Department for Transport,Department for Transport,22/07/2015,Cap Grt Loc Auth,Local,BRACKNELL FOREST BC,2000007863,180000,IT Block - second quarterly payment - 2015/16,RG12 1AQ,
Department for Transport,Department for Transport,22/07/2015,Cap Grt Loc Auth,Local,Brighton & Hove City Council,2000007793,764750,IT Block - second quarterly payment - 2015/16,BN1 1JE,
Department for Transport,Department for Transport,22/07/2015,Cap Grt Loc Auth,Local,BRISTOL CITY COUNCIL,2000007794,685750,IT Block - second quarterly payment - 2015/16,BS99 7BL,
Department for Transport,Department for Transport,22/07/2015,Cap Grt Loc Auth,Local,BUCKINGHAMSHIRE CC (REVENUE),2000007795,564250,IT Block - second quarterly payment - 2015/16,HP20 1UD,
Department for Transport,Department for Transport,22/07/2015,Cap Grt Loc Auth,Local,CAMBRIDGESHIRE COUNTY COUNCIL,2000007796,797500,IT Block - second quarterly payment - 2015/16,CB3 0AP,
Department for Transport,Department for Transport,22/07/2015,Cap Grt Loc Auth,Local,Central Bedfordshire Council,2000007897,341250,IT Block - second quarterly payment - 2015/16,SG17 5TQ,
Department for Transport,Department for Transport,22/07/2015,Cap Grt Loc Auth,Local,Centro,2000007892,4404500,IT Block - second quarterly payment - 2015/16,B19 3SD,
Department for Transport,Department for Transport,22/07/2015,Cap Grt Loc Auth,Local,CHESHIRE EAST BOROUGH COUNCIL,2000007894,496750,IT Block - second quarterly payment - 2015/16,CW11 1HZ,
Department for Transport,Department for Transport,22/07/2015,Cap Grt Loc Auth,Local,Cheshire West & Chester Council,2000007895,488500,IT Block - second quarterly payment - 2015/16,CH1 1SE,
Department for Transport,Department for Transport,22/07/2015,Cap Grt Loc Auth,Local,CITY OF YORK COUNCIL,2000007797,392500,IT Block - second quarterly payment - 2015/16,Y01 7WH,
Department for Transport,Department for Transport,22/07/2015,Cap Grt Loc Auth,Local,CORNWALL COUNTY COUNCIL,2000007853,1026250,IT Block - second quarterly payment - 2015/16,TR1 38D,
Department for Transport,Department for Transport,22/07/2015,Cap Grt Loc Auth,Local,CUMBRIA COUNTY COUNCIL,2000007798,636500,IT Block - second quarterly payment - 2015/16,CA3 8NA,
Department for Transport,Department for Transport,22/07/2015,Cap Grt Loc Auth,Local,DARLINGTON BC,2000007799,221500,IT Block - second quarterly payment - 2015/16,TS19 1JA,
Department for Transport,Department for Transport,22/07/2015,Cap Grt Loc Auth,Local,Derby City Council,2000007800,452750,IT Block - second quarterly payment - 2015/16,DE1 2FS,
Department for Transport,Department for Transport,22/07/2015,Cap Grt Loc Auth,Local,DERBYSHIRE COUNTY COUNCIL,2000007801,911000,IT Block - second quarterly payment - 2015/16,DE4 3AH,
Department for Transport,Department for Transport,22/07/2015,Cap Grt Loc Auth,Local,DEVON COUNTY COUNCIL,2000007802,900250,IT Block - second quarterly payment - 2015/16,EX2 4QJ,
Department for Transport,Department for Transport,22/07/2015,Cap Grt Loc Auth,Local,DORSET COUNTY COUNCIL,2000007803,522000,IT Block - second quarterly payment - 2015/16,DT1 1XJ,
Department for Transport,Department for Transport,22/07/2015,Cap Grt Loc Auth,Local,EAST RIDING OF YORKSHIRE COUNCIL,2000007871,410000,IT Block - second quarterly payment - 2015/16,HU17 9BA,
Department for Transport,Department for Transport,22/07/2015,Cap Grt Loc Auth,Local,EAST SUSSEX COUNTY COUNCIL,2000007856,729750,IT Block - second quarterly payment - 2015/16,BN7 1UE,
Department for Transport,Department for Transport,22/07/2015,Cap Grt Loc Auth,Local,ESSEX COUNTY COUNCIL,2000007805,1568750,IT Block - second quarterly payment - 2015/16,CM1 1LX,
Department for Transport,Department for Transport,22/07/2015,Cap Grt Loc Auth,Local,GLOUCESTERSHIRE COUNTY COUNCIL,2000007791,715250,IT Block - second quarterly payment - 2015/16,GL1 2TJ,
Department for Transport,Department for Transport,22/07/2015,Cap Grt Loc Auth,Local,HAMPSHIRE COUNTY COUNCIL,2000007807,1324000,IT Block - second quarterly payment - 2015/16,SO23 8UB,
Department for Transport,Department for Transport,22/07/2015,Cap Grt Loc Auth,Local,HARTLEPOOL BOROUGH COUNCIL,2000007808,179750,IT Block - second quarterly payment - 2015/16,TS24 7BT,
Department for Transport,Department for Transport,22/07/2015,Cap Grt Loc Auth,Local,HEREFORDSHIRE COUNCIL,2000007872,267250,IT Block - second quarterly payment - 2015/16,HR4 0XH,
Department for Transport,Department for Transport,22/07/2015,Cap Grt Loc Auth,Local,Hertfordshire County Council,2000007809,1142000,IT Block - second quarterly payment - 2015/16,SG13 8DN,
Department for Transport,Department for Transport,22/07/2015,Cap Grt Loc Auth,Local,ISLE OF WIGHT COUNCIL,2000007810,354500,IT Block - second quarterly payment - 2015/16,PO30 1UD,
Department for Transport,Department for Transport,22/07/2015,Cap Grt Loc Auth,Local,KENT COUNTY COUNCIL,2000007811,1715250,IT Block - second quarterly payment - 2015/16,ME14 1XQ,
Department for Transport,Department for Transport,22/07/2015,Cap Grt Loc Auth,Local,KINGSTON UPON HULL CITY COUNCIL,2000007873,557500,IT Block - second quarterly payment - 2015/16,HU1 2AB,
Department for Transport,Department for Transport,22/07/2015,Cap Grt Loc Auth,Local,LANCASHIRE COUNTY COUNCIL,2000007813,1513500,IT Block - second quarterly payment - 2015/16,PR1 0LD,
Department for Transport,Department for Transport,22/07/2015,Cap Grt Loc Auth,Local,Leicester City Council,2000007814,639000,IT Block - second quarterly payment - 2015/16,LE1 1FZ,
Department for Transport,Department for Transport,22/07/2015,Cap Grt Loc Auth,Local,LEICESTERSHIRE COUNTY COUNCIL,2000007845,682000,IT Block - second quarterly payment - 2015/16,LE3 8RB,
Department for Transport,Department for Transport,22/07/2015,Cap Grt Loc Auth,Local,Lincolnshire County Council,2000007912,828000,IT Block - second quarterly payment - 2015/16,LN1 1YL,
Department for Transport,Department for Transport,22/07/2015,Cap Grt Loc Auth,Local,Liverpool City Region,2000007889,2517000,IT Block - second quarterly payment - 2015/16,L69 3HN,
Department for Transport,Department for Transport,22/07/2015,Cap Grt Loc Auth,Local,LUTON BOROUGH COUNCIL,2000007815,364250,IT Block - second quarterly payment - 2015/16,LU1 2BQ,
Department for Transport,Department for Transport,22/07/2015,Cap Grt Loc Auth,Local,MEDWAY COUNCIL,2000007854,397250,IT Block - second quarterly payment - 2015/16,ME4 4TR,
Department for Transport,Department for Transport,22/07/2015,Cap Grt Loc Auth,Local,MIDDLESBROUGH BC,2000007790,264250,IT Block - second quarterly payment - 2015/16,TS1 2QQ,
Department for Transport,Department for Transport,22/07/2015,Cap Grt Loc Auth,Local,MILTON KEYNES BC,2000007816,381750,IT Block - second quarterly payment - 2015/16,MK9 3EE,
Department for Transport,Department for Transport,22/07/2015,Cap Grt Loc Auth,Local,Newcastle City Council,2000007875,3487250,IT Block - second quarterly payment - 2015/16,NE1 8QH,
Department for Transport,Department for Transport,22/07/2015,Cap Grt Loc Auth,Local,NORFOLK COUNTY COUNCIL,2000007825,1035250,IT Block - second quarterly payment - 2015/16,NR1 2UG,
Department for Transport,Department for Transport,22/07/2015,Cap Grt Loc Auth,Local,North East Lincolnshire Council,2000007876,369750,IT Block - second quarterly payment - 2015/16,DN35 8LN,
Department for Transport,Department for Transport,22/07/2015,Cap Grt Loc Auth,Local,North Lincolnshire Council,2000007846,289750,IT Block - second quarterly payment - 2015/16,DN16 1AB,
Department for Transport,Department for Transport,22/07/2015,Cap Grt Loc Auth,Local,North Somerset Council,2000007817,243000,IT Block - second quarterly payment - 2015/16,BS23 1UJ,
Department for Transport,Department for Transport,22/07/2015,Cap Grt Loc Auth,Local,NORTH YORKSHIRE CC,2000007877,755750,IT Block - second quarterly payment - 2015/16,DL7 8AL,
Department for Transport,Department for Transport,22/07/2015,Cap Grt Loc Auth,Local,NORTHAMPTONSHIRE CC,2000007819,769500,IT Block - second quarterly payment - 2015/16,NN4 7DB,
Department for Transport,Department for Transport,22/07/2015,Cap Grt Loc Auth,Local,NOTTINGHAM CITY COUNCIL,2000007890,847500,IT Block - second quarterly payment - 2015/16,NG1 5NT,
Department for Transport,Department for Transport,22/07/2015,Cap Grt Loc Auth,Local,NOTTINGHAMSHIRE CC,2000007879,979000,IT Block - second quarterly payment - 2015/16,NG2 7LA,
Department for Transport,Department for Transport,22/07/2015,Cap Grt Loc Auth,Local,OXFORDSHIRE CC,2000007820,922000,IT Block - second quarterly payment - 2015/16,OX1 1TH,
Department for Transport,Department for Transport,22/07/2015,Cap Grt Loc Auth,Local,PETERBOROUGH CITY COUNCIL,2000007821,351750,IT Block - second quarterly payment - 2015/16,PE1 1FF,
Department for Transport,Department for Transport,22/07/2015,Cap Grt Loc Auth,Local,PLYMOUTH CITY COUNCIL,2000007822,486000,IT Block - second quarterly payment - 2015/16,PL1 2AA,
Department for Transport,Department for Transport,22/07/2015,Cap Grt Loc Auth,Local,POOLE BC,2000007823,307500,IT Block - second quarterly payment - 2015/16,BH15 2RZ,
Department for Transport,Department for Transport,22/07/2015,Cap Grt Loc Auth,Local,PORTSMOUTH CITY COUNCIL,2000007847,462750,IT Block - second quarterly payment - 2015/16,PO1 2BG,
Department for Transport,Department for Transport,22/07/2015,Cap Grt Loc Auth,Local,Reading Borough Council,2000007824,395000,IT Block - second quarterly payment - 2015/16,RG1 2LU,
Department for Transport,Department for Transport,22/07/2015,Cap Grt Loc Auth,Local,REDCAR & CLEVELAND BC,2000007848,213250,IT Block - second quarterly payment - 2015/16,TS6 9AR,
Department for Transport,Department for Transport,22/07/2015,Cap Grt Loc Auth,Local,RUTLAND COUNTY COUNCIL,2000007826,114500,IT Block - second quarterly payment - 2015/16,LE15 6HP,
Department for Transport,Department for Transport,22/07/2015,Cap Grt Loc Auth,Local,Sheffield City Region,2000007882,2107000,IT Block - second quarterly payment - 2015/16,S1 4PL,
Department for Transport,Department for Transport,22/07/2015,Cap Grt Loc Auth,Local,SHROPSHIRE COUNTY COUNCIL,2000007881,406500,IT Block - second quarterly payment - 2015/16,SY2 6ND,
Department for Transport,Department for Transport,22/07/2015,Cap Grt Loc Auth,Local,Slough Borough Council,2000007828,337250,IT Block - second quarterly payment - 2015/16,SL1 3UF,
Department for Transport,Department for Transport,22/07/2015,Cap Grt Loc Auth,Local,SOMERSET COUNTY COUNCIL,2000007829,552250,IT Block - second quarterly payment - 2015/16,TA1 4DY,
Department for Transport,Department for Transport,22/07/2015,Cap Grt Loc Auth,Local,SOUTH GLOUCESTERSHIRE COUNCIL,2000007830,319250,IT Block - second quarterly payment - 2015/16,BS15 9DW,
Department for Transport,Department for Transport,22/07/2015,Cap Grt Loc Auth,Local,Southampton City Council,2000007855,531000,IT Block - second quarterly payment - 2015/16,SO14 7LY,
Department for Transport,Department for Transport,22/07/2015,Cap Grt Loc Auth,Local,SOUTHEND-ON-SEA BC,2000007883,350250,IT Block - second quarterly payment - 2015/16,SS2 6AN,
Department for Transport,Department for Transport,22/07/2015,Cap Grt Loc Auth,Local,Staffordshire County Council,2000007880,855750,IT Block - second quarterly payment - 2015/16,ST16 2DH,
Department for Transport,Department for Transport,22/07/2015,Cap Grt Loc Auth,Local,STOCKTON ON TEES BC,2000007832,307750,IT Block - second quarterly payment - 2015/16,TS23 2YS,
Department for Transport,Department for Transport,22/07/2015,Cap Grt Loc Auth,Local,Stoke-On-Trent City Council,2000007884,416500,IT Block - second quarterly payment - 2015/16,ST4 4TS,
Department for Transport,Department for Transport,22/07/2015,Cap Grt Loc Auth,Local,SUFFOLK COUNTY COUNCIL (GRANTS),2000007857,811500,IT Block - second quarterly payment - 2015/16,IP1 2DH,
Department for Transport,Department for Transport,22/07/2015,Cap Grt Loc Auth,Local,SURREY COUNTY COUNCIL,2000007834,1196000,IT Block - second quarterly payment - 2015/16,KT1 2DN,
Department for Transport,Department for Transport,22/07/2015,Cap Grt Loc Auth,Local,SWINDON BC,2000007835,344500,IT Block - second quarterly payment - 2015/16,SN1 2JH,
Department for Transport,Department for Transport,22/07/2015,Cap Grt Loc Auth,Local,TELFORD & WREKIN DC,2000007850,234750,IT Block - second quarterly payment - 2015/16,TF3 4LF,
Department for Transport,Department for Transport,22/07/2015,Cap Grt Loc Auth,Local,THURROCK BC,2000007836,242750,IT Block - second quarterly payment - 2015/16,RM17 6LT,
Department for Transport,Department for Transport,22/07/2015,Cap Grt Loc Auth,Local,TORBAY BC,2000007837,265750,IT Block - second quarterly payment - 2015/16,TQ1 3DS,
Department for Transport,Department for Transport,22/07/2015,Cap Grt Loc Auth,Local,WARRINGTON BC,2000007838,373500,IT Block - second quarterly payment - 2015/16,WA1 1BN,
Department for Transport,Department for Transport,22/07/2015,Cap Grt Loc Auth,Local,Warwickshire County Council,2000007851,659250,IT Block - second quarterly payment - 2015/16,CV34 4RH,
Department for Transport,Department for Transport,22/07/2015,Cap Grt Loc Auth,Local,WEST BERKSHIRE DC,2000007839,227500,IT Block - second quarterly payment - 2015/16,RG14 2AF,
Department for Transport,Department for Transport,22/07/2015,Cap Grt Loc Auth,Local,West Sussex County Council,2000007840,933500,IT Block - second quarterly payment - 2015/16,PO19 1RG,
Department for Transport,Department for Transport,22/07/2015,Cap Grt Loc Auth,Local,West Yorkshire Combined Authority,2000007913,3276000,IT Block - second quarterly payment - 2015/16,LS1 2DE,
Department for Transport,Department for Transport,22/07/2015,Cap Grt Loc Auth,Local,WILTSHIRE COUNCIL,2000007896,545250,IT Block - second quarterly payment - 2015/16,BA14 4DS,
Department for Transport,Department for Transport,22/07/2015,Cap Grt Loc Auth,Local,WINDSOR & MAIDENHEAD,2000007841,212750,IT Block - second quarterly payment - 2015/16,SL6 1RF,
Department for Transport,Department for Transport,22/07/2015,Cap Grt Loc Auth,Local,WOKINGHAM DC,2000007842,183500,IT Block - second quarterly payment - 2015/16,RG40 1JW,
Department for Transport,Department for Transport,22/07/2015,Cap Grt Loc Auth,Local,WORCESTERSHIRE COUNTY COUNCIL,2000007852,601250,IT Block - second quarterly payment - 2015/16,WR5 2NP,
Department for Transport,Department for Transport,22/07/2015,Cap Grt NDPBs & CG,Strategic Roads & Smart Ticketing,Govia Thameslink Railway Limited,2000007915,492432,1604 Wk3 SEFT Periods 1604 - GOVIA THAMESLINK RAIL,EC1V 9QS,
Department for Transport,Department for Transport,22/07/2015,Cap Grt Pri Sec-Cos.,"Energy, Technology and International",Airco Refrigeration,2000007917,1800,Airco Apr 15 #1800,HU3 4DL,
Department for Transport,Department for Transport,22/07/2015,Cap Grt Pri Sec-Cos.,"Energy, Technology and International",Airco Refrigeration,2000007917,900,Airco Mar 15 #900,HU3 4DL,
Department for Transport,Department for Transport,22/07/2015,Cap Grt Pri Sec-Cos.,"Energy, Technology and International",Armstrong Renewables,2000007914,3600,Armstrong Re Apr 2015 #3600,NE37 2SH,
Department for Transport,Department for Transport,22/07/2015,Cap Grt Pri Sec-Cos.,"Energy, Technology and International",Armstrong Renewables,2000007914,6300,Armstrong Re Mar 2015 #6300,NE37 2SH,
Department for Transport,Department for Transport,22/07/2015,Cap Grt Pri Sec-Cos.,"Energy, Technology and International",Chargemaster,2000007910,900,Chargemaster Apr 2015 #900,LU1 3LU,
Department for Transport,Department for Transport,22/07/2015,Cap Grt Pri Sec-Cos.,"Energy, Technology and International",Rolec Services Limited,2000007909,15300,ROLEC Apr 2015 #15300,PE20 1Q,
Department for Transport,Department for Transport,22/07/2015,Cap Grt Pri Sec-Cos.,"Energy, Technology and International",Rolec Services Limited,2000007909,27900,ROLEC Mar 2015 #27900,PE20 1Q,
Department for Transport,Department for Transport,22/07/2015,Cap Grt Pri Sec-Cos.,"Energy, Technology and International",Rolec Services Limited,2000007909,22500,ROLEC Feb 2015 #22500,PE20 1Q,
Department for Transport,Department for Transport,22/07/2015,Cap Grt Pri Sec-Cos.,"Energy, Technology and International",Rolec Services Limited,2000007909,25200,ROLEC Jan 2015 #25200,PE20 1Q,
Department for Transport,Department for Transport,22/07/2015,Cap Grt Pri Sec-Cos.,"Energy, Technology and International",Rolec Services Limited,2000007909,7200,ROLEC Nov 2014 #7200,PE20 1Q,
Department for Transport,Department for Transport,22/07/2015,Cap Grt Pri Sec-Cos.,"Energy, Technology and International",Rolec Services Limited,2000007909,15300,ROLEC Dec 2014 #15300,PE20 1Q,
Department for Transport,Department for Transport,22/07/2015,Cap Grt Pri Sec-Cos.,"Energy, Technology and International",Rolec Services Limited,2000007909,1800,ROLEC Oct 2014 #1800,PE20 1Q,
Department for Transport,Department for Transport,22/07/2015,Cycle to Work Scheme,Group Human Resource,CYCLESCHEME LTD,2000007865,2666.67,#,BA1 1WX,
Department for Transport,Department for Transport,22/07/2015,Cars Maintenance,Motoring Services,CAMBRIA AUTOMOBILES SOUTH EAST LTD,2000007908,751.57,#,CR2 6EE,
Department for Transport,Department for Transport,22/07/2015,CurrGrtPriSec-P&NPIS,"Motoring, Freight & London",RICARDO - AEA LIMITED,2000007903,44000,NCEC Q1 2015/16,OX11 0PQ,
Department for Transport,Department for Transport,22/07/2015,Indexation Receipts,Rail Commercial & Programme Office,Govia Thameslink Railway Limited,2000007915,635141.67,1604 Wk3 Franchise Payment Indexation P1604 - GOVI,EC1V 9QS,
Department for Transport,Department for Transport,22/07/2015,Infrastructure Maint,Group Human Resource,Mouchel Management Consulting Ltd,2000007867,14390.4,#,OL1 1BB,
Department for Transport,Department for Transport,22/07/2015,Other Professional F,Motoring Services,Arvato Ltd,2000007911,2735,#,HU10 6FE,
Department for Transport,Department for Transport,22/07/2015,Other Professional F,Motoring Services,Arvato Ltd,2000007911,22275,#,HU10 6FE,
Department for Transport,Department for Transport,22/07/2015,Other Professional F,Motoring Services,Arvato Ltd,2000007911,11150,#,HU10 6FE,
Department for Transport,Department for Transport,22/07/2015,Publications for Res,Aviation,CREATIVE CHOICE CIC,2000007901,8050,#,SW1H 0DJ,
Department for Transport,Department for Transport,22/07/2015,Research,"Motoring, Freight & London",OVE ARUP & PARTNERS,2000007868,2972.63,#,NE1 3PL,
Department for Transport,Department for Transport,22/07/2015,Research,Transport Security Co-ordination and Response,Schenker Limited,2000007758,30424.54,#,TW14 8NT,
Department for Transport,Department for Transport,22/07/2015,Research,Aviation,Civil Aviation Authority,2000007864,7232.54,#,RH6 0YR,
Department for Transport,Department for Transport,22/07/2015,Sch4 Supp Variable -,Rail Commercial & Programme Office,Govia Thameslink Railway Limited,2000007915,-481301,1604 Wk3 Schedule 4 Pass through - GOVIA THAMESLIN,EC1V 9QS,
Department for Transport,Department for Transport,22/07/2015,Sch8 Variable Perf -,Rail Commercial & Programme Office,Govia Thameslink Railway Limited,2000007915,315379,1604 Wk3 Schedule 8 Pass Through - GOVIA THAMESLIN,EC1V 9QS,
Department for Transport,Department for Transport,22/07/2015,Services prov by OGD,Group Human Resource,CABINET OFFICE,2000007898,346919.26,#,CF14 3UW,
Department for Transport,Department for Transport,22/07/2015,Small Software,Rail Strategy & Funding,DELTARAIL GROUP LIMITED,2000007866,30000,#,DE24 8HS,
Department for Transport,Department for Transport,22/07/2015,Sprs Indexation Pay-,Rail Commercial & Programme Office,LONDON MIDLAND RAILWAY,2000007888,-84074.61,1604 Wk3 Franchise Subsidy Indexation 2015-16_P160,B2 4JB,
Department for Transport,Department for Transport,22/07/2015,Sprs Indexation Pay-,Rail Commercial & Programme Office,FIRST KEOLIS TRANSPENNINE,2000007886,-3698.98,1604 Wk3 TPE DA_Franchise Subsidy Indexation 2015-,M1 6LT,
Department for Transport,Department for Transport,22/07/2015,Sprs Indexation Pay-,Rail Commercial & Programme Office,NORTHERN RAIL LTD,2000007887,208917.7,1604 Wk3 Northern IFA 2015-16 Subsidy Indexation_P,YO1 6HT,
Department for Transport,Department for Transport,22/07/2015,Treasury Solicitors,"Motoring, Freight & London",Government Legal Department,2000007858,532.68,#,WC2B 4TS,
Department for Transport,Department for Transport,23/07/2015,Agency Staff Costs,Analysis & Strategy,CAPITA BUSINESS SERVICES LTD,2000007954,6659.28,#,DL1 9HN,
Department for Transport,Department for Transport,23/07/2015,Agency Staff Costs,Rail Commercial & Programme Office,CAPITA BUSINESS SERVICES LTD,2000007954,3341.04,#,DL1 9HN,
Department for Transport,Department for Transport,23/07/2015,Agency Staff Costs,Rail Commercial & Programme Office,MORGAN HUNT UK LTD,2000007962,3919.44,#,EC4M 7EG,
Department for Transport,Department for Transport,23/07/2015,Agency Staff Costs,Rail Franchising,CAPITA BUSINESS SERVICES LTD,2000007954,3596.64,#,DL1 9HN,
Department for Transport,Department for Transport,23/07/2015,Agency Staff Costs,Rail Franchising,Experis Ltd,2000007960,7737.41,#,EC2M 2RB,
Department for Transport,Department for Transport,23/07/2015,Agency Staff Costs,Rail Franchising,MICHAEL PAGE INTERNATIONAL,2000007970,720,#,SL1 3SA,
Department for Transport,Department for Transport,23/07/2015,Cap Grt Loc Auth,"Motoring, Freight & London",GREATER LONDON AUTHORITY,2000007996,71153846,GLA Transport Grant - July 15/16,SE1 2UT,
Department for Transport,Department for Transport,23/07/2015,Cap Grt Pri Sec-Cos.,"Policy, Legislation and Funding",Eversheds LLP,2000007985,310000,xxxxxx,CF10 5BT,
Department for Transport,Department for Transport,23/07/2015,Cap Grt Pri Sec-Cos.,"Policy, Legislation and Funding",Eversheds LLP,2000007985,535000,xxxxxx,CF10 5BT,
Department for Transport,Department for Transport,23/07/2015,Cap Grt Pri Sec-Cos.,"Energy, Technology and International",Airco Refrigeration,2000007993,17100,Airco Mar 15 #17100,HU3 4DL,
Department for Transport,Department for Transport,23/07/2015,Cap Grt Pri Sec-Cos.,"Energy, Technology and International",Alternative Energy Solutions Ltd,2000007992,2100,ALTERNATIVE ENERGY Apr #2100,OX13 6PW,
Department for Transport,Department for Transport,23/07/2015,Cap Grt Pri Sec-Cos.,"Energy, Technology and International",Armstrong Renewables,2000007989,5600,Armstrong Re MAY 2015 #5600,NE37 2SH,
Department for Transport,Department for Transport,23/07/2015,Cap Grt Pri Sec-Cos.,"Energy, Technology and International",Armstrong Renewables,2000007989,2800,Armstrong Re Apr 2015 #2800,NE37 2SH,
Department for Transport,Department for Transport,23/07/2015,Cap Grt Pri Sec-Cos.,"Energy, Technology and International",Baird Electrical,2000007988,1799.98,Baird Electrical Ltd Mar 2015 #1799.98,BT42 1EL,
Department for Transport,Department for Transport,23/07/2015,Cap Grt Pri Sec-Cos.,"Energy, Technology and International",Baird Electrical,2000007988,7000,Baird Electrical Ltd  MAY 2015 #7000,BT42 1EL,
Department for Transport,Department for Transport,23/07/2015,Cap Grt Pri Sec-Cos.,"Energy, Technology and International",Baird Electrical,2000007988,3500,Baird Electrical Ltd  APR 2015 #3500,BT42 1EL,
Department for Transport,Department for Transport,23/07/2015,Cap Grt Pri Sec-Cos.,"Energy, Technology and International",British Gas Ltd,2000007984,20514.17,British Gas Dec 2014 #20514.17,S60 1BY,
Department for Transport,Department for Transport,23/07/2015,Cap Grt Pri Sec-Cos.,"Energy, Technology and International",British Gas Ltd,2000007984,43400,"""British Gas Apr 2015 #43,400""",S60 1BY,
Department for Transport,Department for Transport,23/07/2015,Cap Grt Pri Sec-Cos.,"Energy, Technology and International",British Gas Ltd,2000007984,53900,British Gas MAY 2015 #53900,S60 1BY,
Department for Transport,Department for Transport,23/07/2015,Cap Grt Pri Sec-Cos.,"Energy, Technology and International",Chargemaster,2000007980,900,Chargemaster Mar 2015 #900,LU1 3LU,
Department for Transport,Department for Transport,23/07/2015,Cap Grt Pri Sec-Cos.,"Energy, Technology and International",EV Charging Solutions Ltd,2000007986,900,EV Charging Solutions Ltd Apr 2015 #900,NG14 7ES,
Department for Transport,Department for Transport,23/07/2015,Cap Grt Pri Sec-Cos.,"Energy, Technology and International",EV Charging Solutions Ltd,2000007986,2700,EV Charging Solutions Ltd Mar 2015 #2700,NG14 7ES,
Department for Transport,Department for Transport,23/07/2015,Cap Grt Pri Sec-Cos.,"Energy, Technology and International",EV Charging Solutions Ltd,2000007986,900,EV Charging Solutions Ltd Feb 2015 #900,NG14 7ES,
Department for Transport,Department for Transport,23/07/2015,Cap Grt Pri Sec-Cos.,"Energy, Technology and International",EV Charging Solutions Ltd,2000007986,11900,EV Charging Solutions May 15 #11900,NG14 7ES,
Department for Transport,Department for Transport,23/07/2015,Cap Grt Pri Sec-Cos.,"Energy, Technology and International",nuWorld Energy Ltd,2000007987,3500,nuWorld Energy Apr 2015 #3500,S11 8NX,
Department for Transport,Department for Transport,23/07/2015,Cap Grt Pri Sec-Cos.,"Energy, Technology and International",Pod Point,2000007979,6116.25,POD POINT #6116.25 Apr 2015,E1 1EE,
Department for Transport,Department for Transport,23/07/2015,Cap Grt Pri Sec-Cos.,"Energy, Technology and International",Pod Point,2000007979,876,POD POINT #876 Mar 2015,E1 1EE,
Department for Transport,Department for Transport,23/07/2015,Cap Grt Pri Sec-Cos.,"Energy, Technology and International",Pod Point,2000007979,1800,POD POINT #1800 Feb 2015,E1 1EE,
Department for Transport,Department for Transport,23/07/2015,Cap Grt Pri Sec-Cos.,"Energy, Technology and International",Pod Point,2000007979,900,POD POINT #900 Jan 2015,E1 1EE,
Department for Transport,Department for Transport,23/07/2015,Cap Grt Pri Sec-Cos.,"Energy, Technology and International",R S Merriman Ltd,2000007990,2100,RS MERRIMAN APR 2015 #2100,KW16 3JS,
Department for Transport,Department for Transport,23/07/2015,Cap Grt Pri Sec-Cos.,"Energy, Technology and International",Schneider Electric,2000007981,20700,SCHNEIDER ELEC #20700 Apr 15,W1W 6XX,
Department for Transport,Department for Transport,23/07/2015,Cap Grt Pri Sec-Cos.,"Energy, Technology and International",Schneider Electric,2000007981,6300,SCHNEIDER ELEC MAY 15 #6300,W1W 6XX,
Department for Transport,Department for Transport,23/07/2015,Cap Grt Pri Sec-Cos.,"Energy, Technology and International",Schneider Electric,2000007981,6300,SCHNEIDER ELEC MAY 15 #6300,W1W 6XX,
Department for Transport,Department for Transport,23/07/2015,Cap Grt Pri Sec-Cos.,"Energy, Technology and International",Security & Fire Systems,2000007995,900,Security & Fire Sys Apr 15 #900,KY1 3PF,
Department for Transport,Department for Transport,23/07/2015,Cap Grt Pri Sec-Cos.,"Energy, Technology and International",SOL Electrical Ltd,2000007982,2800,SOL ELECTRICAL MAY 2015 #2800,EX15 3EE,
Department for Transport,Department for Transport,23/07/2015,Computer equipment,Motoring Services,KELWAY LTD,2000007976,2136.72,#,SA1 8PL,
Department for Transport,Department for Transport,23/07/2015,Computer equipment,Motoring Services,Probrand Limited,2000007955,5901.46,#,B1 3BP,
Department for Transport,Department for Transport,23/07/2015,Computer equipment,Motoring Services,Probrand Limited,2000007955,666.38,#,B1 3BP,
Department for Transport,Department for Transport,23/07/2015,Computer equipment,Motoring Services,Probrand Limited,2000007955,2237.94,#,B1 3BP,
Department for Transport,Department for Transport,23/07/2015,CurrGrt Las in AEF/A,"Motoring, Freight & London",GREATER LONDON AUTHORITY,2000007996,10925556,GLA Transport Grant - July 15/16,SE1 2UT,
Department for Transport,Department for Transport,23/07/2015,CurrGrtPriSec-P&NPIS,"Energy, Technology and International",ENERGY SAVING TRUST,2000007967,171325,"""EST June 2015-6 #171,325 (DfT)""",SW1H 9BP,
Department for Transport,Department for Transport,23/07/2015,CurrGrtPriSec-P&NPIS,"Energy, Technology and International",LOW CARBON VEHICLE PARTNERSHIP,2000007974,34000,"""LowCVP July 15 #34,000 DfT payment""",SW1H 9JJ,
Department for Transport,Department for Transport,23/07/2015,Financial Consultanc,Rail Franchising,GRANT THORNTON UK LLP,2000007971,43266.42,#,NN4 7YE,
Department for Transport,Department for Transport,23/07/2015,IT Equip Cap Cost,Motoring Services,Esteem Systems Ltd,2000007994,24572.64,#,LS23 7QA,
Department for Transport,Department for Transport,23/07/2015,Legal Consultancy,Aviation,LANDMARK CHAMBERS,2000007961,600,#,EC4A 2HG,
Department for Transport,Department for Transport,23/07/2015,Publications for Res,Rail Franchising,CAMPAIGN FOR BETTER TRANSPORT,2000007972,10000,#,N1 6NG,
Department for Transport,Department for Transport,23/07/2015,Research,Aviation,Market & Opinion Research,2000007953,40000,#,SE1 1FY,
Department for Transport,Department for Transport,23/07/2015,Subsidies Private Se,"Motoring, Freight & London",Payment as MSRS Freight Grant,2000007968,16786.05,xxxxxx,xxxxxx,
Department for Transport,Department for Transport,23/07/2015,Subsidies Private Se,"Motoring, Freight & London",Payment as MSRS Freight Grant,2000007978,14977.2,xxxxxx,xxxxxx,
Department for Transport,Department for Transport,23/07/2015,Subsidies Private Se,"Motoring, Freight & London",Payment as MSRS Freight Grant,2000007969,250770,xxxxxx,xxxxxx,
Department for Transport,Department for Transport,23/07/2015,Subsidies Private Se,"Motoring, Freight & London",Payment as MSRS Freight Grant,2000007977,6515.85,xxxxxx,xxxxxx,
Department for Transport,Department for Transport,23/07/2015,Support Services,Aviation,CAA INTERNATIONAL LTD,2000007957,4250,#,RH6 0YR,
Department for Transport,Department for Transport,23/07/2015,Support Services,Aviation,CAA INTERNATIONAL LTD,2000007957,175644.75,#,RH6 0YR,
Department for Transport,Department for Transport,23/07/2015,Support Services,Aviation,Civil Aviation Authority,2000007958,2100,#,RH6 0YR,
Department for Transport,Department for Transport,23/07/2015,Traffic Survey & Cou,Local,NATIONWIDE DATA COLLECTION MIDLANDS,2000007973,50937.75,#,CV35 7LS,
Department for Transport,Department for Transport,23/07/2015,Transport  Consult,Rail Franchising,ATKINS LTD (TRANSPORT PLANNING),2000007956,7373.57,#,WR5 1TX,
Department for Transport,Department for Transport,23/07/2015,Transport  Consult,Rail Franchising,ATKINS LTD (TRANSPORT PLANNING),2000007956,18795.72,#,WR5 1TX,
Department for Transport,Department for Transport,23/07/2015,Transport  Consult,Rail Franchising,ATKINS LTD (TRANSPORT PLANNING),2000007956,6681.74,#,WR5 1TX,
Department for Transport,Department for Transport,23/07/2015,Transport  Consult,Rail Franchising,TRANSPORT RESEARCH LABORATORY,2000007965,55845.52,#,RG40 3GA,
Department for Transport,Department for Transport,23/07/2015,Travel Expenses UK,Group Human Resource,Rockpools Global Res & Cons Ltd,2000007963,602.85,#,CV1 2TT,
Department for Transport,Department for Transport,23/07/2015,Travel Expenses UK,Marine Accident Investigation Branch,Clyde Travel Management,2000007959,1056.72,Clyde -  06.09.2015,G52 4JQ,
Department for Transport,Department for Transport,24/07/2015,Agency Staff Costs,Integrated Delivery,MICHAEL PAGE INTERNATIONAL,2000008040,3594,#,SL1 3SA,
Department for Transport,Department for Transport,24/07/2015,Agency Staff Costs,Integrated Delivery,MICHAEL PAGE INTERNATIONAL,2000008040,3594,#,SL1 3SA,
Department for Transport,Department for Transport,24/07/2015,Agency Staff Costs,Programme Office,CAPITA BUSINESS SERVICES LTD,2000008030,13421.9,#,DL1 9HN,
Department for Transport,Department for Transport,24/07/2015,Agency Staff Costs,Programme Office,CAPITA BUSINESS SERVICES LTD,2000008030,20550.77,#,DL1 9HN,
Department for Transport,Department for Transport,24/07/2015,Agency Staff Costs,Programme Office,CAPITA BUSINESS SERVICES LTD,2000008030,8059.54,#,DL1 9HN,
Department for Transport,Department for Transport,24/07/2015,Agency Staff Costs,Programme Office,CAPITA BUSINESS SERVICES LTD,2000008030,3358.14,#,DL1 9HN,
Department for Transport,Department for Transport,24/07/2015,Agency Staff Costs,Programme Office,CAPITA BUSINESS SERVICES LTD,2000008030,5966.35,#,DL1 9HN,
Department for Transport,Department for Transport,24/07/2015,Agency Staff Costs,Programme Office,CAPITA BUSINESS SERVICES LTD,2000008030,3314.64,#,DL1 9HN,
Department for Transport,Department for Transport,24/07/2015,Agency Staff Costs,Analysis & Strategy,CAPITA BUSINESS SERVICES LTD,2000008030,3329.64,#,DL1 9HN,
Department for Transport,Department for Transport,24/07/2015,Agency Staff Costs,Rail Commercial & Programme Office,CAPITA BUSINESS SERVICES LTD,2000008030,3260.04,#,DL1 9HN,
Department for Transport,Department for Transport,24/07/2015,Agency Staff Costs,Rail Commercial & Programme Office,Experis Ltd,2000008034,6847.8,#,EC2M 2RB,
Department for Transport,Department for Transport,24/07/2015,Agency Staff Costs,Motoring Services,CAPITA BUSINESS SERVICES LTD,2000008030,4385.33,#,DL1 9HN,
Department for Transport,Department for Transport,24/07/2015,Agency Staff Costs,Group Finance,CAPITA BUSINESS SERVICES LTD,2000008030,4801.56,#,DL1 9HN,
Department for Transport,Department for Transport,24/07/2015,Agency Staff Costs,Integrated Delivery,CAPITA BUSINESS SERVICES LTD,2000008030,4459.26,#,DL1 9HN,
Department for Transport,Department for Transport,24/07/2015,Agency Staff Costs,Group Finance,CAPITA BUSINESS SERVICES LTD,2000008030,1664.82,#,DL1 9HN,
Department for Transport,Department for Transport,24/07/2015,Agency Staff Costs,Integrated Delivery,CAPITA BUSINESS SERVICES LTD,2000008030,2867.26,#,DL1 9HN,
Department for Transport,Department for Transport,24/07/2015,Agency Staff Costs,Integrated Delivery,CAPITA BUSINESS SERVICES LTD,2000008030,4354.88,#,DL1 9HN,
Department for Transport,Department for Transport,24/07/2015,Agency Staff Costs,Integrated Delivery,CAPITA BUSINESS SERVICES LTD,2000008030,4459.26,#,DL1 9HN,
Department for Transport,Department for Transport,24/07/2015,Agency Staff Costs,Integrated Delivery,CAPITA BUSINESS SERVICES LTD,2000008030,14163.6,#,DL1 9HN,
Department for Transport,Department for Transport,24/07/2015,Agency Staff Costs,Network Rail Sponsorship,CAPITA BUSINESS SERVICES LTD,2000008030,1371.66,#,DL1 9HN,
Department for Transport,Department for Transport,24/07/2015,Agency Staff Costs,Integrated Delivery,CAPITA BUSINESS SERVICES LTD,2000008030,1972.34,#,DL1 9HN,
Department for Transport,Department for Transport,24/07/2015,Agency Staff Costs,Integrated Delivery,CAPITA BUSINESS SERVICES LTD,2000008030,4874.64,#,DL1 9HN,
Department for Transport,Department for Transport,24/07/2015,Agency Staff Costs,Group Finance,CAPITA BUSINESS SERVICES LTD,2000008030,1093.5,#,DL1 9HN,
Department for Transport,Department for Transport,24/07/2015,Agency Staff Costs,Group Finance,Experis Ltd,2000008034,3080.26,#,EC2M 2RB,
Department for Transport,Department for Transport,24/07/2015,Agency Staff Costs,Rail Commercial & Programme Office,Experis Ltd,2000008034,5999.4,#,EC2M 2RB,
Department for Transport,Department for Transport,24/07/2015,Cap Grt Pri Sec-Cos.,"Energy, Technology and International",EV Motion Ltd,2000008047,999.67,DRS May14 EDF Energy 999.67,EX31 4TA,
Department for Transport,Department for Transport,24/07/2015,Cap Grt Pri Sec-Cos.,"Energy, Technology and International",SolarMac4 ta Synergy Solar London,2000008050,2000,DRS Aug14 SolarMac4 2000.00,HA9 0HB,
Department for Transport,Department for Transport,24/07/2015,Data Supply - TD,Environment & International Transport Analysis,BMT RELIABILITY CONSULTANTS LTD,2000008032,72000,#,PO15 5SU,
Department for Transport,Department for Transport,24/07/2015,IT Ser Running Costs,General Counsel's Office,Actica Consulting Limited,2000008041,3060,#,GU1 4AF,
Department for Transport,Department for Transport,24/07/2015,Maintenance Other,"Motoring, Freight & London",TDC SYSTEMS LIMITED,2000008038,4320,#,BS24 9BP,
Department for Transport,Department for Transport,24/07/2015,Maintenance Other,"Motoring, Freight & London",TDC SYSTEMS LIMITED,2000008038,480,#,BS24 9BP,
Department for Transport,Department for Transport,24/07/2015,Maintenance Other,"Motoring, Freight & London",TDC SYSTEMS LIMITED,2000008038,2420,#,BS24 9BP,
Department for Transport,Department for Transport,24/07/2015,Maintenance Other,"Motoring, Freight & London",TDC SYSTEMS LIMITED,2000008038,2910,#,BS24 9BP,
Department for Transport,Department for Transport,24/07/2015,Maintenance Other,"Motoring, Freight & London",TDC SYSTEMS LIMITED,2000008038,3640,#,BS24 9BP,
Department for Transport,Department for Transport,24/07/2015,Maintenance Other,"Motoring, Freight & London",TDC SYSTEMS LIMITED,2000008038,2941.67,#,BS24 9BP,
Department for Transport,Department for Transport,24/07/2015,Maintenance Other,"Motoring, Freight & London",TDC SYSTEMS LIMITED,2000008038,2420,#,BS24 9BP,
Department for Transport,Department for Transport,24/07/2015,Maintenance Other,"Motoring, Freight & London",TDC SYSTEMS LIMITED,2000008038,3890,#,BS24 9BP,
Department for Transport,Department for Transport,24/07/2015,Non Stock Machine Co,Motoring Services,XMA LIMITED GOSC,2000008044,2362.32,A2XNOTD Konica Minolta Bizhub C224e/C284,NG11 7EP,
Department for Transport,Department for Transport,24/07/2015,Other Advertising,"Policy, Legislation and Funding",PENNA COMMUNICATIONS,2000008042,877878.76,#,EC4M 7RD,
Department for Transport,Department for Transport,24/07/2015,Research,Rail Strategy & Funding,PARSONS BRINCKERHOFF LTD,2000008036,-7541.76,#,NE4 7YQ,
Department for Transport,Department for Transport,24/07/2015,Support Services,Aviation,BAE SYSTEMS (OPERATIONS) LTD,2000008031,30864,#,NP15 1XL,
Department for Transport,Department for Transport,24/07/2015,Support Services,"Policy, Legislation and Funding",Government Legal Department,2000008028,200,#,WC2B 4TS,
Department for Transport,Department for Transport,24/07/2015,Telecom Equipment,Motoring Services,BT GLOBAL SERVICES,2000008029,12263.86,#,NW9 6LB,
Department for Transport,Department for Transport,24/07/2015,Transport  Consult,Rail Franchising,OVE ARUP & PARTNERS,2000008035,5265.85,#,NE1 3PL,
Department for Transport,Department for Transport,24/07/2015,Transport  Consult,Rail Franchising,PARSONS BRINCKERHOFF LTD,2000008036,4439.54,#,NE4 7YQ,
Department for Transport,Department for Transport,24/07/2015,Transport  Consult,Rail Franchising,PARSONS BRINCKERHOFF LTD,2000008036,19302.3,#,NE4 7YQ,
Department for Transport,Department for Transport,24/07/2015,Transport  Consult,Rail Franchising,TRANSPORT RESEARCH LABORATORY,2000008039,9418.63,#,RG40 3GA,
